Department,Entity,Date of Payment,Expense Type,Expense Area,Suppliers,Transaction Number,Amount,
United Kingdom Atomic energy Authority,United Kingdom Atomic energy Authority,03/03/2014,PLANT & EQUIPMENT,FUSION,40-30 UK Ltd,1900059516," 3,240.19",
United Kingdom Atomic energy Authority,United Kingdom Atomic energy Authority,26/02/2014,MATERIALS & SPARES,FUSION,A and J Non Ferrous LLP,5100300377,56,
United Kingdom Atomic energy Authority,United Kingdom Atomic energy Authority,24/03/2014,MATERIALS & SPARES,FUSION,A and J Non Ferrous LLP,5100301716,603,
United Kingdom Atomic energy Authority,United Kingdom Atomic energy Authority,26/02/2014,PLANT SPARES,FUSION,A D INSTALLATION LTD,5100298201,620,
United Kingdom Atomic energy Authority,United Kingdom Atomic energy Authority,26/02/2014,PLANT SPARES,FUSION,A D INSTALLATION LTD,5100299945,620,
United Kingdom Atomic energy Authority,United Kingdom Atomic energy Authority,26/02/2014,PLANT SPARES,FUSION,A D INSTALLATION LTD,5100300339,1240,
United Kingdom Atomic energy Authority,United Kingdom Atomic energy Authority,17/03/2014,PLANT SPARES,FUSION,A D INSTALLATION LTD,5100301228,6200,
United Kingdom Atomic energy Authority,United Kingdom Atomic energy Authority,17/03/2014,PLANT SPARES,FUSION,A D INSTALLATION LTD,5100301453,620,
United Kingdom Atomic energy Authority,United Kingdom Atomic energy Authority,17/03/2014,PLANT SPARES,FUSION,A W CLARKE,5100301056,258,
United Kingdom Atomic energy Authority,United Kingdom Atomic energy Authority,10/03/2014,PLANT SPARES,FUSION,A W CLARKE,5100300718,3625,
United Kingdom Atomic energy Authority,United Kingdom Atomic energy Authority,17/03/2014,PLANT SPARES,FUSION,A W CLARKE,5100300953,1450,
United Kingdom Atomic energy Authority,United Kingdom Atomic energy Authority,17/03/2014,PLANT SPARES,FUSION,A W CLARKE,5100300954,1601.2,
United Kingdom Atomic energy Authority,United Kingdom Atomic energy Authority,17/03/2014,PLANT SPARES,FUSION,A W CLARKE,5100300955,2175,
United Kingdom Atomic energy Authority,United Kingdom Atomic energy Authority,17/03/2014,PLANT SPARES,FUSION,A W CLARKE,5100301339,1450,
United Kingdom Atomic energy Authority,United Kingdom Atomic energy Authority,24/03/2014,PLANT SPARES,FUSION,A W CLARKE,5100301628,337.5,
United Kingdom Atomic energy Authority,United Kingdom Atomic energy Authority,24/03/2014,PLANT SPARES,FUSION,A W CLARKE,5100301629,186,
United Kingdom Atomic energy Authority,United Kingdom Atomic energy Authority,24/03/2014,PLANT SPARES,FUSION,A W CLARKE,5100301630,743.4,
United Kingdom Atomic energy Authority,United Kingdom Atomic energy Authority,24/03/2014,PLANT SPARES,FUSION,A W CLARKE,5100301631,1450,
United Kingdom Atomic energy Authority,United Kingdom Atomic energy Authority,24/03/2014,PLANT SPARES,FUSION,A W CLARKE,5100301632,4410,
United Kingdom Atomic energy Authority,United Kingdom Atomic energy Authority,24/03/2014,PLANT SPARES,FUSION,A W CLARKE,5100301719,5035,
United Kingdom Atomic energy Authority,United Kingdom Atomic energy Authority,12/03/2014,PLANT & EQUIPMENT,FUSION,A.A LAB SYSTEMS LTD,5100301269,621.1,
United Kingdom Atomic energy Authority,United Kingdom Atomic energy Authority,26/03/2014,PLANT & EQUIPMENT,FUSION,AALCO LIMITED,5100301881,79,
United Kingdom Atomic energy Authority,United Kingdom Atomic energy Authority,26/03/2014,PLANT & EQUIPMENT,FUSION,AALCO LIMITED,5100301896,128.1,
United Kingdom Atomic energy Authority,United Kingdom Atomic energy Authority,03/03/2014,PLANT & EQUIPMENT,FUSION,AALCO LIMITED,5100300588,44,
United Kingdom Atomic energy Authority,United Kingdom Atomic energy Authority,03/03/2014,PLANT & EQUIPMENT,FUSION,AALCO LIMITED,5100300634,235,
United Kingdom Atomic energy Authority,United Kingdom Atomic energy Authority,10/03/2014,PLANT & EQUIPMENT,FUSION,AALCO LIMITED,5100300749,33.75,
United Kingdom Atomic energy Authority,United Kingdom Atomic energy Authority,03/03/2014,PLANT & EQUIPMENT,FUSION,AALCO LIMITED,5100300585,41.85,
United Kingdom Atomic energy Authority,United Kingdom Atomic energy Authority,03/03/2014,PLANT & EQUIPMENT,FUSION,AALCO LIMITED,5100300586,60,
United Kingdom Atomic energy Authority,United Kingdom Atomic energy Authority,03/03/2014,PLANT & EQUIPMENT,FUSION,AALCO LIMITED,5100300587,124,
United Kingdom Atomic energy Authority,United Kingdom Atomic energy Authority,05/03/2014,PLANT & EQUIPMENT,FUSION,AALCO LIMITED,5100300633,37.5,
United Kingdom Atomic energy Authority,United Kingdom Atomic energy Authority,10/03/2014,PLANT & EQUIPMENT,FUSION,AALCO LIMITED,5100300811,46,
United Kingdom Atomic energy Authority,United Kingdom Atomic energy Authority,19/03/2014,PLANT & EQUIPMENT,FUSION,AALCO LIMITED,5100301314,152,
United Kingdom Atomic energy Authority,United Kingdom Atomic energy Authority,19/03/2014,PLANT & EQUIPMENT,FUSION,AALCO LIMITED,5100301315,58.35,
United Kingdom Atomic energy Authority,United Kingdom Atomic energy Authority,19/03/2014,PLANT & EQUIPMENT,FUSION,AALCO LIMITED,5100301316,73.2,
United Kingdom Atomic energy Authority,United Kingdom Atomic energy Authority,19/03/2014,PLANT & EQUIPMENT,FUSION,AALCO LIMITED,5100301438,37,
United Kingdom Atomic energy Authority,United Kingdom Atomic energy Authority,24/03/2014,PLANT & EQUIPMENT,FUSION,AALCO LIMITED,5100301489,15,
United Kingdom Atomic energy Authority,United Kingdom Atomic energy Authority,26/03/2014,PLANT & EQUIPMENT,FUSION,AALCO LIMITED,5100301883,243.6,
United Kingdom Atomic energy Authority,United Kingdom Atomic energy Authority,26/02/2014,PLANT & EQUIPMENT,PROPERTY,AALCO LIMITED,5100300219,187.4,
United Kingdom Atomic energy Authority,United Kingdom Atomic energy Authority,05/03/2014,PLANT & EQUIPMENT,PROPERTY,AALCO LIMITED,5100300632,95.7,
United Kingdom Atomic energy Authority,United Kingdom Atomic energy Authority,05/03/2014,PLANT & EQUIPMENT,FUSION,ABINGDON STONE AND MARBLE LTD,5100300705,1595,
United Kingdom Atomic energy Authority,United Kingdom Atomic energy Authority,17/03/2014,MATERIALS & SPARES,FUSION,ABLE INSTRUMENTS & CONTROLS LTD,5100301289,1543,
United Kingdom Atomic energy Authority,United Kingdom Atomic energy Authority,17/03/2014,CONSUMABLES,SUPPORT SERVICES,ABLOY SECURITY,5100301309,159.6,
United Kingdom Atomic energy Authority,United Kingdom Atomic energy Authority,26/03/2014,REPAIRS & MAINTENANCE,PROPERTY,AC BECK AND SONS,5100301191,20927,
United Kingdom Atomic energy Authority,United Kingdom Atomic energy Authority,17/03/2014,MATERIALS & SPARES,FUSION,AC PRECISION ENGINEERING LTD,5100299332,4110,
United Kingdom Atomic energy Authority,United Kingdom Atomic energy Authority,10/03/2014,MATERIALS & SPARES,FUSION,ACRONA ENGINEERING LTD,5100300789,961.4,
United Kingdom Atomic energy Authority,United Kingdom Atomic energy Authority,12/03/2014,MATERIALS & SPARES,FUSION,ACRONA ENGINEERING LTD,5100300712,6066.33,
United Kingdom Atomic energy Authority,United Kingdom Atomic energy Authority,26/02/2014,MATERIALS & SPARES,FUSION,ACRONA ENGINEERING LTD,5100300343,446.14,
United Kingdom Atomic energy Authority,United Kingdom Atomic energy Authority,26/02/2014,MATERIALS & SPARES,FUSION,ACRONA ENGINEERING LTD,5100300375,1295,
United Kingdom Atomic energy Authority,United Kingdom Atomic energy Authority,26/02/2014,MATERIALS & SPARES,FUSION,ACRONA ENGINEERING LTD,5100300376,997.53,
United Kingdom Atomic energy Authority,United Kingdom Atomic energy Authority,10/03/2014,MATERIALS & SPARES,FUSION,ACRONA ENGINEERING LTD,5100300707,1060,
United Kingdom Atomic energy Authority,United Kingdom Atomic energy Authority,05/03/2014,MATERIALS & SPARES,FUSION,ADMIRAL MICROWAVES ,5100300647,766,
United Kingdom Atomic energy Authority,United Kingdom Atomic energy Authority,26/02/2014,PLANT & EQUIPMENT,FUSION,ADVENT RESEARCH MATERIALS LTD,5100300233,940,
United Kingdom Atomic energy Authority,United Kingdom Atomic energy Authority,03/03/2014,PLANT SPARES,FUSION,Aerotech Ltd,5100300636,6245,
United Kingdom Atomic energy Authority,United Kingdom Atomic energy Authority,26/03/2014,CONSUMABLES,FUSION,AGATE PRODUCTS LTD,5100300929,4110,
United Kingdom Atomic energy Authority,United Kingdom Atomic energy Authority,24/03/2014,CONSUMABLES,FUSION,AGATE PRODUCTS LTD,5100301537,651,
United Kingdom Atomic energy Authority,United Kingdom Atomic energy Authority,19/03/2014,PLANT & EQUIPMENT,FUSION,AGGREKO UK,5100301321,3800,
United Kingdom Atomic energy Authority,United Kingdom Atomic energy Authority,24/03/2014,SITE SUPPORT SERVICES,PROPERTY,AGILYSIS EUROPE LTD,5100301784,960,
United Kingdom Atomic energy Authority,United Kingdom Atomic energy Authority,24/03/2014,SITE SUPPORT SERVICES,PROPERTY,AGILYSIS EUROPE LTD,5100301797,1950,
United Kingdom Atomic energy Authority,United Kingdom Atomic energy Authority,24/03/2014,PLANT & EQUIPMENT,FUSION,AIR SEA CONTAINERS LTD,5100301501,386.63,
United Kingdom Atomic energy Authority,United Kingdom Atomic energy Authority,26/02/2014,EXTRA MURAL RESEARCH,FUSION,ALEXEI DNESTROVSKIJ,5100299353,2000,
United Kingdom Atomic energy Authority,United Kingdom Atomic energy Authority,03/03/2014,MATERIALS & SPARES,FUSION,ALLECTRA LTD,5100300492,5708,
United Kingdom Atomic energy Authority,United Kingdom Atomic energy Authority,12/03/2014,PROFESSIONAL SERVICES,SUPPORT SERVICES,ALLEN ASSOCIATES,5100300565,880.05,
United Kingdom Atomic energy Authority,United Kingdom Atomic energy Authority,19/03/2014,PROFESSIONAL SERVICES,SUPPORT SERVICES,ALLEN ASSOCIATES,5100301063,1022.59,
United Kingdom Atomic energy Authority,United Kingdom Atomic energy Authority,17/03/2014,PROFESSIONAL SERVICES,SUPPORT SERVICES,ALLEN ASSOCIATES,5100301167,793.28,
United Kingdom Atomic energy Authority,United Kingdom Atomic energy Authority,17/03/2014,PROFESSIONAL SERVICES,SUPPORT SERVICES,ALLEN ASSOCIATES,5100301338,6546.6,
United Kingdom Atomic energy Authority,United Kingdom Atomic energy Authority,19/03/2014,PROFESSIONAL SERVICES,SUPPORT SERVICES,ALLEN ASSOCIATES,5100301441,787.08,
United Kingdom Atomic energy Authority,United Kingdom Atomic energy Authority,26/03/2014,PROFESSIONAL SERVICES,SUPPORT SERVICES,ALLEN ASSOCIATES,5100301790,948.22,
United Kingdom Atomic energy Authority,United Kingdom Atomic energy Authority,26/02/2014,PROFESSIONAL SERVICES,FUSION,ALLIANZ ENGINEERING,5100300440,11760,
United Kingdom Atomic energy Authority,United Kingdom Atomic energy Authority,26/02/2014,PLANT & EQUIPMENT,FUSION,Allsee Technologies,1900059504," 1,308.00",
United Kingdom Atomic energy Authority,United Kingdom Atomic energy Authority,24/03/2014,MATERIALS & SPARES,FUSION,ALPHA ENGINEERING SUPPLIES,5100301526,378.35,
United Kingdom Atomic energy Authority,United Kingdom Atomic energy Authority,24/03/2014,MATERIALS & SPARES,FUSION,ALPHA ENGINEERING SUPPLIES,5100301527,378.73,
United Kingdom Atomic energy Authority,United Kingdom Atomic energy Authority,26/02/2014,MATERIALS & SPARES,FUSION,ALPHA ENGINEERING SUPPLIES,5100300221,108.8,
United Kingdom Atomic energy Authority,United Kingdom Atomic energy Authority,26/02/2014,MATERIALS & SPARES,SUPPORT SERVICES,ALPHA PACKAGING,5100300394,6.36,
United Kingdom Atomic energy Authority,United Kingdom Atomic energy Authority,05/03/2014,MATERIALS & SPARES,FUSION,ALPHA PACKAGING,5100300671,458.64,
United Kingdom Atomic energy Authority,United Kingdom Atomic energy Authority,26/02/2014,MATERIALS & SPARES,FUSION,ANIXTER (UK) LTD,5100300069,28,
United Kingdom Atomic energy Authority,United Kingdom Atomic energy Authority,17/03/2014,MATERIALS & SPARES,FUSION,ANIXTER (UK) LTD,5100301446,116.1,
United Kingdom Atomic energy Authority,United Kingdom Atomic energy Authority,26/02/2014,MATERIALS & SPARES,FUSION,ANIXTER (UK) LTD,5100300220,418.25,
United Kingdom Atomic energy Authority,United Kingdom Atomic energy Authority,26/03/2014,MATERIALS & SPARES,FUSION,ANIXTER (UK) LTD,5100301710,1310,
United Kingdom Atomic energy Authority,United Kingdom Atomic energy Authority,26/02/2014,MATERIALS & SPARES,FUSION,ANIXTER (UK) LTD,5100299344,3802.5,
United Kingdom Atomic energy Authority,United Kingdom Atomic energy Authority,03/03/2014,MATERIALS & SPARES,FUSION,ANIXTER (UK) LTD,5100300507,423,
United Kingdom Atomic energy Authority,United Kingdom Atomic energy Authority,10/03/2014,MATERIALS & SPARES,FUSION,ANIXTER (UK) LTD,5100300941,64.06,
United Kingdom Atomic energy Authority,United Kingdom Atomic energy Authority,19/03/2014,MATERIALS & SPARES,FUSION,ANIXTER (UK) LTD,5100301281,4504.6,
United Kingdom Atomic energy Authority,United Kingdom Atomic energy Authority,26/02/2014,OPERATING LEASE,FUSION,ANNODATA BUSINESS COMMUNICATIONS,5100300391,1184.45,
United Kingdom Atomic energy Authority,United Kingdom Atomic energy Authority,26/02/2014,OPERATING LEASE,FUSION,ANNODATA BUSINESS COMMUNICATIONS,5100300392,38584.16,
United Kingdom Atomic energy Authority,United Kingdom Atomic energy Authority,03/03/2014,OPERATING LEASE,FUSION,ANNODATA BUSINESS COMMUNICATIONS,5100300566,1452.09,
United Kingdom Atomic energy Authority,United Kingdom Atomic energy Authority,03/03/2014,OPERATING LEASE,FUSION,ANNODATA BUSINESS COMMUNICATIONS,5100300567,2778.3,
United Kingdom Atomic energy Authority,United Kingdom Atomic energy Authority,24/03/2014,OPERATING LEASE,FUSION,ANNODATA BUSINESS COMMUNICATIONS,5100301700,900,
United Kingdom Atomic energy Authority,United Kingdom Atomic energy Authority,10/03/2014,PROFESSIONAL SERVICES,SUPPORT SERVICES,AON HEWITT LTD,5100300709,153682.51,
United Kingdom Atomic energy Authority,United Kingdom Atomic energy Authority,21/03/2014,PLANT & EQUIPMENT,FUSION,Aquality Trading & Consulting Ltd,1900059573," 7,524.00",
United Kingdom Atomic energy Authority,United Kingdom Atomic energy Authority,03/03/2014,PLANT SPARES,FUSION,Aquila Nuclear Engineering Ltd,5100300477,11883.81,
United Kingdom Atomic energy Authority,United Kingdom Atomic energy Authority,26/02/2014,PERSONAL PROTECTIVE EQUIPMENT,SUPPORT SERVICES,ARCO LTD,5100300250,82.86,
United Kingdom Atomic energy Authority,United Kingdom Atomic energy Authority,10/03/2014,PERSONAL PROTECTIVE EQUIPMENT,SUPPORT SERVICES,ARCO LTD,5100300851,289.01,
United Kingdom Atomic energy Authority,United Kingdom Atomic energy Authority,24/03/2014,PERSONAL PROTECTIVE EQUIPMENT,SUPPORT SERVICES,ARCO LTD,5100301746,68.22,
United Kingdom Atomic energy Authority,United Kingdom Atomic energy Authority,24/03/2014,PERSONAL PROTECTIVE EQUIPMENT,SUPPORT SERVICES,ARCO LTD,5100301748,230.62,
United Kingdom Atomic energy Authority,United Kingdom Atomic energy Authority,10/03/2014,PERSONAL PROTECTIVE EQUIPMENT,FUSION,ARCO LTD,5100300802,1080.67,
United Kingdom Atomic energy Authority,United Kingdom Atomic energy Authority,26/02/2014,PERSONAL PROTECTIVE EQUIPMENT,FUSION,ARCO LTD,5100300134,35.94,
United Kingdom Atomic energy Authority,United Kingdom Atomic energy Authority,26/03/2014,PERSONAL PROTECTIVE EQUIPMENT,FUSION,ARCO LTD,5100299808,297.89,
United Kingdom Atomic energy Authority,United Kingdom Atomic energy Authority,26/02/2014,PERSONAL PROTECTIVE EQUIPMENT,FUSION,ARCO LTD,5100299809,124.44,
United Kingdom Atomic energy Authority,United Kingdom Atomic energy Authority,10/03/2014,PERSONAL PROTECTIVE EQUIPMENT,FUSION,ARCO LTD,5100300746,270.7,
United Kingdom Atomic energy Authority,United Kingdom Atomic energy Authority,26/02/2014,PERSONAL PROTECTIVE EQUIPMENT,FUSION,ARCO LTD,5100300136,107.81,
United Kingdom Atomic energy Authority,United Kingdom Atomic energy Authority,17/03/2014,PERSONAL PROTECTIVE EQUIPMENT,FUSION,ARCO LTD,5100301070,276.1,
United Kingdom Atomic energy Authority,United Kingdom Atomic energy Authority,05/03/2014,PERSONAL PROTECTIVE EQUIPMENT,FUSION,ARCO LTD,5100299930,1072,
United Kingdom Atomic energy Authority,United Kingdom Atomic energy Authority,26/02/2014,PERSONAL PROTECTIVE EQUIPMENT,FUSION,ARCO LTD,5100300115,332.4,
United Kingdom Atomic energy Authority,United Kingdom Atomic energy Authority,26/02/2014,PERSONAL PROTECTIVE EQUIPMENT,FUSION,ARCO LTD,5100300116,172.48,
United Kingdom Atomic energy Authority,United Kingdom Atomic energy Authority,26/02/2014,PERSONAL PROTECTIVE EQUIPMENT,FUSION,ARCO LTD,5100300117,431.2,
United Kingdom Atomic energy Authority,United Kingdom Atomic energy Authority,26/02/2014,PERSONAL PROTECTIVE EQUIPMENT,FUSION,ARCO LTD,5100300120,40.9,
United Kingdom Atomic energy Authority,United Kingdom Atomic energy Authority,26/02/2014,PERSONAL PROTECTIVE EQUIPMENT,FUSION,ARCO LTD,5100300122,536,
United Kingdom Atomic energy Authority,United Kingdom Atomic energy Authority,26/02/2014,PERSONAL PROTECTIVE EQUIPMENT,FUSION,ARCO LTD,5100300124,53.33,
United Kingdom Atomic energy Authority,United Kingdom Atomic energy Authority,26/02/2014,PERSONAL PROTECTIVE EQUIPMENT,FUSION,ARCO LTD,5100300126,199.56,
United Kingdom Atomic energy Authority,United Kingdom Atomic energy Authority,26/02/2014,PERSONAL PROTECTIVE EQUIPMENT,FUSION,ARCO LTD,5100300131,79.99,
United Kingdom Atomic energy Authority,United Kingdom Atomic energy Authority,26/02/2014,PERSONAL PROTECTIVE EQUIPMENT,FUSION,ARCO LTD,5100300135,777.2,
United Kingdom Atomic energy Authority,United Kingdom Atomic energy Authority,26/03/2014,PERSONAL PROTECTIVE EQUIPMENT,FUSION,ARCO LTD,5100300242,91.4,
United Kingdom Atomic energy Authority,United Kingdom Atomic energy Authority,26/02/2014,PERSONAL PROTECTIVE EQUIPMENT,FUSION,ARCO LTD,5100300244,411.48,
United Kingdom Atomic energy Authority,United Kingdom Atomic energy Authority,26/02/2014,PERSONAL PROTECTIVE EQUIPMENT,FUSION,ARCO LTD,5100300283,265.2,
United Kingdom Atomic energy Authority,United Kingdom Atomic energy Authority,03/03/2014,PERSONAL PROTECTIVE EQUIPMENT,FUSION,ARCO LTD,5100300506,17.75,
United Kingdom Atomic energy Authority,United Kingdom Atomic energy Authority,03/03/2014,PERSONAL PROTECTIVE EQUIPMENT,FUSION,ARCO LTD,5100300515,86.21,
United Kingdom Atomic energy Authority,United Kingdom Atomic energy Authority,05/03/2014,PERSONAL PROTECTIVE EQUIPMENT,FUSION,ARCO LTD,5100300655,387.8,
United Kingdom Atomic energy Authority,United Kingdom Atomic energy Authority,05/03/2014,PERSONAL PROTECTIVE EQUIPMENT,FUSION,ARCO LTD,5100300656,20.7,
United Kingdom Atomic energy Authority,United Kingdom Atomic energy Authority,05/03/2014,PERSONAL PROTECTIVE EQUIPMENT,FUSION,ARCO LTD,5100300657,429.12,
United Kingdom Atomic energy Authority,United Kingdom Atomic energy Authority,05/03/2014,PERSONAL PROTECTIVE EQUIPMENT,FUSION,ARCO LTD,5100300817,-536,
United Kingdom Atomic energy Authority,United Kingdom Atomic energy Authority,10/03/2014,PERSONAL PROTECTIVE EQUIPMENT,FUSION,ARCO LTD,5100300852,214.56,
United Kingdom Atomic energy Authority,United Kingdom Atomic energy Authority,10/03/2014,PERSONAL PROTECTIVE EQUIPMENT,FUSION,ARCO LTD,5100300853,107.28,
United Kingdom Atomic energy Authority,United Kingdom Atomic energy Authority,10/03/2014,PERSONAL PROTECTIVE EQUIPMENT,FUSION,ARCO LTD,5100300854,106.08,
United Kingdom Atomic energy Authority,United Kingdom Atomic energy Authority,17/03/2014,PERSONAL PROTECTIVE EQUIPMENT,FUSION,ARCO LTD,5100301190,1641,
United Kingdom Atomic energy Authority,United Kingdom Atomic energy Authority,17/03/2014,PERSONAL PROTECTIVE EQUIPMENT,FUSION,ARCO LTD,5100301215,81.12,
United Kingdom Atomic energy Authority,United Kingdom Atomic energy Authority,17/03/2014,PERSONAL PROTECTIVE EQUIPMENT,FUSION,ARCO LTD,5100301277,-81.12,
United Kingdom Atomic energy Authority,United Kingdom Atomic energy Authority,17/03/2014,PERSONAL PROTECTIVE EQUIPMENT,FUSION,ARCO LTD,5100301278,81.12,
United Kingdom Atomic energy Authority,United Kingdom Atomic energy Authority,19/03/2014,PERSONAL PROTECTIVE EQUIPMENT,FUSION,ARCO LTD,5100301447,28.24,
United Kingdom Atomic energy Authority,United Kingdom Atomic energy Authority,19/03/2014,PERSONAL PROTECTIVE EQUIPMENT,FUSION,ARCO LTD,5100301448,935,
United Kingdom Atomic energy Authority,United Kingdom Atomic energy Authority,24/03/2014,PERSONAL PROTECTIVE EQUIPMENT,FUSION,ARCO LTD,5100301543,19450,
United Kingdom Atomic energy Authority,United Kingdom Atomic energy Authority,24/03/2014,PERSONAL PROTECTIVE EQUIPMENT,FUSION,ARCO LTD,5100301544,3150.63,
United Kingdom Atomic energy Authority,United Kingdom Atomic energy Authority,24/03/2014,PERSONAL PROTECTIVE EQUIPMENT,FUSION,ARCO LTD,5100301545,86.19,
United Kingdom Atomic energy Authority,United Kingdom Atomic energy Authority,24/03/2014,PERSONAL PROTECTIVE EQUIPMENT,FUSION,ARCO LTD,5100301546,5215,
United Kingdom Atomic energy Authority,United Kingdom Atomic energy Authority,26/03/2014,PERSONAL PROTECTIVE EQUIPMENT,FUSION,ARCO LTD,5100301741,47.92,
United Kingdom Atomic energy Authority,United Kingdom Atomic energy Authority,26/03/2014,PERSONAL PROTECTIVE EQUIPMENT,FUSION,ARCO LTD,5100301743,178.98,
United Kingdom Atomic energy Authority,United Kingdom Atomic energy Authority,26/03/2014,PERSONAL PROTECTIVE EQUIPMENT,FUSION,ARCO LTD,5100301745,15.36,
United Kingdom Atomic energy Authority,United Kingdom Atomic energy Authority,26/03/2014,PERSONAL PROTECTIVE EQUIPMENT,FUSION,ARCO LTD,5100301749,121.97,
United Kingdom Atomic energy Authority,United Kingdom Atomic energy Authority,26/03/2014,PERSONAL PROTECTIVE EQUIPMENT,FUSION,ARCO LTD,5100301860,86.66,
United Kingdom Atomic energy Authority,United Kingdom Atomic energy Authority,26/03/2014,PERSONAL PROTECTIVE EQUIPMENT,FUSION,ARCO LTD,5100301862,1641,
United Kingdom Atomic energy Authority,United Kingdom Atomic energy Authority,26/03/2014,PERSONAL PROTECTIVE EQUIPMENT,FUSION,ARCO LTD,5100301944,-91.4,
United Kingdom Atomic energy Authority,United Kingdom Atomic energy Authority,26/02/2014,PERSONAL PROTECTIVE EQUIPMENT,FUSION,ARCO LTD,5100300252,32,
United Kingdom Atomic energy Authority,United Kingdom Atomic energy Authority,26/03/2014,PERSONAL PROTECTIVE EQUIPMENT,FUSION,ARCO LTD,5100301857,143.1,
United Kingdom Atomic energy Authority,United Kingdom Atomic energy Authority,26/02/2014,PERSONAL PROTECTIVE EQUIPMENT,FUSION,ARCO LTD,5100300282,55.3,
United Kingdom Atomic energy Authority,United Kingdom Atomic energy Authority,24/03/2014,STATIONERY,FUSION,ARTISAN LITHO PRINT  DESIGN,5100301564,145,
United Kingdom Atomic energy Authority,United Kingdom Atomic energy Authority,03/03/2014,PLANT & EQUIPMENT,FUSION,ARVAL UK LIMITED,5100300597,271.62,
United Kingdom Atomic energy Authority,United Kingdom Atomic energy Authority,17/03/2014,PLANT & EQUIPMENT,FUSION,ARVAL UK LIMITED,5100301170,271.62,
United Kingdom Atomic energy Authority,United Kingdom Atomic energy Authority,17/03/2014,PLANT & EQUIPMENT,FUSION,ASPEN ELECTRONICS,5100301064,3661.8,
United Kingdom Atomic energy Authority,United Kingdom Atomic energy Authority,10/03/2014,REPAIRS & MAINTENANCE,FUSION,ASTEC IT SOLUTIONS LTD,5100300846,1966,
United Kingdom Atomic energy Authority,United Kingdom Atomic energy Authority,17/03/2014,MATERIALS & SPARES,FUSION,ASTLES CONTROL SYSTEMS,5100301188,240,
United Kingdom Atomic energy Authority,United Kingdom Atomic energy Authority,19/03/2014,PLANT & EQUIPMENT,FUSION,ATLANTIC MICROWAVE LTD,5100301439,332,
United Kingdom Atomic energy Authority,United Kingdom Atomic energy Authority,26/02/2014,CATERING,SUPPORT SERVICES,AVENANCE PLC,5100300259,1871.1,
United Kingdom Atomic energy Authority,United Kingdom Atomic energy Authority,24/03/2014,CATERING,SUPPORT SERVICES,AVENANCE PLC,5100301636,1420.02,
United Kingdom Atomic energy Authority,United Kingdom Atomic energy Authority,26/02/2014,CATERING,FUSION,AVENANCE PLC,5100300258,607.15,
United Kingdom Atomic energy Authority,United Kingdom Atomic energy Authority,26/02/2014,CATERING,FUSION,AVENANCE PLC,5100300331,384.98,
United Kingdom Atomic energy Authority,United Kingdom Atomic energy Authority,24/03/2014,CATERING,FUSION,AVENANCE PLC,5100301634,625.51,
United Kingdom Atomic energy Authority,United Kingdom Atomic energy Authority,26/02/2014,CATERING,PROPERTY,AVENANCE PLC,5100300261,101.95,
United Kingdom Atomic energy Authority,United Kingdom Atomic energy Authority,26/02/2014,CATERING,PROPERTY,AVENANCE PLC,5100300263,707.63,
United Kingdom Atomic energy Authority,United Kingdom Atomic energy Authority,26/02/2014,CATERING,PROPERTY,AVENANCE PLC,5100300264,91.5,
United Kingdom Atomic energy Authority,United Kingdom Atomic energy Authority,26/02/2014,CATERING,PROPERTY,AVENANCE PLC,5100300265,620.03,
United Kingdom Atomic energy Authority,United Kingdom Atomic energy Authority,10/03/2014,CATERING,PROPERTY,AVENANCE PLC,5100300295,902.25,
United Kingdom Atomic energy Authority,United Kingdom Atomic energy Authority,03/03/2014,CATERING,PROPERTY,AVENANCE PLC,5100300564,1583.94,
United Kingdom Atomic energy Authority,United Kingdom Atomic energy Authority,10/03/2014,CATERING,PROPERTY,AVENANCE PLC,5100300944,158.15,
United Kingdom Atomic energy Authority,United Kingdom Atomic energy Authority,10/03/2014,CATERING,PROPERTY,AVENANCE PLC,5100300951,4966.56,
United Kingdom Atomic energy Authority,United Kingdom Atomic energy Authority,24/03/2014,CATERING,PROPERTY,AVENANCE PLC,5100301635,583.21,
United Kingdom Atomic energy Authority,United Kingdom Atomic energy Authority,24/03/2014,CATERING,PROPERTY,AVENANCE PLC,5100301702,220,
United Kingdom Atomic energy Authority,United Kingdom Atomic energy Authority,24/03/2014,CATERING,PROPERTY,AVENANCE PLC,5100301703,3482.6,
United Kingdom Atomic energy Authority,United Kingdom Atomic energy Authority,24/03/2014,CATERING,PROPERTY,AVENANCE PLC,5100301708,6520.54,
United Kingdom Atomic energy Authority,United Kingdom Atomic energy Authority,24/03/2014,CATERING,PROPERTY,AVENANCE PLC,5100301714,220,
United Kingdom Atomic energy Authority,United Kingdom Atomic energy Authority,03/03/2014,MATERIALS & SPARES,FUSION,AVENELL FABRICATION,5100298590,672,
United Kingdom Atomic energy Authority,United Kingdom Atomic energy Authority,03/03/2014,MATERIALS & SPARES,FUSION,AVENELL FABRICATION,5100298591,390,
United Kingdom Atomic energy Authority,United Kingdom Atomic energy Authority,03/03/2014,MATERIALS & SPARES,FUSION,AVENELL FABRICATION,5100298592,639,
United Kingdom Atomic energy Authority,United Kingdom Atomic energy Authority,03/03/2014,MATERIALS & SPARES,FUSION,AVENELL FABRICATION,5100298593,395,
United Kingdom Atomic energy Authority,United Kingdom Atomic energy Authority,03/03/2014,MATERIALS & SPARES,FUSION,AVENELL FABRICATION,5100298594,790,
United Kingdom Atomic energy Authority,United Kingdom Atomic energy Authority,10/03/2014,TREATED WATER,FUSION,B & V WATER TREATMENT,5100300734,1234.88,
United Kingdom Atomic energy Authority,United Kingdom Atomic energy Authority,17/03/2014,TREATED WATER,FUSION,B & V WATER TREATMENT,5100301437,3634,
United Kingdom Atomic energy Authority,United Kingdom Atomic energy Authority,26/02/2014,CONFERENCES/MEETINGS,FUSION,Barcelo Turismo y Congresos SL,1900059506, 997.61,
United Kingdom Atomic energy Authority,United Kingdom Atomic energy Authority,26/02/2014,REPAIRS & MAINTENANCE,FUSION,BATT CABLES PLC,5100300279,7481.4,
United Kingdom Atomic energy Authority,United Kingdom Atomic energy Authority,17/03/2014,REPAIRS & MAINTENANCE,FUSION,BATT CABLES PLC,5100301095,4390,
United Kingdom Atomic energy Authority,United Kingdom Atomic energy Authority,17/03/2014,REPAIRS & MAINTENANCE,FUSION,BATT CABLES PLC,5100301096,700,
United Kingdom Atomic energy Authority,United Kingdom Atomic energy Authority,12/03/2014,REPAIRS & MAINTENANCE,FUSION,BATT CABLES PLC,5100301098,204,
United Kingdom Atomic energy Authority,United Kingdom Atomic energy Authority,12/03/2014,REPAIRS & MAINTENANCE,FUSION,BATT CABLES PLC,5100301100,118.7,
United Kingdom Atomic energy Authority,United Kingdom Atomic energy Authority,12/03/2014,REPAIRS & MAINTENANCE,FUSION,BATT CABLES PLC,5100301102,68,
United Kingdom Atomic energy Authority,United Kingdom Atomic energy Authority,12/03/2014,REPAIRS & MAINTENANCE,FUSION,BATT CABLES PLC,5100301103,5963.6,
United Kingdom Atomic energy Authority,United Kingdom Atomic energy Authority,12/03/2014,REPAIRS & MAINTENANCE,FUSION,BATT CABLES PLC,5100301105,2319.8,
United Kingdom Atomic energy Authority,United Kingdom Atomic energy Authority,17/03/2014,REPAIRS & MAINTENANCE,FUSION,BATT CABLES PLC,5100301107,220.7,
United Kingdom Atomic energy Authority,United Kingdom Atomic energy Authority,17/03/2014,REPAIRS & MAINTENANCE,FUSION,BATT CABLES PLC,5100301108,786,
United Kingdom Atomic energy Authority,United Kingdom Atomic energy Authority,17/03/2014,REPAIRS & MAINTENANCE,FUSION,BATT CABLES PLC,5100301109,367.9,
United Kingdom Atomic energy Authority,United Kingdom Atomic energy Authority,17/03/2014,REPAIRS & MAINTENANCE,FUSION,BATT CABLES PLC,5100301110,609,
United Kingdom Atomic energy Authority,United Kingdom Atomic energy Authority,17/03/2014,REPAIRS & MAINTENANCE,FUSION,BATT CABLES PLC,5100301112,102,
United Kingdom Atomic energy Authority,United Kingdom Atomic energy Authority,17/03/2014,REPAIRS & MAINTENANCE,FUSION,BATT CABLES PLC,5100301113,925.6,
United Kingdom Atomic energy Authority,United Kingdom Atomic energy Authority,17/03/2014,REPAIRS & MAINTENANCE,FUSION,BATT CABLES PLC,5100301116,301.5,
United Kingdom Atomic energy Authority,United Kingdom Atomic energy Authority,17/03/2014,REPAIRS & MAINTENANCE,FUSION,BATT CABLES PLC,5100301123,395.8,
United Kingdom Atomic energy Authority,United Kingdom Atomic energy Authority,17/03/2014,REPAIRS & MAINTENANCE,FUSION,BATT CABLES PLC,5100301125,152.7,
United Kingdom Atomic energy Authority,United Kingdom Atomic energy Authority,17/03/2014,REPAIRS & MAINTENANCE,FUSION,BATT CABLES PLC,5100301127,68,
United Kingdom Atomic energy Authority,United Kingdom Atomic energy Authority,17/03/2014,REPAIRS & MAINTENANCE,FUSION,BATT CABLES PLC,5100301128,340,
United Kingdom Atomic energy Authority,United Kingdom Atomic energy Authority,17/03/2014,REPAIRS & MAINTENANCE,FUSION,BATT CABLES PLC,5100301130,476,
United Kingdom Atomic energy Authority,United Kingdom Atomic energy Authority,10/03/2014,REPAIRS & MAINTENANCE,PROPERTY,BATT CABLES PLC,5100298687,1729.2,
United Kingdom Atomic energy Authority,United Kingdom Atomic energy Authority,17/03/2014,REPAIRS & MAINTENANCE,PROPERTY,BATT CABLES PLC,5100301088,792,
United Kingdom Atomic energy Authority,United Kingdom Atomic energy Authority,17/03/2014,REPAIRS & MAINTENANCE,PROPERTY,BATT CABLES PLC,5100301090,982.1,
United Kingdom Atomic energy Authority,United Kingdom Atomic energy Authority,17/03/2014,REPAIRS & MAINTENANCE,PROPERTY,BATT CABLES PLC,5100301091,369.5,
United Kingdom Atomic energy Authority,United Kingdom Atomic energy Authority,17/03/2014,REPAIRS & MAINTENANCE,PROPERTY,BATT CABLES PLC,5100301092,442,
United Kingdom Atomic energy Authority,United Kingdom Atomic energy Authority,17/03/2014,REPAIRS & MAINTENANCE,PROPERTY,BATT CABLES PLC,5100301094,750,
United Kingdom Atomic energy Authority,United Kingdom Atomic energy Authority,26/02/2014,COMPUTER REPAIRS,FUSION,BCAS LTD,5100300438,643.74,
United Kingdom Atomic energy Authority,United Kingdom Atomic energy Authority,24/03/2014,COMPUTER REPAIRS,FUSION,BCAS LTD,5100301697,10.2,
United Kingdom Atomic energy Authority,United Kingdom Atomic energy Authority,26/02/2014,PLANT SPARES,FUSION,Beacon Group International Ltd,5100300322,57.36,
United Kingdom Atomic energy Authority,United Kingdom Atomic energy Authority,26/02/2014,PLANT SPARES,FUSION,Beacon Group International Ltd,5100300421,375.83,
United Kingdom Atomic energy Authority,United Kingdom Atomic energy Authority,17/03/2014,PLANT SPARES,FUSION,Beacon Group International Ltd,5100301087,132.8,
United Kingdom Atomic energy Authority,United Kingdom Atomic energy Authority,24/03/2014,PLANT SPARES,FUSION,Beacon Group International Ltd,5100301641,49.28,
United Kingdom Atomic energy Authority,United Kingdom Atomic energy Authority,10/03/2014,REPAIRS & MAINTENANCE,FUSION,BEAVER 84 LIMITED,5100300752,765,
United Kingdom Atomic energy Authority,United Kingdom Atomic energy Authority,10/03/2014,REPAIRS & MAINTENANCE,FUSION,BEAVER 84 LIMITED,5100300754,215,
United Kingdom Atomic energy Authority,United Kingdom Atomic energy Authority,24/03/2014,REPAIRS & MAINTENANCE,FUSION,BEAVER 84 LIMITED,5100301696,1010,
United Kingdom Atomic energy Authority,United Kingdom Atomic energy Authority,17/03/2014,MATERIALS & SPARES,FUSION,BELMOUNT FABRICATIONS,5100300966,13464,
United Kingdom Atomic energy Authority,United Kingdom Atomic energy Authority,10/03/2014,MATERIALS & SPARES,FUSION,BELMOUNT FABRICATIONS,5100300967,21766,
United Kingdom Atomic energy Authority,United Kingdom Atomic energy Authority,17/03/2014,MATERIALS & SPARES,FUSION,BERKSHIRE METALS,5100301187,16,
United Kingdom Atomic energy Authority,United Kingdom Atomic energy Authority,26/02/2014,COMPENSATION AND LEGAL FEES,SUPPORT SERVICES,BIGGART BAILLIE,5100300403,358,
United Kingdom Atomic energy Authority,United Kingdom Atomic energy Authority,26/02/2014,COMPENSATION AND LEGAL FEES,SUPPORT SERVICES,BIGGART BAILLIE,5100300405,1209.5,
United Kingdom Atomic energy Authority,United Kingdom Atomic energy Authority,19/03/2014,COMPENSATION AND LEGAL FEES,SUPPORT SERVICES,BIGGART BAILLIE,5100301602,1598,
United Kingdom Atomic energy Authority,United Kingdom Atomic energy Authority,19/03/2014,COMPENSATION AND LEGAL FEES,SUPPORT SERVICES,BIGGART BAILLIE,5100301603,604,
United Kingdom Atomic energy Authority,United Kingdom Atomic energy Authority,26/02/2014,PLANT & EQUIPMENT,FUSION,BLACK BOX UK LTD,5100300053,234,
United Kingdom Atomic energy Authority,United Kingdom Atomic energy Authority,26/02/2014,PLANT & EQUIPMENT,FUSION,BLACK BOX UK LTD,5100300378,1555.23,
United Kingdom Atomic energy Authority,United Kingdom Atomic energy Authority,03/03/2014,PLANT & EQUIPMENT,FUSION,BLACK BOX UK LTD,5100300493,6.95,
United Kingdom Atomic energy Authority,United Kingdom Atomic energy Authority,03/03/2014,PLANT & EQUIPMENT,FUSION,BLACK BOX UK LTD,5100300635,135.5,
United Kingdom Atomic energy Authority,United Kingdom Atomic energy Authority,26/02/2014,PLANT & EQUIPMENT,FUSION,BLACK BOX UK LTD,5100300140,543.04,
United Kingdom Atomic energy Authority,United Kingdom Atomic energy Authority,26/02/2014,HIRED STAFF,FUSION,BLACK DIAMOND UMBRELLA LTD,5100300081,851.63,
United Kingdom Atomic energy Authority,United Kingdom Atomic energy Authority,26/02/2014,HIRED STAFF,FUSION,BLACK DIAMOND UMBRELLA LTD,5100300082,851.63,
United Kingdom Atomic energy Authority,United Kingdom Atomic energy Authority,26/02/2014,HIRED STAFF,FUSION,BLACK DIAMOND UMBRELLA LTD,5100300083,851.63,
United Kingdom Atomic energy Authority,United Kingdom Atomic energy Authority,26/02/2014,HIRED STAFF,FUSION,BLACK DIAMOND UMBRELLA LTD,5100300084,851.63,
United Kingdom Atomic energy Authority,United Kingdom Atomic energy Authority,26/02/2014,HIRED STAFF,FUSION,BLACK DIAMOND UMBRELLA LTD,5100300085,331.65,
United Kingdom Atomic energy Authority,United Kingdom Atomic energy Authority,26/02/2014,HIRED STAFF,FUSION,BLACK DIAMOND UMBRELLA LTD,5100300086,4715.5,
United Kingdom Atomic energy Authority,United Kingdom Atomic energy Authority,26/02/2014,HIRED STAFF,FUSION,BLACK DIAMOND UMBRELLA LTD,5100300087,403.8,
United Kingdom Atomic energy Authority,United Kingdom Atomic energy Authority,26/02/2014,HIRED STAFF,FUSION,BLACK DIAMOND UMBRELLA LTD,5100300088,1196.63,
United Kingdom Atomic energy Authority,United Kingdom Atomic energy Authority,26/02/2014,HIRED STAFF,FUSION,BLACK DIAMOND UMBRELLA LTD,5100300089,1196.63,
United Kingdom Atomic energy Authority,United Kingdom Atomic energy Authority,26/02/2014,HIRED STAFF,FUSION,BLACK DIAMOND UMBRELLA LTD,5100300090,1196.63,
United Kingdom Atomic energy Authority,United Kingdom Atomic energy Authority,26/02/2014,HIRED STAFF,FUSION,BLACK DIAMOND UMBRELLA LTD,5100300091,957.3,
United Kingdom Atomic energy Authority,United Kingdom Atomic energy Authority,26/03/2014,HIRED STAFF,FUSION,BLACK DIAMOND UMBRELLA LTD,5100301928,851.63,
United Kingdom Atomic energy Authority,United Kingdom Atomic energy Authority,26/03/2014,HIRED STAFF,FUSION,BLACK DIAMOND UMBRELLA LTD,5100301929,851.63,
United Kingdom Atomic energy Authority,United Kingdom Atomic energy Authority,26/03/2014,HIRED STAFF,FUSION,BLACK DIAMOND UMBRELLA LTD,5100301930,851.63,
United Kingdom Atomic energy Authority,United Kingdom Atomic energy Authority,26/03/2014,HIRED STAFF,FUSION,BLACK DIAMOND UMBRELLA LTD,5100301931,892.19,
United Kingdom Atomic energy Authority,United Kingdom Atomic energy Authority,26/03/2014,HIRED STAFF,FUSION,BLACK DIAMOND UMBRELLA LTD,5100301932,1196.63,
United Kingdom Atomic energy Authority,United Kingdom Atomic energy Authority,26/03/2014,HIRED STAFF,FUSION,BLACK DIAMOND UMBRELLA LTD,5100301933,1196.63,
United Kingdom Atomic energy Authority,United Kingdom Atomic energy Authority,26/03/2014,HIRED STAFF,FUSION,BLACK DIAMOND UMBRELLA LTD,5100301934,1084.94,
United Kingdom Atomic energy Authority,United Kingdom Atomic energy Authority,26/03/2014,HIRED STAFF,FUSION,BLACK DIAMOND UMBRELLA LTD,5100301935,1196.63,
United Kingdom Atomic energy Authority,United Kingdom Atomic energy Authority,26/03/2014,HIRED STAFF,FUSION,BLACK DIAMOND UMBRELLA LTD,5100301936,4060.9,
United Kingdom Atomic energy Authority,United Kingdom Atomic energy Authority,26/03/2014,HIRED STAFF,FUSION,BLACK DIAMOND UMBRELLA LTD,5100301937,4623.82,
United Kingdom Atomic energy Authority,United Kingdom Atomic energy Authority,26/02/2014,CONSUMABLES,FUSION,B-LINE BUSINESS SUPPLIES LTD,5100300434,49.75,
United Kingdom Atomic energy Authority,United Kingdom Atomic energy Authority,10/03/2014,CONSUMABLES,FUSION,B-LINE BUSINESS SUPPLIES LTD,5100300928,49.75,
United Kingdom Atomic energy Authority,United Kingdom Atomic energy Authority,26/02/2014,LAUNDRY,FUSION,BLUEBELL LAUNDRY,5100300114,131.69,
United Kingdom Atomic energy Authority,United Kingdom Atomic energy Authority,17/03/2014,LAUNDRY,FUSION,BLUEBELL LAUNDRY,5100301383,133.08,
United Kingdom Atomic energy Authority,United Kingdom Atomic energy Authority,26/02/2014,PROFESSIONAL SERVICES,FUSION,BNS NUCLEAR SERVICES,5100300280,109318.97,
United Kingdom Atomic energy Authority,United Kingdom Atomic energy Authority,05/03/2014,PROFESSIONAL SERVICES,FUSION,BNS NUCLEAR SERVICES,5100300711,36710.51,
United Kingdom Atomic energy Authority,United Kingdom Atomic energy Authority,05/03/2014,PROFESSIONAL SERVICES,FUSION,BNS NUCLEAR SERVICES,5100300862,-36710.51,
United Kingdom Atomic energy Authority,United Kingdom Atomic energy Authority,10/03/2014,PROFESSIONAL SERVICES,FUSION,BNS NUCLEAR SERVICES,5100300863,36710.51,
United Kingdom Atomic energy Authority,United Kingdom Atomic energy Authority,24/03/2014,PROFESSIONAL SERVICES,FUSION,BNS NUCLEAR SERVICES,5100301323,35698.12,
United Kingdom Atomic energy Authority,United Kingdom Atomic energy Authority,24/03/2014,PROFESSIONAL SERVICES,FUSION,BNS NUCLEAR SERVICES,5100301494,33581.69,
United Kingdom Atomic energy Authority,United Kingdom Atomic energy Authority,26/02/2014,GASES,FUSION,BOC LTD,5100299693,59.88,
United Kingdom Atomic energy Authority,United Kingdom Atomic energy Authority,10/03/2014,GASES,FUSION,BOC LTD,5100299818,463.12,
United Kingdom Atomic energy Authority,United Kingdom Atomic energy Authority,10/03/2014,GASES,FUSION,BOC LTD,5100300330,194.75,
United Kingdom Atomic energy Authority,United Kingdom Atomic energy Authority,19/03/2014,GASES,FUSION,BOC LTD,5100300978,448.26,
United Kingdom Atomic energy Authority,United Kingdom Atomic energy Authority,24/03/2014,GASES,FUSION,BOC LTD,5100301472,85.92,
United Kingdom Atomic energy Authority,United Kingdom Atomic energy Authority,10/03/2014,GASES,FUSION,BOC LTD,5100300335,59.88,
United Kingdom Atomic energy Authority,United Kingdom Atomic energy Authority,19/03/2014,GASES,FUSION,BOC LTD,5100300649,273.38,
United Kingdom Atomic energy Authority,United Kingdom Atomic energy Authority,24/03/2014,GASES,FUSION,BOC LTD,5100301474,98.58,
United Kingdom Atomic energy Authority,United Kingdom Atomic energy Authority,26/02/2014,GASES,FUSION,BOC LTD,5100298220,94.19,
United Kingdom Atomic energy Authority,United Kingdom Atomic energy Authority,26/02/2014,GASES,FUSION,BOC LTD,5100298655,236.88,
United Kingdom Atomic energy Authority,United Kingdom Atomic energy Authority,26/02/2014,GASES,FUSION,BOC LTD,5100299821,214.08,
United Kingdom Atomic energy Authority,United Kingdom Atomic energy Authority,12/03/2014,GASES,FUSION,BOC LTD,5100300982,214.08,
United Kingdom Atomic energy Authority,United Kingdom Atomic energy Authority,24/03/2014,GASES,FUSION,BOC LTD,5100301518,5850,
United Kingdom Atomic energy Authority,United Kingdom Atomic energy Authority,26/02/2014,GASES,FUSION,BOC LTD,5100299826,-13917.45,
United Kingdom Atomic energy Authority,United Kingdom Atomic energy Authority,26/02/2014,GASES,FUSION,BOC LTD,5100299877,14090.11,
United Kingdom Atomic energy Authority,United Kingdom Atomic energy Authority,26/03/2014,GASES,FUSION,BOC LTD,5100301350,4499.05,
United Kingdom Atomic energy Authority,United Kingdom Atomic energy Authority,12/03/2014,GASES,FUSION,BOC LTD,5100300648,98.58,
United Kingdom Atomic energy Authority,United Kingdom Atomic energy Authority,26/02/2014,GASES,FUSION,BOC LTD,5100299895,246.78,
United Kingdom Atomic energy Authority,United Kingdom Atomic energy Authority,12/03/2014,GASES,FUSION,BOC LTD,5100301251,246.78,
United Kingdom Atomic energy Authority,United Kingdom Atomic energy Authority,26/02/2014,GASES,FUSION,BOC LTD,5100299819,132.16,
United Kingdom Atomic energy Authority,United Kingdom Atomic energy Authority,12/03/2014,GASES,FUSION,BOC LTD,5100300979,123.04,
United Kingdom Atomic energy Authority,United Kingdom Atomic energy Authority,17/03/2014,GASES,FUSION,BOC LTD,5100301186,49.29,
United Kingdom Atomic energy Authority,United Kingdom Atomic energy Authority,24/03/2014,GASES,FUSION,BOC LTD,5100301473,48,
United Kingdom Atomic energy Authority,United Kingdom Atomic energy Authority,26/02/2014,GASES,FUSION,BOC LTD,5100299825,215.87,
United Kingdom Atomic energy Authority,United Kingdom Atomic energy Authority,24/03/2014,GASES,FUSION,BOC LTD,5100300988,198.8,
United Kingdom Atomic energy Authority,United Kingdom Atomic energy Authority,24/03/2014,GASES,FUSION,BOC LTD,5100301515,1548.75,
United Kingdom Atomic energy Authority,United Kingdom Atomic energy Authority,26/02/2014,GASES,FUSION,BOC LTD,5100299817,190.07,
United Kingdom Atomic energy Authority,United Kingdom Atomic energy Authority,10/03/2014,GASES,FUSION,BOC LTD,5100300977,190.07,
United Kingdom Atomic energy Authority,United Kingdom Atomic energy Authority,26/02/2014,GASES,FUSION,BOC LTD,5100299822,25.06,
United Kingdom Atomic energy Authority,United Kingdom Atomic energy Authority,10/03/2014,GASES,FUSION,BOC LTD,5100300984,25.06,
United Kingdom Atomic energy Authority,United Kingdom Atomic energy Authority,26/02/2014,GASES,FUSION,BOC LTD,5100299824,181.11,
United Kingdom Atomic energy Authority,United Kingdom Atomic energy Authority,03/03/2014,GASES,FUSION,BOC LTD,5100300342,147.87,
United Kingdom Atomic energy Authority,United Kingdom Atomic energy Authority,10/03/2014,GASES,FUSION,BOC LTD,5100300987,203.87,
United Kingdom Atomic energy Authority,United Kingdom Atomic energy Authority,24/03/2014,GASES,FUSION,BOC LTD,5100301461,197.16,
United Kingdom Atomic energy Authority,United Kingdom Atomic energy Authority,26/02/2014,GASES,FUSION,BOC LTD,5100299827,82.08,
United Kingdom Atomic energy Authority,United Kingdom Atomic energy Authority,10/03/2014,GASES,FUSION,BOC LTD,5100300991,59.28,
United Kingdom Atomic energy Authority,United Kingdom Atomic energy Authority,26/02/2014,GASES,FUSION,BOC LTD,5100299694,556.44,
United Kingdom Atomic energy Authority,United Kingdom Atomic energy Authority,03/03/2014,GASES,FUSION,BOC LTD,5100299820,221.02,
United Kingdom Atomic energy Authority,United Kingdom Atomic energy Authority,26/02/2014,GASES,FUSION,BOC LTD,5100300333,782.22,
United Kingdom Atomic energy Authority,United Kingdom Atomic energy Authority,26/02/2014,GASES,FUSION,BOC LTD,5100300334,556.44,
United Kingdom Atomic energy Authority,United Kingdom Atomic energy Authority,10/03/2014,GASES,FUSION,BOC LTD,5100300980,265.45,
United Kingdom Atomic energy Authority,United Kingdom Atomic energy Authority,26/02/2014,GASES,FUSION,BOC LTD,5100299828,94.59,
United Kingdom Atomic energy Authority,United Kingdom Atomic energy Authority,26/02/2014,GASES,FUSION,BOC LTD,5100299907,243.05,
United Kingdom Atomic energy Authority,United Kingdom Atomic energy Authority,26/02/2014,GASES,FUSION,BOC LTD,5100300341,9.44,
United Kingdom Atomic energy Authority,United Kingdom Atomic energy Authority,26/02/2014,GASES,FUSION,BOC LTD,5100300483,-22.8,
United Kingdom Atomic energy Authority,United Kingdom Atomic energy Authority,10/03/2014,GASES,FUSION,BOC LTD,5100300990,50.16,
United Kingdom Atomic energy Authority,United Kingdom Atomic energy Authority,17/03/2014,GASES,FUSION,BOC LTD,5100301387,243.05,
United Kingdom Atomic energy Authority,United Kingdom Atomic energy Authority,24/03/2014,GASES,FUSION,BOC LTD,5100301471,140.98,
United Kingdom Atomic energy Authority,United Kingdom Atomic energy Authority,26/02/2014,GASES,FUSION,BOC LTD,5100299823,143.62,
United Kingdom Atomic energy Authority,United Kingdom Atomic energy Authority,03/03/2014,GASES,FUSION,BOC LTD,5100300484,31.2,
United Kingdom Atomic energy Authority,United Kingdom Atomic energy Authority,19/03/2014,GASES,FUSION,BOC LTD,5100300986,134.5,
United Kingdom Atomic energy Authority,United Kingdom Atomic energy Authority,24/03/2014,GASES,FUSION,BOC LTD,5100301460,32,
United Kingdom Atomic energy Authority,United Kingdom Atomic energy Authority,10/03/2014,GASES,PROPERTY,BOC LTD,5100299829,115.26,
United Kingdom Atomic energy Authority,United Kingdom Atomic energy Authority,26/02/2014,PROFESSIONAL SERVICES,FUSION,BODYCOTE HEAT LTD,5100300068,3204,
United Kingdom Atomic energy Authority,United Kingdom Atomic energy Authority,10/03/2014,PROFESSIONAL SERVICES,FUSION,BODYCOTE HEAT LTD,5100300750,1880.26,
United Kingdom Atomic energy Authority,United Kingdom Atomic energy Authority,17/03/2014,PROFESSIONAL SERVICES,FUSION,BODYCOTE HEAT LTD,5100301384,2563.2,
United Kingdom Atomic energy Authority,United Kingdom Atomic energy Authority,17/03/2014,PROFESSIONAL SERVICES,FUSION,BODYCOTE HEAT LTD,5100301455,-2563.2,
United Kingdom Atomic energy Authority,United Kingdom Atomic energy Authority,17/03/2014,PROFESSIONAL SERVICES,FUSION,BODYCOTE HEAT LTD,5100301458,2563.2,
United Kingdom Atomic energy Authority,United Kingdom Atomic energy Authority,03/03/2014,MATERIALS & SPARES,FUSION,BODYCOTE HEAT TREATMENTS LTD,5100300577,1156,
United Kingdom Atomic energy Authority,United Kingdom Atomic energy Authority,12/03/2014,MATERIALS & SPARES,FUSION,BOSTIK AUSTRALIA PTY LTD,5100300706,412.95,
United Kingdom Atomic energy Authority,United Kingdom Atomic energy Authority,10/03/2014,TRAINING COURSE FEES,SUPPORT SERVICES,BPP LEARNING MEDIA LTD,5100300748,422.64,
United Kingdom Atomic energy Authority,United Kingdom Atomic energy Authority,10/03/2014,MATERIALS & SPARES,FUSION,BRAMMER UK LTD,5100300855,45,
United Kingdom Atomic energy Authority,United Kingdom Atomic energy Authority,26/02/2014,PLANT SPARES,FUSION,BRITE PRECISION,5100300002,476,
United Kingdom Atomic energy Authority,United Kingdom Atomic energy Authority,19/03/2014,PLANT SPARES,FUSION,BRITE PRECISION,5100301371,1506,
United Kingdom Atomic energy Authority,United Kingdom Atomic energy Authority,10/03/2014,PLANT SPARES,FUSION,BRITE PRECISION,5100300809,9317,
United Kingdom Atomic energy Authority,United Kingdom Atomic energy Authority,17/03/2014,PLANT SPARES,FUSION,BRITE PRECISION,5100301370,11928.96,
United Kingdom Atomic energy Authority,United Kingdom Atomic energy Authority,17/03/2014,PLANT SPARES,FUSION,BRITE PRECISION,5100301440,1267,
United Kingdom Atomic energy Authority,United Kingdom Atomic energy Authority,26/02/2014,UTILITIES/ELECTRICITY,PROPERTY,BRITISH GAS BUSINESS,5100300079,412.26,
United Kingdom Atomic energy Authority,United Kingdom Atomic energy Authority,24/03/2014,UTILITIES/ELECTRICITY,PROPERTY,BRITISH GAS BUSINESS,5100301608,68.75,
United Kingdom Atomic energy Authority,United Kingdom Atomic energy Authority,24/03/2014,UTILITIES/ELECTRICITY,PROPERTY,BRITISH GAS BUSINESS,5100301610,1484.08,
United Kingdom Atomic energy Authority,United Kingdom Atomic energy Authority,24/03/2014,UTILITIES/ELECTRICITY,PROPERTY,BRITISH GAS BUSINESS,5100301612,393.34,
United Kingdom Atomic energy Authority,United Kingdom Atomic energy Authority,24/03/2014,UTILITIES/ELECTRICITY,PROPERTY,BRITISH GAS BUSINESS,5100301613,296.95,
United Kingdom Atomic energy Authority,United Kingdom Atomic energy Authority,24/03/2014,UTILITIES/ELECTRICITY,PROPERTY,BRITISH GAS BUSINESS,5100301614,614.54,
United Kingdom Atomic energy Authority,United Kingdom Atomic energy Authority,24/03/2014,UTILITIES/ELECTRICITY,PROPERTY,BRITISH GAS BUSINESS,5100301615,44.3,
United Kingdom Atomic energy Authority,United Kingdom Atomic energy Authority,24/03/2014,UTILITIES/ELECTRICITY,PROPERTY,BRITISH GAS BUSINESS,5100301616,86.92,
United Kingdom Atomic energy Authority,United Kingdom Atomic energy Authority,24/03/2014,UTILITIES/ELECTRICITY,PROPERTY,BRITISH GAS BUSINESS,5100301617,825.3,
United Kingdom Atomic energy Authority,United Kingdom Atomic energy Authority,24/03/2014,UTILITIES/ELECTRICITY,PROPERTY,BRITISH GAS BUSINESS,5100301618,331.24,
United Kingdom Atomic energy Authority,United Kingdom Atomic energy Authority,12/03/2014,PROFESSIONAL SERVICES,PROPERTY,BSP CONSULTING,5100300961,1480,
United Kingdom Atomic energy Authority,United Kingdom Atomic energy Authority,03/03/2014,MATERIALS & SPARES,FUSION,BSRIA INSTRUMENT SOLUTIONS,5100300594,190,
United Kingdom Atomic energy Authority,United Kingdom Atomic energy Authority,24/03/2014,MATERIALS & SPARES,FUSION,BSRIA INSTRUMENT SOLUTIONS,5100301642,333.56,
United Kingdom Atomic energy Authority,United Kingdom Atomic energy Authority,26/02/2014,PERSONAL PROTECTIVE EQUIPMENT,FUSION,BUCK & HICKMAN LTD,5100300281,119.06,
United Kingdom Atomic energy Authority,United Kingdom Atomic energy Authority,03/03/2014,PERSONAL PROTECTIVE EQUIPMENT,FUSION,BUCK & HICKMAN LTD,5100300589,16.8,
United Kingdom Atomic energy Authority,United Kingdom Atomic energy Authority,03/03/2014,PERSONAL PROTECTIVE EQUIPMENT,FUSION,BUCK & HICKMAN LTD,5100298320,149.34,
United Kingdom Atomic energy Authority,United Kingdom Atomic energy Authority,03/03/2014,PERSONAL PROTECTIVE EQUIPMENT,FUSION,BUCK & HICKMAN LTD,5100300590,-149.34,
United Kingdom Atomic energy Authority,United Kingdom Atomic energy Authority,26/02/2014,PERSONAL PROTECTIVE EQUIPMENT,FUSION,BUCK & HICKMAN LTD,5100300054,51.54,
United Kingdom Atomic energy Authority,United Kingdom Atomic energy Authority,03/03/2014,MATERIALS & SPARES,FUSION,BUDGET FORKTRUCKS LTD,5100300604,390,
United Kingdom Atomic energy Authority,United Kingdom Atomic energy Authority,05/03/2014,MATERIALS & SPARES,FUSION,BUDGET FORKTRUCKS LTD,5100300627,312,
United Kingdom Atomic energy Authority,United Kingdom Atomic energy Authority,10/03/2014,MATERIALS & SPARES,FUSION,BUDGET FORKTRUCKS LTD,5100300628,342.33,
United Kingdom Atomic energy Authority,United Kingdom Atomic energy Authority,03/03/2014,MATERIALS & SPARES,FUSION,BUDGET FORKTRUCKS LTD,5100300603,268.67,
United Kingdom Atomic energy Authority,United Kingdom Atomic energy Authority,05/03/2014,MATERIALS & SPARES,FUSION,BUDGET FORKTRUCKS LTD,5100300629,342.33,
United Kingdom Atomic energy Authority,United Kingdom Atomic energy Authority,26/03/2014,CATERING SUPPLIES,SUPPORT SERVICES,BWT UK LTD,5100300972,817.15,
United Kingdom Atomic energy Authority,United Kingdom Atomic energy Authority,10/03/2014,REPAIRS & MAINTENANCE,FUSION,C GERHARDT UK LTD,5100300778,1001,
United Kingdom Atomic energy Authority,United Kingdom Atomic energy Authority,17/03/2014,REPAIRS & MAINTENANCE,FUSION,C GERHARDT UK LTD,5100301299,5420,
United Kingdom Atomic energy Authority,United Kingdom Atomic energy Authority,26/03/2014,TELECOMMUNICATIONS,FUSION,CABLEWISE,5100301925,270,
United Kingdom Atomic energy Authority,United Kingdom Atomic energy Authority,05/03/2014,PLANT & EQUIPMENT,FUSION,CALUMET,5100299997,334,
United Kingdom Atomic energy Authority,United Kingdom Atomic energy Authority,26/02/2014,PLANT & EQUIPMENT,FUSION,CALUMET,5100300059,47.99,
United Kingdom Atomic energy Authority,United Kingdom Atomic energy Authority,24/03/2014,MATERIALS & SPARES,FUSION,CAMBRIDGE SENSOTEC LTD,5100301783,15219,
United Kingdom Atomic energy Authority,United Kingdom Atomic energy Authority,03/03/2014,MATERIALS & SPARES,FUSION,CANBERRA UK LTD,5100299804,572,
United Kingdom Atomic energy Authority,United Kingdom Atomic energy Authority,24/03/2014,MATERIALS & SPARES,FUSION,CANBERRA UK LTD,5100300654,13545,
United Kingdom Atomic energy Authority,United Kingdom Atomic energy Authority,19/03/2014,MATERIALS & SPARES,FUSION,CANBERRA UK LTD,5100301310,18802,
United Kingdom Atomic energy Authority,United Kingdom Atomic energy Authority,10/03/2014,TRAINING COURSE FEES,SUPPORT SERVICES,CANON FIRE PROTECTION,5100300631,540,
United Kingdom Atomic energy Authority,United Kingdom Atomic energy Authority,10/03/2014,TRAINING COURSE FEES,SUPPORT SERVICES,CANON FIRE PROTECTION,5100301061,320,
United Kingdom Atomic energy Authority,United Kingdom Atomic energy Authority,24/03/2014,TRAINING COURSE FEES,SUPPORT SERVICES,CANON FIRE PROTECTION,5100301548,320,
United Kingdom Atomic energy Authority,United Kingdom Atomic energy Authority,19/03/2014,PLANT & EQUIPMENT,FUSION,CARBONE LORRAINE COMPOSANTS SAS,5100297502,77507.86,
United Kingdom Atomic energy Authority,United Kingdom Atomic energy Authority,26/02/2014,CONSUMABLES,FUSION,CARILLON INDUSTRIAL SERVICES LTD,5100300439,18.38,
United Kingdom Atomic energy Authority,United Kingdom Atomic energy Authority,03/03/2014,CONSUMABLES,FUSION,CARILLON INDUSTRIAL SERVICES LTD,5100300650,101.7,
United Kingdom Atomic energy Authority,United Kingdom Atomic energy Authority,03/03/2014,CONSUMABLES,FUSION,CARILLON INDUSTRIAL SERVICES LTD,5100300651,128.38,
United Kingdom Atomic energy Authority,United Kingdom Atomic energy Authority,03/03/2014,CONSUMABLES,FUSION,CARILLON INDUSTRIAL SERVICES LTD,5100300652,53.34,
United Kingdom Atomic energy Authority,United Kingdom Atomic energy Authority,17/03/2014,CONSUMABLES,FUSION,CARILLON INDUSTRIAL SERVICES LTD,5100301077,100.48,
United Kingdom Atomic energy Authority,United Kingdom Atomic energy Authority,17/03/2014,CONSUMABLES,FUSION,CARILLON INDUSTRIAL SERVICES LTD,5100301078,335.51,
United Kingdom Atomic energy Authority,United Kingdom Atomic energy Authority,24/03/2014,CONSUMABLES,FUSION,CARILLON INDUSTRIAL SERVICES LTD,5100301528,22.68,
United Kingdom Atomic energy Authority,United Kingdom Atomic energy Authority,24/03/2014,CONSUMABLES,FUSION,CARILLON INDUSTRIAL SERVICES LTD,5100301529,125.46,
United Kingdom Atomic energy Authority,United Kingdom Atomic energy Authority,24/03/2014,CONSUMABLES,FUSION,CARILLON INDUSTRIAL SERVICES LTD,5100301530,197.4,
United Kingdom Atomic energy Authority,United Kingdom Atomic energy Authority,05/03/2014,MATERIALS & SPARES,FUSION,CARMO PLASTICS LTD,5100299830,1455.38,
United Kingdom Atomic energy Authority,United Kingdom Atomic energy Authority,26/02/2014,COMPENSATION AND LEGAL FEES,SUPPORT SERVICES,CATER LEYDON MILLARD LTD,5100300044,1417.5,
United Kingdom Atomic energy Authority,United Kingdom Atomic energy Authority,26/02/2014,COMPENSATION AND LEGAL FEES,SUPPORT SERVICES,CATER LEYDON MILLARD LTD,5100300045,612.5,
United Kingdom Atomic energy Authority,United Kingdom Atomic energy Authority,26/02/2014,COMPENSATION AND LEGAL FEES,SUPPORT SERVICES,CATER LEYDON MILLARD LTD,5100300046,2170,
United Kingdom Atomic energy Authority,United Kingdom Atomic energy Authority,26/02/2014,COMPENSATION AND LEGAL FEES,SUPPORT SERVICES,CATER LEYDON MILLARD LTD,5100300047,420,
United Kingdom Atomic energy Authority,United Kingdom Atomic energy Authority,26/02/2014,COMPENSATION AND LEGAL FEES,SUPPORT SERVICES,CATER LEYDON MILLARD LTD,5100300048,70,
United Kingdom Atomic energy Authority,United Kingdom Atomic energy Authority,26/02/2014,COMPENSATION AND LEGAL FEES,SUPPORT SERVICES,CATER LEYDON MILLARD LTD,5100300049,3647.5,
United Kingdom Atomic energy Authority,United Kingdom Atomic energy Authority,26/02/2014,COMPENSATION AND LEGAL FEES,SUPPORT SERVICES,CATER LEYDON MILLARD LTD,5100300050,245,
United Kingdom Atomic energy Authority,United Kingdom Atomic energy Authority,10/03/2014,COMPENSATION AND LEGAL FEES,SUPPORT SERVICES,CATER LEYDON MILLARD LTD,5100300900,490,
United Kingdom Atomic energy Authority,United Kingdom Atomic energy Authority,10/03/2014,COMPENSATION AND LEGAL FEES,SUPPORT SERVICES,CATER LEYDON MILLARD LTD,5100300901,280,
United Kingdom Atomic energy Authority,United Kingdom Atomic energy Authority,24/03/2014,COMPENSATION AND LEGAL FEES,SUPPORT SERVICES,CATER LEYDON MILLARD LTD,5100301733,437.5,
United Kingdom Atomic energy Authority,United Kingdom Atomic energy Authority,24/03/2014,COMPENSATION AND LEGAL FEES,SUPPORT SERVICES,CATER LEYDON MILLARD LTD,5100301734,70,
United Kingdom Atomic energy Authority,United Kingdom Atomic energy Authority,24/03/2014,COMPENSATION AND LEGAL FEES,SUPPORT SERVICES,CATER LEYDON MILLARD LTD,5100301735,560,
United Kingdom Atomic energy Authority,United Kingdom Atomic energy Authority,27/03/2014,COMPENSATION AND LEGAL FEES,SUPPORT SERVICES,CATER LEYDON MILLARD LTD,5100301985,-280,
United Kingdom Atomic energy Authority,United Kingdom Atomic energy Authority,27/03/2014,COMPENSATION AND LEGAL FEES,SUPPORT SERVICES,CATER LEYDON MILLARD LTD,5100301986,280,
United Kingdom Atomic energy Authority,United Kingdom Atomic energy Authority,10/03/2014,MATERIALS & SPARES,FUSION,CBL ELECTRIC VEHICLES LTD,5100300958,26.42,
United Kingdom Atomic energy Authority,United Kingdom Atomic energy Authority,26/03/2014,OTHER STAFF COSTS,FUSION,CBS Butler Ltd,1900059584," 6,267.60",
United Kingdom Atomic energy Authority,United Kingdom Atomic energy Authority,26/02/2014,TRAINING COSTS,SUPPORT SERVICES,CENTRAL LAW TRAINING,5100300231,90,
United Kingdom Atomic energy Authority,United Kingdom Atomic energy Authority,03/03/2014,CONSUMABLES,FUSION,CENTRAL METAL & ALLOYS LTD,5100300646,685,
United Kingdom Atomic energy Authority,United Kingdom Atomic energy Authority,17/03/2014,CONSUMABLES,FUSION,CENTRAL METAL & ALLOYS LTD,5100301189,1351.1,
United Kingdom Atomic energy Authority,United Kingdom Atomic energy Authority,26/03/2014,HEALTH PHYSICS,FUSION,CENTRAL RESEARCH LABORATORIES(CRL),5100301565,151606.2,
United Kingdom Atomic energy Authority,United Kingdom Atomic energy Authority,17/03/2014,PLANT & EQUIPMENT,FUSION,CERAMIC SUBSTRATES AND COMPONENTS L,5100300896,1500.38,
United Kingdom Atomic energy Authority,United Kingdom Atomic energy Authority,17/03/2014,MATERIALS & SPARES,FUSION,CHANNEL SAFETY SERVICES LTD,5100301457,600,
United Kingdom Atomic energy Authority,United Kingdom Atomic energy Authority,19/03/2014,MATERIALS & SPARES,FUSION,CHANNEL SAFETY SERVICES LTD,5100301476,474.75,
United Kingdom Atomic energy Authority,United Kingdom Atomic energy Authority,19/03/2014,MATERIALS & SPARES,FUSION,CHANNEL SAFETY SERVICES LTD,5100301477,300,
United Kingdom Atomic energy Authority,United Kingdom Atomic energy Authority,17/03/2014,MATERIALS: HAZARDOUS,FUSION,CHEMTECH WASTE MANAGEMENT,5100301372,386,
United Kingdom Atomic energy Authority,United Kingdom Atomic energy Authority,10/03/2014,SECURITY & EMERGENCY,FUSION,CHUBB ELECTRONIC SECURITY LTD,5100301004,2895,
United Kingdom Atomic energy Authority,United Kingdom Atomic energy Authority,26/03/2014,REPAIRS & MAINTENANCE,FUSION,CHUBB ELECTRONIC SECURITY LTD,5100301728,422.82,
United Kingdom Atomic energy Authority,United Kingdom Atomic energy Authority,26/03/2014,REPAIRS & MAINTENANCE,FUSION,CHUBB ELECTRONIC SECURITY LTD,5100301727,228.55,
United Kingdom Atomic energy Authority,United Kingdom Atomic energy Authority,26/03/2014,REPAIRS & MAINTENANCE,FUSION,CHUBB ELECTRONIC SECURITY LTD,5100301729,571.37,
United Kingdom Atomic energy Authority,United Kingdom Atomic energy Authority,26/02/2014,MATERIALS & SPARES,FUSION,CK GAS PRODUCTS LTD,5100300038,45,
United Kingdom Atomic energy Authority,United Kingdom Atomic energy Authority,03/03/2014,LAUNDRY,FUSION,CLEAN LINEN SERVICES LTD,5100300578,80.9,
United Kingdom Atomic energy Authority,United Kingdom Atomic energy Authority,10/03/2014,,SUPPORT SERVICES,CLEAN Linen Services Ltd,2000220519, 97.08,
United Kingdom Atomic energy Authority,United Kingdom Atomic energy Authority,17/03/2014,CATERING,PROPERTY,CLEANSING SERVICE GROUP LTD,5100301210,74.3,
United Kingdom Atomic energy Authority,United Kingdom Atomic energy Authority,17/03/2014,CATERING,PROPERTY,CLEANSING SERVICE GROUP LTD,5100301211,54.6,
United Kingdom Atomic energy Authority,United Kingdom Atomic energy Authority,26/02/2014,UTILITIES/GAS,PROPERTY,COFELY LTD,5100300429,98620.25,
United Kingdom Atomic energy Authority,United Kingdom Atomic energy Authority,26/02/2014,UTILITIES/GAS,PROPERTY,COFELY LTD,5100300431,5989.94,
United Kingdom Atomic energy Authority,United Kingdom Atomic energy Authority,05/03/2014,UTILITIES/GAS,PROPERTY,COFELY LTD,5100300637,26582.5,
United Kingdom Atomic energy Authority,United Kingdom Atomic energy Authority,05/03/2014,UTILITIES/GAS,PROPERTY,COFELY LTD,5100300638,20044.73,
United Kingdom Atomic energy Authority,United Kingdom Atomic energy Authority,24/03/2014,UTILITIES/GAS,PROPERTY,COFELY LTD,5100301621,83949.68,
United Kingdom Atomic energy Authority,United Kingdom Atomic energy Authority,24/03/2014,UTILITIES/GAS,PROPERTY,COFELY LTD,5100301622,5098.8,
United Kingdom Atomic energy Authority,United Kingdom Atomic energy Authority,26/02/2014,MATERIALS & SPARES,FUSION,COMPLETE PCB SERVICES LTD,5100300369,492,
United Kingdom Atomic energy Authority,United Kingdom Atomic energy Authority,03/03/2014,MATERIALS & SPARES,FUSION,COMPLETE PCB SERVICES LTD,5100300600,1263.3,
United Kingdom Atomic energy Authority,United Kingdom Atomic energy Authority,10/03/2014,MATERIALS & SPARES,FUSION,COMPLETE PCB SERVICES LTD,5100300717,3378,
United Kingdom Atomic energy Authority,United Kingdom Atomic energy Authority,26/03/2014,MATERIALS & SPARES,FUSION,COMPLETE PCB SERVICES LTD,5100301842,1334.76,
United Kingdom Atomic energy Authority,United Kingdom Atomic energy Authority,17/03/2014,PLANT SPARES,FUSION,CONDEC INDUSTRIAL MAINTENANCE,5100301392,140,
United Kingdom Atomic energy Authority,United Kingdom Atomic energy Authority,24/03/2014,PLANT SPARES,FUSION,CONDEC INDUSTRIAL MAINTENANCE,5100301798,135,
United Kingdom Atomic energy Authority,United Kingdom Atomic energy Authority,10/03/2014,PLANT SPARES,FUSION,CONDEC INDUSTRIAL MAINTENANCE,5100300804,225,
United Kingdom Atomic energy Authority,United Kingdom Atomic energy Authority,10/03/2014,PLANT SPARES,FUSION,CONDEC INDUSTRIAL MAINTENANCE,5100300805,460,
United Kingdom Atomic energy Authority,United Kingdom Atomic energy Authority,10/03/2014,PLANT SPARES,FUSION,CONDEC INDUSTRIAL MAINTENANCE,5100300807,435,
United Kingdom Atomic energy Authority,United Kingdom Atomic energy Authority,17/03/2014,PLANT SPARES,FUSION,CONDEC INDUSTRIAL MAINTENANCE,5100301390,210,
United Kingdom Atomic energy Authority,United Kingdom Atomic energy Authority,17/03/2014,PLANT SPARES,FUSION,CONDEC INDUSTRIAL MAINTENANCE,5100301391,360,
United Kingdom Atomic energy Authority,United Kingdom Atomic energy Authority,03/03/2014,PROFESSIONAL SERVICES,FUSION,CONNAUGHT COMPLIANCE SERVICES LTD,5100300521,1140,
United Kingdom Atomic energy Authority,United Kingdom Atomic energy Authority,26/02/2014,PROFESSIONAL SERVICES,PROPERTY,CONNAUGHT COMPLIANCE SERVICES LTD,5100299946,456,
United Kingdom Atomic energy Authority,United Kingdom Atomic energy Authority,26/03/2014,PROFESSIONAL SERVICES,PROPERTY,CONNAUGHT COMPLIANCE SERVICES LTD,5100299948,380,
United Kingdom Atomic energy Authority,United Kingdom Atomic energy Authority,26/03/2014,PROFESSIONAL SERVICES,PROPERTY,CONNAUGHT COMPLIANCE SERVICES LTD,5100299949,380,
United Kingdom Atomic energy Authority,United Kingdom Atomic energy Authority,26/03/2014,PROFESSIONAL SERVICES,PROPERTY,CONNAUGHT COMPLIANCE SERVICES LTD,5100300520,7904,
United Kingdom Atomic energy Authority,United Kingdom Atomic energy Authority,26/03/2014,PROFESSIONAL SERVICES,PROPERTY,CONNAUGHT COMPLIANCE SERVICES LTD,5100301736,-7904,
United Kingdom Atomic energy Authority,United Kingdom Atomic energy Authority,03/03/2014,TRAINING COURSE FEES,FUSION,Convention Is Ltd,1900059517, 750.00,
United Kingdom Atomic energy Authority,United Kingdom Atomic energy Authority,24/03/2014,MATERIALS & SPARES,FUSION,CPC PLC,5100301535,197.31,
United Kingdom Atomic energy Authority,United Kingdom Atomic energy Authority,03/03/2014,MATERIALS & SPARES,FUSION,CPC PLC,5100300622,25.82,
United Kingdom Atomic energy Authority,United Kingdom Atomic energy Authority,24/03/2014,MATERIALS & SPARES,FUSION,CPC PLC,5100301534,49.84,
United Kingdom Atomic energy Authority,United Kingdom Atomic energy Authority,26/03/2014,MATERIALS & SPARES,FUSION,CPC PLC,5100301869,51.78,
United Kingdom Atomic energy Authority,United Kingdom Atomic energy Authority,26/02/2014,MATERIALS & SPARES,FUSION,CPC PLC,5100300061,86.92,
United Kingdom Atomic energy Authority,United Kingdom Atomic energy Authority,03/03/2014,MATERIALS & SPARES,FUSION,CPC PLC,5100300623,9.5,
United Kingdom Atomic energy Authority,United Kingdom Atomic energy Authority,26/02/2014,PLANT & EQUIPMENT,FUSION,Crawford Scientific,1900059503, 961.80,
United Kingdom Atomic energy Authority,United Kingdom Atomic energy Authority,26/02/2014,PLANT & EQUIPMENT,FUSION,CRDM LIMITED,5100300383,2320.7,
United Kingdom Atomic energy Authority,United Kingdom Atomic energy Authority,17/03/2014,MATERIALS & SPARES,SUPPORT SERVICES,CROMWELL LTD,5100301396,131.14,
United Kingdom Atomic energy Authority,United Kingdom Atomic energy Authority,26/02/2014,MATERIALS & SPARES,FUSION,CROMWELL LTD,5100300103,227.03,
United Kingdom Atomic energy Authority,United Kingdom Atomic energy Authority,26/02/2014,MATERIALS & SPARES,FUSION,CROMWELL LTD,5100300107,525.23,
United Kingdom Atomic energy Authority,United Kingdom Atomic energy Authority,26/02/2014,MATERIALS & SPARES,FUSION,CROMWELL LTD,5100300109,-77.18,
United Kingdom Atomic energy Authority,United Kingdom Atomic energy Authority,26/02/2014,MATERIALS & SPARES,FUSION,CROMWELL LTD,5100300387,166.56,
United Kingdom Atomic energy Authority,United Kingdom Atomic energy Authority,03/03/2014,MATERIALS & SPARES,FUSION,CROMWELL LTD,5100300641,253.1,
United Kingdom Atomic energy Authority,United Kingdom Atomic energy Authority,03/03/2014,MATERIALS & SPARES,FUSION,CROMWELL LTD,5100300642,29.86,
United Kingdom Atomic energy Authority,United Kingdom Atomic energy Authority,17/03/2014,MATERIALS & SPARES,FUSION,CROMWELL LTD,5100301216,141.17,
United Kingdom Atomic energy Authority,United Kingdom Atomic energy Authority,17/03/2014,MATERIALS & SPARES,FUSION,CROMWELL LTD,5100301221,299.99,
United Kingdom Atomic energy Authority,United Kingdom Atomic energy Authority,17/03/2014,MATERIALS & SPARES,FUSION,CROMWELL LTD,5100301223,194.14,
United Kingdom Atomic energy Authority,United Kingdom Atomic energy Authority,05/03/2014,MATERIALS & SPARES,FUSION,CROMWELL LTD,5100300644,68.96,
United Kingdom Atomic energy Authority,United Kingdom Atomic energy Authority,17/03/2014,MATERIALS & SPARES,FUSION,CROMWELL LTD,5100301217,105.47,
United Kingdom Atomic energy Authority,United Kingdom Atomic energy Authority,26/02/2014,MATERIALS & SPARES,FUSION,CROMWELL LTD,5100300105,79.2,
United Kingdom Atomic energy Authority,United Kingdom Atomic energy Authority,26/02/2014,MATERIALS & SPARES,FUSION,CROMWELL LTD,5100300106,258.6,
United Kingdom Atomic energy Authority,United Kingdom Atomic energy Authority,17/03/2014,MATERIALS & SPARES,FUSION,CROMWELL LTD,5100301219,43.7,
United Kingdom Atomic energy Authority,United Kingdom Atomic energy Authority,17/03/2014,MATERIALS & SPARES,FUSION,CROMWELL LTD,5100301393,173.28,
United Kingdom Atomic energy Authority,United Kingdom Atomic energy Authority,17/03/2014,MATERIALS & SPARES,FUSION,CROMWELL LTD,5100301397,37.36,
United Kingdom Atomic energy Authority,United Kingdom Atomic energy Authority,26/02/2014,MATERIALS & SPARES,FUSION,CROMWELL LTD,5100300104,18.99,
United Kingdom Atomic energy Authority,United Kingdom Atomic energy Authority,26/02/2014,MATERIALS & SPARES,FUSION,CROMWELL LTD,5100300390,21.73,
United Kingdom Atomic energy Authority,United Kingdom Atomic energy Authority,03/03/2014,MATERIALS & SPARES,FUSION,CROMWELL LTD,5100300640,62.64,
United Kingdom Atomic energy Authority,United Kingdom Atomic energy Authority,03/03/2014,MATERIALS & SPARES,FUSION,CROMWELL LTD,5100300643,79,
United Kingdom Atomic energy Authority,United Kingdom Atomic energy Authority,17/03/2014,MATERIALS & SPARES,FUSION,CROMWELL LTD,5100301394,111.26,
United Kingdom Atomic energy Authority,United Kingdom Atomic energy Authority,17/03/2014,MATERIALS & SPARES,FUSION,CROMWELL LTD,5100301395,47.38,
United Kingdom Atomic energy Authority,United Kingdom Atomic energy Authority,26/02/2014,MATERIALS & SPARES,FUSION,CROMWELL LTD,5100300108,19.29,
United Kingdom Atomic energy Authority,United Kingdom Atomic energy Authority,26/02/2014,PROFESSIONAL SERVICES,SUPPORT SERVICES,CSC COMPUTER SERVICES,5100300041,13599.4,
United Kingdom Atomic energy Authority,United Kingdom Atomic energy Authority,26/02/2014,PROFESSIONAL SERVICES,SUPPORT SERVICES,CSC COMPUTER SERVICES,5100300042,25856.49,
United Kingdom Atomic energy Authority,United Kingdom Atomic energy Authority,26/02/2014,PROFESSIONAL SERVICES,SUPPORT SERVICES,CSC COMPUTER SERVICES,5100300321,5528.52,
United Kingdom Atomic energy Authority,United Kingdom Atomic energy Authority,03/03/2014,PLANT SPARES,FUSION,CSE INDUSTRIAL ELECTRICAL DISTRIBUT,5100300366,1220.9,
United Kingdom Atomic energy Authority,United Kingdom Atomic energy Authority,10/03/2014,PROFESSIONAL SERVICES,SUPPORT SERVICES,CSS WORKSAFE,5100300519,750,
United Kingdom Atomic energy Authority,United Kingdom Atomic energy Authority,03/03/2014,SOFTWARE,FUSION,CULHAM ELECTROMAGNETICS LTD,5100300598,32187.5,
United Kingdom Atomic energy Authority,United Kingdom Atomic energy Authority,03/03/2014,PLANT SPARES,FUSION,CUTWEL LTD,5100300372,119.52,
United Kingdom Atomic energy Authority,United Kingdom Atomic energy Authority,10/03/2014,PLANT SPARES,FUSION,CUTWEL LTD,5100300716,130.76,
United Kingdom Atomic energy Authority,United Kingdom Atomic energy Authority,12/03/2014,BUILDING REPAIRS,FUSION,D CLOUGH LTD,5100300942,1213.46,
United Kingdom Atomic energy Authority,United Kingdom Atomic energy Authority,26/02/2014,BUILDING REPAIRS,FUSION,D CLOUGH LTD,5100299929,1814.76,
United Kingdom Atomic energy Authority,United Kingdom Atomic energy Authority,05/03/2014,BUILDING REPAIRS,FUSION,D CLOUGH LTD,5100300833,10449.1,
United Kingdom Atomic energy Authority,United Kingdom Atomic energy Authority,10/03/2014,BUILDING REPAIRS,FUSION,D CLOUGH LTD,5100300218,5951.14,
United Kingdom Atomic energy Authority,United Kingdom Atomic energy Authority,10/03/2014,BUILDING REPAIRS,FUSION,D CLOUGH LTD,5100300821,-876.16,
United Kingdom Atomic energy Authority,United Kingdom Atomic energy Authority,24/03/2014,BUILDING REPAIRS,FUSION,D CLOUGH LTD,5100301776,438,
United Kingdom Atomic energy Authority,United Kingdom Atomic energy Authority,26/03/2014,PLANT & EQUIPMENT,FUSION,DAVIS INDUSTRIAL PLASTICS,5100301922,45.58,
United Kingdom Atomic energy Authority,United Kingdom Atomic energy Authority,26/03/2014,PROFESSIONAL SERVICES,FUSION,DESIGNRULE LTD,5100301916,6860,
United Kingdom Atomic energy Authority,United Kingdom Atomic energy Authority,26/02/2014,PROFESSIONAL SERVICES,SUPPORT SERVICES,DISCLOSURE SCOTLAND,5100300051,150,
United Kingdom Atomic energy Authority,United Kingdom Atomic energy Authority,26/02/2014,PLANT & EQUIPMENT,FUSION,Doortechnik,1900059502," 3,589.02",
United Kingdom Atomic energy Authority,United Kingdom Atomic energy Authority,25/03/2014,CHARITABLE DONATIONS,SUPPORT SERVICES,Down's Syndrome Oxford,1900059580, 150.00,
United Kingdom Atomic energy Authority,United Kingdom Atomic energy Authority,05/03/2014,MATERIALS & SPARES,FUSION,DRAEGER SAFETY,5100300575,2173,
United Kingdom Atomic energy Authority,United Kingdom Atomic energy Authority,26/02/2014,PLANT SPARES,FUSION,DRAWTREND LTD,5100300427,616,
United Kingdom Atomic energy Authority,United Kingdom Atomic energy Authority,03/03/2014,PLANT SPARES,FUSION,DRAWTREND LTD,5100300428,1050,
United Kingdom Atomic energy Authority,United Kingdom Atomic energy Authority,10/03/2014,MATERIALS & SPARES,FUSION,DURA COMPOSITES LTD,5100300112,1534.18,
United Kingdom Atomic energy Authority,United Kingdom Atomic energy Authority,17/03/2014,MATERIALS & SPARES,FUSION,DURA COMPOSITES LTD,5100301065,649.48,
United Kingdom Atomic energy Authority,United Kingdom Atomic energy Authority,03/03/2014,MATERIALS & SPARES,FUSION,DURA COMPOSITES LTD,5100300576,1614.3,
United Kingdom Atomic energy Authority,United Kingdom Atomic energy Authority,03/03/2014,MATERIALS & SPARES,FUSION,DURBIN METAL INDUSTRIES LTD,5100300488,75.4,
United Kingdom Atomic energy Authority,United Kingdom Atomic energy Authority,03/03/2014,MATERIALS & SPARES,FUSION,DURBIN METAL INDUSTRIES LTD,5100300494,139.8,
United Kingdom Atomic energy Authority,United Kingdom Atomic energy Authority,24/03/2014,MATERIALS & SPARES,FUSION,DURBIN METAL INDUSTRIES LTD,5100301500,140.15,
United Kingdom Atomic energy Authority,United Kingdom Atomic energy Authority,24/03/2014,MATERIALS & SPARES,FUSION,DURBIN METAL INDUSTRIES LTD,5100301550,-139.8,
United Kingdom Atomic energy Authority,United Kingdom Atomic energy Authority,03/03/2014,MATERIALS & SPARES,FUSION,DURBIN METAL INDUSTRIES LTD,5100300495,285.85,
United Kingdom Atomic energy Authority,United Kingdom Atomic energy Authority,24/03/2014,MATERIALS & SPARES,FUSION,DURBIN METAL INDUSTRIES LTD,5100301499,29.9,
United Kingdom Atomic energy Authority,United Kingdom Atomic energy Authority,17/03/2014,MATERIALS & SPARES,FUSION,DURBIN METAL INDUSTRIES LTD,5100299759,106.14,
United Kingdom Atomic energy Authority,United Kingdom Atomic energy Authority,10/03/2014,MATERIALS & SPARES,FUSION,DURBIN METAL INDUSTRIES LTD,5100299769,43.8,
United Kingdom Atomic energy Authority,United Kingdom Atomic energy Authority,26/02/2014,MATERIALS & SPARES,FUSION,DURBIN METAL INDUSTRIES LTD,5100300409,1032.5,
United Kingdom Atomic energy Authority,United Kingdom Atomic energy Authority,26/02/2014,MATERIALS & SPARES,FUSION,DURBIN METAL INDUSTRIES LTD,5100300412,70.82,
United Kingdom Atomic energy Authority,United Kingdom Atomic energy Authority,26/02/2014,MATERIALS & SPARES,FUSION,DURBIN METAL INDUSTRIES LTD,5100300413,122.7,
United Kingdom Atomic energy Authority,United Kingdom Atomic energy Authority,03/03/2014,MATERIALS & SPARES,FUSION,DURBIN METAL INDUSTRIES LTD,5100300489,51.75,
United Kingdom Atomic energy Authority,United Kingdom Atomic energy Authority,03/03/2014,MATERIALS & SPARES,FUSION,DURBIN METAL INDUSTRIES LTD,5100300496,138.25,
United Kingdom Atomic energy Authority,United Kingdom Atomic energy Authority,03/03/2014,MATERIALS & SPARES,FUSION,DURBIN METAL INDUSTRIES LTD,5100300497,36.5,
United Kingdom Atomic energy Authority,United Kingdom Atomic energy Authority,03/03/2014,MATERIALS & SPARES,FUSION,DURBIN METAL INDUSTRIES LTD,5100300499,183,
United Kingdom Atomic energy Authority,United Kingdom Atomic energy Authority,03/03/2014,MATERIALS & SPARES,FUSION,DURBIN METAL INDUSTRIES LTD,5100300500,13.9,
United Kingdom Atomic energy Authority,United Kingdom Atomic energy Authority,03/03/2014,MATERIALS & SPARES,FUSION,DURBIN METAL INDUSTRIES LTD,5100300581,298,
United Kingdom Atomic energy Authority,United Kingdom Atomic energy Authority,03/03/2014,MATERIALS & SPARES,FUSION,DURBIN METAL INDUSTRIES LTD,5100300659,54.75,
United Kingdom Atomic energy Authority,United Kingdom Atomic energy Authority,03/03/2014,MATERIALS & SPARES,FUSION,DURBIN METAL INDUSTRIES LTD,5100300660,59.25,
United Kingdom Atomic energy Authority,United Kingdom Atomic energy Authority,03/03/2014,MATERIALS & SPARES,FUSION,DURBIN METAL INDUSTRIES LTD,5100300661,42.2,
United Kingdom Atomic energy Authority,United Kingdom Atomic energy Authority,10/03/2014,MATERIALS & SPARES,FUSION,DURBIN METAL INDUSTRIES LTD,5100300795,136.42,
United Kingdom Atomic energy Authority,United Kingdom Atomic energy Authority,17/03/2014,MATERIALS & SPARES,FUSION,DURBIN METAL INDUSTRIES LTD,5100301076,468.75,
United Kingdom Atomic energy Authority,United Kingdom Atomic energy Authority,12/03/2014,MATERIALS & SPARES,FUSION,DURBIN METAL INDUSTRIES LTD,5100301271,-106.14,
United Kingdom Atomic energy Authority,United Kingdom Atomic energy Authority,12/03/2014,MATERIALS & SPARES,FUSION,DURBIN METAL INDUSTRIES LTD,5100301272,106.14,
United Kingdom Atomic energy Authority,United Kingdom Atomic energy Authority,17/03/2014,MATERIALS & SPARES,FUSION,DURBIN METAL INDUSTRIES LTD,5100301330,-106.14,
United Kingdom Atomic energy Authority,United Kingdom Atomic energy Authority,24/03/2014,MATERIALS & SPARES,FUSION,DURBIN METAL INDUSTRIES LTD,5100301497,270.86,
United Kingdom Atomic energy Authority,United Kingdom Atomic energy Authority,24/03/2014,MATERIALS & SPARES,FUSION,DURBIN METAL INDUSTRIES LTD,5100301498,43.75,
United Kingdom Atomic energy Authority,United Kingdom Atomic energy Authority,24/03/2014,MATERIALS & SPARES,FUSION,DURBIN METAL INDUSTRIES LTD,5100301531,147.5,
United Kingdom Atomic energy Authority,United Kingdom Atomic energy Authority,24/03/2014,MATERIALS & SPARES,FUSION,DURBIN METAL INDUSTRIES LTD,5100301532,113.1,
United Kingdom Atomic energy Authority,United Kingdom Atomic energy Authority,24/03/2014,MATERIALS & SPARES,FUSION,DURBIN METAL INDUSTRIES LTD,5100301533,373,
United Kingdom Atomic energy Authority,United Kingdom Atomic energy Authority,24/03/2014,PLANT & EQUIPMENT,FUSION,DYNEX SEMICONDUTOR,5100301503,3200,
United Kingdom Atomic energy Authority,United Kingdom Atomic energy Authority,10/03/2014,UTILITIES/ELECTRICITY,FUSION,EDF ENERGY,5100300876,90.29,
United Kingdom Atomic energy Authority,United Kingdom Atomic energy Authority,10/03/2014,UTILITIES/ELECTRICITY,FUSION,EDF ENERGY,5100301038,187192.03,
United Kingdom Atomic energy Authority,United Kingdom Atomic energy Authority,12/03/2014,UTILITIES/ELECTRICITY,PROPERTY,EDF ENERGY,5100300865,22077.73,
United Kingdom Atomic energy Authority,United Kingdom Atomic energy Authority,12/03/2014,UTILITIES/ELECTRICITY,PROPERTY,EDF ENERGY,5100300866,1899.11,
United Kingdom Atomic energy Authority,United Kingdom Atomic energy Authority,12/03/2014,UTILITIES/ELECTRICITY,PROPERTY,EDF ENERGY,5100300867,782.81,
United Kingdom Atomic energy Authority,United Kingdom Atomic energy Authority,12/03/2014,UTILITIES/ELECTRICITY,PROPERTY,EDF ENERGY,5100300873,21533.24,
United Kingdom Atomic energy Authority,United Kingdom Atomic energy Authority,12/03/2014,UTILITIES/ELECTRICITY,PROPERTY,EDF ENERGY,5100300878,1443.32,
United Kingdom Atomic energy Authority,United Kingdom Atomic energy Authority,12/03/2014,UTILITIES/ELECTRICITY,PROPERTY,EDF ENERGY,5100300880,3137.92,
United Kingdom Atomic energy Authority,United Kingdom Atomic energy Authority,12/03/2014,UTILITIES/ELECTRICITY,PROPERTY,EDF ENERGY,5100301009,45.34,
United Kingdom Atomic energy Authority,United Kingdom Atomic energy Authority,12/03/2014,UTILITIES/ELECTRICITY,PROPERTY,EDF ENERGY,5100301040,331.73,
United Kingdom Atomic energy Authority,United Kingdom Atomic energy Authority,17/03/2014,UTILITIES/ELECTRICITY,PROPERTY,EDF ENERGY,5100301053,35088.56,
United Kingdom Atomic energy Authority,United Kingdom Atomic energy Authority,26/02/2014,PROFESSIONAL SERVICES,FUSION,EDM PRECISION TECHNOLOGIES,5100300284,5970,
United Kingdom Atomic energy Authority,United Kingdom Atomic energy Authority,26/02/2014,PROFESSIONAL SERVICES,FUSION,EDM PRECISION TECHNOLOGIES,5100300470,-200,
United Kingdom Atomic energy Authority,United Kingdom Atomic energy Authority,26/02/2014,MATERIALS & SPARES,FUSION,EDMUND OPTICS LTD,5100300381,149.5,
United Kingdom Atomic energy Authority,United Kingdom Atomic energy Authority,19/03/2014,PLANT & EQUIPMENT,FUSION,EDMUNDSON ELECTRICALS LTD,5100301318,47.63,
United Kingdom Atomic energy Authority,United Kingdom Atomic energy Authority,10/03/2014,PLANT & EQUIPMENT,FUSION,EDMUNDSON ELECTRICALS LTD,5100300757,324.3,
United Kingdom Atomic energy Authority,United Kingdom Atomic energy Authority,26/02/2014,PLANT & EQUIPMENT,FUSION,EDMUNDSON ELECTRICALS LTD,5100300066,52.07,
United Kingdom Atomic energy Authority,United Kingdom Atomic energy Authority,17/03/2014,PLANT & EQUIPMENT,FUSION,EDMUNDSON ELECTRICALS LTD,5100301224,515.38,
United Kingdom Atomic energy Authority,United Kingdom Atomic energy Authority,03/03/2014,PLANT & EQUIPMENT,FUSION,EDMUNDSON ELECTRICALS LTD,5100300501,302.5,
United Kingdom Atomic energy Authority,United Kingdom Atomic energy Authority,26/02/2014,PLANT & EQUIPMENT,FUSION,EDMUNDSON ELECTRICALS LTD,5100300111,225.94,
United Kingdom Atomic energy Authority,United Kingdom Atomic energy Authority,26/02/2014,PLANT & EQUIPMENT,FUSION,EDMUNDSON ELECTRICALS LTD,5100300227,285.15,
United Kingdom Atomic energy Authority,United Kingdom Atomic energy Authority,26/02/2014,PLANT & EQUIPMENT,FUSION,EDMUNDSON ELECTRICALS LTD,5100300228,57.12,
United Kingdom Atomic energy Authority,United Kingdom Atomic energy Authority,26/02/2014,PLANT & EQUIPMENT,FUSION,EDMUNDSON ELECTRICALS LTD,5100300229,320.03,
United Kingdom Atomic energy Authority,United Kingdom Atomic energy Authority,03/03/2014,PLANT & EQUIPMENT,FUSION,EDMUNDSON ELECTRICALS LTD,5100300502,162.72,
United Kingdom Atomic energy Authority,United Kingdom Atomic energy Authority,03/03/2014,PLANT & EQUIPMENT,FUSION,EDMUNDSON ELECTRICALS LTD,5100300503,237.3,
United Kingdom Atomic energy Authority,United Kingdom Atomic energy Authority,03/03/2014,PLANT & EQUIPMENT,FUSION,EDMUNDSON ELECTRICALS LTD,5100300601,-266.12,
United Kingdom Atomic energy Authority,United Kingdom Atomic energy Authority,10/03/2014,PLANT & EQUIPMENT,FUSION,EDMUNDSON ELECTRICALS LTD,5100300755,173.77,
United Kingdom Atomic energy Authority,United Kingdom Atomic energy Authority,10/03/2014,PLANT & EQUIPMENT,FUSION,EDMUNDSON ELECTRICALS LTD,5100300759,285.4,
United Kingdom Atomic energy Authority,United Kingdom Atomic energy Authority,10/03/2014,PLANT & EQUIPMENT,FUSION,EDMUNDSON ELECTRICALS LTD,5100300760,71.47,
United Kingdom Atomic energy Authority,United Kingdom Atomic energy Authority,19/03/2014,PLANT & EQUIPMENT,FUSION,EDMUNDSON ELECTRICALS LTD,5100300791,193.72,
United Kingdom Atomic energy Authority,United Kingdom Atomic energy Authority,12/03/2014,PLANT & EQUIPMENT,FUSION,EDMUNDSON ELECTRICALS LTD,5100300903,459.08,
United Kingdom Atomic energy Authority,United Kingdom Atomic energy Authority,12/03/2014,PLANT & EQUIPMENT,FUSION,EDMUNDSON ELECTRICALS LTD,5100300914,224.76,
United Kingdom Atomic energy Authority,United Kingdom Atomic energy Authority,12/03/2014,PLANT & EQUIPMENT,FUSION,EDMUNDSON ELECTRICALS LTD,5100300916,65.88,
United Kingdom Atomic energy Authority,United Kingdom Atomic energy Authority,17/03/2014,PLANT & EQUIPMENT,FUSION,EDMUNDSON ELECTRICALS LTD,5100301067,33.06,
United Kingdom Atomic energy Authority,United Kingdom Atomic energy Authority,17/03/2014,PLANT & EQUIPMENT,FUSION,EDMUNDSON ELECTRICALS LTD,5100301068,136.36,
United Kingdom Atomic energy Authority,United Kingdom Atomic energy Authority,17/03/2014,PLANT & EQUIPMENT,FUSION,EDMUNDSON ELECTRICALS LTD,5100301069,14.4,
United Kingdom Atomic energy Authority,United Kingdom Atomic energy Authority,19/03/2014,PLANT & EQUIPMENT,FUSION,EDMUNDSON ELECTRICALS LTD,5100301317,67.96,
United Kingdom Atomic energy Authority,United Kingdom Atomic energy Authority,19/03/2014,PLANT & EQUIPMENT,FUSION,EDMUNDSON ELECTRICALS LTD,5100301319,172.85,
United Kingdom Atomic energy Authority,United Kingdom Atomic energy Authority,19/03/2014,PLANT & EQUIPMENT,FUSION,EDMUNDSON ELECTRICALS LTD,5100301320,70.36,
United Kingdom Atomic energy Authority,United Kingdom Atomic energy Authority,24/03/2014,PLANT & EQUIPMENT,FUSION,EDMUNDSON ELECTRICALS LTD,5100301538,320.67,
United Kingdom Atomic energy Authority,United Kingdom Atomic energy Authority,24/03/2014,PLANT & EQUIPMENT,FUSION,EDMUNDSON ELECTRICALS LTD,5100301539,120.84,
United Kingdom Atomic energy Authority,United Kingdom Atomic energy Authority,03/03/2014,PLANT & EQUIPMENT,FUSION,EDMUNDSON ELECTRICALS LTD,5100300504,203.58,
United Kingdom Atomic energy Authority,United Kingdom Atomic energy Authority,10/03/2014,PLANT & EQUIPMENT,FUSION,EDMUNDSON ELECTRICALS LTD,5100300761,732.21,
United Kingdom Atomic energy Authority,United Kingdom Atomic energy Authority,19/03/2014,PLANT & EQUIPMENT,FUSION,EDMUNDSON ELECTRICALS LTD,5100300763,69.13,
United Kingdom Atomic energy Authority,United Kingdom Atomic energy Authority,26/03/2014,PLANT & EQUIPMENT,FUSION,EDMUNDSON ELECTRICALS LTD,5100300792,138.43,
United Kingdom Atomic energy Authority,United Kingdom Atomic energy Authority,26/03/2014,PLANT & EQUIPMENT,FUSION,EDMUNDSON ELECTRICALS LTD,5100300793,397.84,
United Kingdom Atomic energy Authority,United Kingdom Atomic energy Authority,26/03/2014,PLANT & EQUIPMENT,FUSION,EDMUNDSON ELECTRICALS LTD,5100300794,3200.02,
United Kingdom Atomic energy Authority,United Kingdom Atomic energy Authority,12/03/2014,PLANT & EQUIPMENT,FUSION,EDMUNDSON ELECTRICALS LTD,5100300910,103.7,
United Kingdom Atomic energy Authority,United Kingdom Atomic energy Authority,10/03/2014,PLANT & EQUIPMENT,FUSION,EDMUNDSON ELECTRICALS LTD,5100300918,76.58,
United Kingdom Atomic energy Authority,United Kingdom Atomic energy Authority,17/03/2014,PLANT & EQUIPMENT,FUSION,EDMUNDSON ELECTRICALS LTD,5100301226,69.13,
United Kingdom Atomic energy Authority,United Kingdom Atomic energy Authority,24/03/2014,PLANT & EQUIPMENT,FUSION,EDMUNDSON ELECTRICALS LTD,5100301541,106.03,
United Kingdom Atomic energy Authority,United Kingdom Atomic energy Authority,19/03/2014,PLANT & EQUIPMENT,FUSION,EDMUNDSON ELECTRICALS LTD,5100301604,-69.13,
United Kingdom Atomic energy Authority,United Kingdom Atomic energy Authority,24/03/2014,PLANT & EQUIPMENT,FUSION,EDMUNDSON ELECTRICALS LTD,5100301644,365.21,
United Kingdom Atomic energy Authority,United Kingdom Atomic energy Authority,24/03/2014,PLANT & EQUIPMENT,FUSION,EDWARDS LIMITED,5100301620,1172.1,
United Kingdom Atomic energy Authority,United Kingdom Atomic energy Authority,24/02/2014,PLANT & EQUIPMENT,FUSION,EFDA VISITING SCIENTISTS ALLOWANCES,1900059497," 1,098.00",
United Kingdom Atomic energy Authority,United Kingdom Atomic energy Authority,24/02/2014,PLANT & EQUIPMENT,FUSION,EFDA VISITING SCIENTISTS ALLOWANCES,1900059499, 724.80,
United Kingdom Atomic energy Authority,United Kingdom Atomic energy Authority,24/02/2014,ADVERTISING STAFF,FUSION,EFDA VISITING SCIENTISTS ALLOWANCES,1900059496, 215.00,
United Kingdom Atomic energy Authority,United Kingdom Atomic energy Authority,24/02/2014,BOOKS & PUBLICATIONS,FUSION,EFDA VISITING SCIENTISTS ALLOWANCES,1900059498," 3,473.09",
United Kingdom Atomic energy Authority,United Kingdom Atomic energy Authority,26/02/2014,,,EFDA VISITING SCIENTISTS ALLOWANCES,1700001690,"- 3,384.72",
United Kingdom Atomic energy Authority,United Kingdom Atomic energy Authority,13/03/2014,,,EFDA VISITING SCIENTISTS ALLOWANCES,1700001691,- 2.50,
United Kingdom Atomic energy Authority,United Kingdom Atomic energy Authority,27/02/2014,,,EFDA VISITING SCIENTISTS ALLOWANCES,1900058946," 5,676.00",
United Kingdom Atomic energy Authority,United Kingdom Atomic energy Authority,26/02/2014,F&F,SUPPORT SERVICES,EFG MATTHEWS OFFICE FURNITURE LTD,5100300072,118.35,
United Kingdom Atomic energy Authority,United Kingdom Atomic energy Authority,26/02/2014,F&F,SUPPORT SERVICES,EFG MATTHEWS OFFICE FURNITURE LTD,5100300073,180,
United Kingdom Atomic energy Authority,United Kingdom Atomic energy Authority,26/02/2014,F&F,SUPPORT SERVICES,EFG MATTHEWS OFFICE FURNITURE LTD,5100300074,380,
United Kingdom Atomic energy Authority,United Kingdom Atomic energy Authority,26/02/2014,F&F,SUPPORT SERVICES,EFG MATTHEWS OFFICE FURNITURE LTD,5100300417,180,
United Kingdom Atomic energy Authority,United Kingdom Atomic energy Authority,26/02/2014,F&F,SUPPORT SERVICES,EFG MATTHEWS OFFICE FURNITURE LTD,5100300420,349.5,
United Kingdom Atomic energy Authority,United Kingdom Atomic energy Authority,26/02/2014,F&F,SUPPORT SERVICES,EFG MATTHEWS OFFICE FURNITURE LTD,5100300426,366.9,
United Kingdom Atomic energy Authority,United Kingdom Atomic energy Authority,26/03/2014,F&F,SUPPORT SERVICES,EFG MATTHEWS OFFICE FURNITURE LTD,5100300844,94.5,
United Kingdom Atomic energy Authority,United Kingdom Atomic energy Authority,26/03/2014,F&F,SUPPORT SERVICES,EFG MATTHEWS OFFICE FURNITURE LTD,5100301699,63.9,
United Kingdom Atomic energy Authority,United Kingdom Atomic energy Authority,26/03/2014,F&F,SUPPORT SERVICES,EFG MATTHEWS OFFICE FURNITURE LTD,5100301705,395,
United Kingdom Atomic energy Authority,United Kingdom Atomic energy Authority,26/03/2014,F&F,SUPPORT SERVICES,EFG MATTHEWS OFFICE FURNITURE LTD,5100301706,1288,
United Kingdom Atomic energy Authority,United Kingdom Atomic energy Authority,26/03/2014,F&F,FUSION,EFG MATTHEWS OFFICE FURNITURE LTD,5100301433,135,
United Kingdom Atomic energy Authority,United Kingdom Atomic energy Authority,26/03/2014,F&F,FUSION,EFG MATTHEWS OFFICE FURNITURE LTD,5100301209,128.7,
United Kingdom Atomic energy Authority,United Kingdom Atomic energy Authority,26/02/2014,F&F,FUSION,EFG MATTHEWS OFFICE FURNITURE LTD,5100300419,906.1,
United Kingdom Atomic energy Authority,United Kingdom Atomic energy Authority,26/02/2014,PROFESSIONAL SERVICES,FUSION,ELECTRIC STUDIO LTD,5100300332,500,
United Kingdom Atomic energy Authority,United Kingdom Atomic energy Authority,10/03/2014,PROFESSIONAL SERVICES,,ELECTRIC STUDIO LTD,5100301034,3750,
United Kingdom Atomic energy Authority,United Kingdom Atomic energy Authority,27/03/2014,TAXIS,SUPPORT SERVICES,EMPLOYEES EXPENSES,100719816,12.00,
United Kingdom Atomic energy Authority,United Kingdom Atomic energy Authority,27/03/2014,SUBSISTENCE,SUPPORT SERVICES,EMPLOYEES EXPENSES,100719816,4.67,
United Kingdom Atomic energy Authority,United Kingdom Atomic energy Authority,07/03/2014,MILEAGE ALLOWANCE,SUPPORT SERVICES,EMPLOYEES EXPENSES,100716183,20.70,
United Kingdom Atomic energy Authority,United Kingdom Atomic energy Authority,07/03/2014,MILEAGE ALLOWANCE,SUPPORT SERVICES,EMPLOYEES EXPENSES,100716184,10.80,
United Kingdom Atomic energy Authority,United Kingdom Atomic energy Authority,27/03/2014,MILEAGE ALLOWANCE,SUPPORT SERVICES,EMPLOYEES EXPENSES,100719825,9.60,
United Kingdom Atomic energy Authority,United Kingdom Atomic energy Authority,07/03/2014,RAIL TRAVEL,SUPPORT SERVICES,EMPLOYEES EXPENSES,100716185,10.60,
United Kingdom Atomic energy Authority,United Kingdom Atomic energy Authority,07/03/2014,RAIL TRAVEL,SUPPORT SERVICES,EMPLOYEES EXPENSES,100716186,64.50,
United Kingdom Atomic energy Authority,United Kingdom Atomic energy Authority,27/03/2014,ROAD TRAVEL,SUPPORT SERVICES,EMPLOYEES EXPENSES,100719816,7.00,
United Kingdom Atomic energy Authority,United Kingdom Atomic energy Authority,22/03/2014,PROFESSIONAL SUBSCRIPTION,SUPPORT SERVICES,EMPLOYEES EXPENSES,100719280,159.00,
United Kingdom Atomic energy Authority,United Kingdom Atomic energy Authority,07/03/2014,SUBSISTENCE,SUPPORT SERVICES,EMPLOYEES EXPENSES,100716178,101.02,
United Kingdom Atomic energy Authority,United Kingdom Atomic energy Authority,07/03/2014,SUBSISTENCE,SUPPORT SERVICES,EMPLOYEES EXPENSES,100716178,2.92,
United Kingdom Atomic energy Authority,United Kingdom Atomic energy Authority,07/03/2014,SUBSISTENCE,SUPPORT SERVICES,EMPLOYEES EXPENSES,100716194,80.00,
United Kingdom Atomic energy Authority,United Kingdom Atomic energy Authority,07/03/2014,SUBSISTENCE,SUPPORT SERVICES,EMPLOYEES EXPENSES,100716194,4.99,
United Kingdom Atomic energy Authority,United Kingdom Atomic energy Authority,22/03/2014,SUBSISTENCE,SUPPORT SERVICES,EMPLOYEES EXPENSES,100719263,141.88,
United Kingdom Atomic energy Authority,United Kingdom Atomic energy Authority,22/03/2014,SUBSISTENCE,SUPPORT SERVICES,EMPLOYEES EXPENSES,100719263,3.17,
United Kingdom Atomic energy Authority,United Kingdom Atomic energy Authority,27/03/2014,SUBSISTENCE,SUPPORT SERVICES,EMPLOYEES EXPENSES,100719831,80.00,
United Kingdom Atomic energy Authority,United Kingdom Atomic energy Authority,27/03/2014,SUBSISTENCE,SUPPORT SERVICES,EMPLOYEES EXPENSES,100719831,43.42,
United Kingdom Atomic energy Authority,United Kingdom Atomic energy Authority,28/02/2014,MILEAGE ALLOWANCE,SUPPORT SERVICES,EMPLOYEES EXPENSES,100716125,34.20,
United Kingdom Atomic energy Authority,United Kingdom Atomic energy Authority,07/03/2014,MILEAGE ALLOWANCE,SUPPORT SERVICES,EMPLOYEES EXPENSES,100716190,58.50,
United Kingdom Atomic energy Authority,United Kingdom Atomic energy Authority,13/03/2014,MILEAGE ALLOWANCE,SUPPORT SERVICES,EMPLOYEES EXPENSES,100716273,18.00,
United Kingdom Atomic energy Authority,United Kingdom Atomic energy Authority,15/03/2014,MILEAGE ALLOWANCE,SUPPORT SERVICES,EMPLOYEES EXPENSES,100716328,46.80,
United Kingdom Atomic energy Authority,United Kingdom Atomic energy Authority,22/03/2014,MILEAGE ALLOWANCE,SUPPORT SERVICES,EMPLOYEES EXPENSES,100719302,23.46,
United Kingdom Atomic energy Authority,United Kingdom Atomic energy Authority,27/03/2014,MILEAGE ALLOWANCE,SUPPORT SERVICES,EMPLOYEES EXPENSES,100719831,115.20,
United Kingdom Atomic energy Authority,United Kingdom Atomic energy Authority,28/03/2014,MILEAGE ALLOWANCE,SUPPORT SERVICES,EMPLOYEES EXPENSES,100719858,46.80,
United Kingdom Atomic energy Authority,United Kingdom Atomic energy Authority,15/03/2014,RAIL TRAVEL,SUPPORT SERVICES,EMPLOYEES EXPENSES,100716318,129.00,
United Kingdom Atomic energy Authority,United Kingdom Atomic energy Authority,22/03/2014,RAIL TRAVEL,SUPPORT SERVICES,EMPLOYEES EXPENSES,100719263,40.04,
United Kingdom Atomic energy Authority,United Kingdom Atomic energy Authority,07/03/2014,ROAD TRAVEL,SUPPORT SERVICES,EMPLOYEES EXPENSES,100716178,17.73,
United Kingdom Atomic energy Authority,United Kingdom Atomic energy Authority,07/03/2014,ROAD TRAVEL,SUPPORT SERVICES,EMPLOYEES EXPENSES,100716180,50.40,
United Kingdom Atomic energy Authority,United Kingdom Atomic energy Authority,15/03/2014,ROAD TRAVEL,SUPPORT SERVICES,EMPLOYEES EXPENSES,100716318,6.00,
United Kingdom Atomic energy Authority,United Kingdom Atomic energy Authority,15/03/2014,ROAD TRAVEL,SUPPORT SERVICES,EMPLOYEES EXPENSES,100716318,5.00,
United Kingdom Atomic energy Authority,United Kingdom Atomic energy Authority,27/03/2014,ROAD TRAVEL,SUPPORT SERVICES,EMPLOYEES EXPENSES,100719831,1.50,
United Kingdom Atomic energy Authority,United Kingdom Atomic energy Authority,07/03/2014,OTHER EMPLOYEE EXPENSES,SUPPORT SERVICES,EMPLOYEES EXPENSES,100716178,3.00,
United Kingdom Atomic energy Authority,United Kingdom Atomic energy Authority,28/03/2014,TRAINING COURSE FEES,SUPPORT SERVICES,EMPLOYEES EXPENSES,100719842,74.00,
United Kingdom Atomic energy Authority,United Kingdom Atomic energy Authority,28/03/2014,TRAINING COURSE FEES,SUPPORT SERVICES,EMPLOYEES EXPENSES,100719848,74.00,
United Kingdom Atomic energy Authority,United Kingdom Atomic energy Authority,22/03/2014,PROFESSIONAL SUBSCRIPTION,SUPPORT SERVICES,EMPLOYEES EXPENSES,100719271,140.00,
United Kingdom Atomic energy Authority,United Kingdom Atomic energy Authority,13/03/2014,TAXIS,FUSION,EMPLOYEES EXPENSES,100716276,8.20,
United Kingdom Atomic energy Authority,United Kingdom Atomic energy Authority,13/03/2014,SUBSISTENCE,FUSION,EMPLOYEES EXPENSES,100716275,110.57,
United Kingdom Atomic energy Authority,United Kingdom Atomic energy Authority,13/03/2014,SUBSISTENCE,FUSION,EMPLOYEES EXPENSES,100716275,30.00,
United Kingdom Atomic energy Authority,United Kingdom Atomic energy Authority,13/03/2014,SUBSISTENCE,FUSION,EMPLOYEES EXPENSES,100716276,5.00,
United Kingdom Atomic energy Authority,United Kingdom Atomic energy Authority,13/03/2014,SUBSISTENCE,FUSION,EMPLOYEES EXPENSES,100716276,128.07,
United Kingdom Atomic energy Authority,United Kingdom Atomic energy Authority,22/03/2014,SUBSISTENCE,FUSION,EMPLOYEES EXPENSES,100719267,7.30,
United Kingdom Atomic energy Authority,United Kingdom Atomic energy Authority,22/03/2014,SUBSISTENCE,FUSION,EMPLOYEES EXPENSES,100719267,1.33,
United Kingdom Atomic energy Authority,United Kingdom Atomic energy Authority,13/03/2014,MILEAGE ALLOWANCE,FUSION,EMPLOYEES EXPENSES,100716275,189.00,
United Kingdom Atomic energy Authority,United Kingdom Atomic energy Authority,22/03/2014,MILEAGE ALLOWANCE,FUSION,EMPLOYEES EXPENSES,100719267,16.20,
United Kingdom Atomic energy Authority,United Kingdom Atomic energy Authority,13/03/2014,RAIL TRAVEL,FUSION,EMPLOYEES EXPENSES,100716276,46.10,
United Kingdom Atomic energy Authority,United Kingdom Atomic energy Authority,22/03/2014,RAIL TRAVEL,FUSION,EMPLOYEES EXPENSES,100719267,27.60,
United Kingdom Atomic energy Authority,United Kingdom Atomic energy Authority,13/03/2014,ROAD TRAVEL,FUSION,EMPLOYEES EXPENSES,100716275,13.33,
United Kingdom Atomic energy Authority,United Kingdom Atomic energy Authority,22/03/2014,ROAD TRAVEL,FUSION,EMPLOYEES EXPENSES,100719267,5.33,
United Kingdom Atomic energy Authority,United Kingdom Atomic energy Authority,22/03/2014,MILEAGE ALLOWANCE,FUSION,EMPLOYEES EXPENSES,100719277,137.70,
United Kingdom Atomic energy Authority,United Kingdom Atomic energy Authority,07/03/2014,SUBSISTENCE,FUSION,EMPLOYEES EXPENSES,100716214,4.47,
United Kingdom Atomic energy Authority,United Kingdom Atomic energy Authority,15/03/2014,SUBSISTENCE,FUSION,EMPLOYEES EXPENSES,100716325,3.40,
United Kingdom Atomic energy Authority,United Kingdom Atomic energy Authority,22/03/2014,SUBSISTENCE,FUSION,EMPLOYEES EXPENSES,100719292,4.66,
United Kingdom Atomic energy Authority,United Kingdom Atomic energy Authority,28/03/2014,SUBSISTENCE,FUSION,EMPLOYEES EXPENSES,100719843,105.00,
United Kingdom Atomic energy Authority,United Kingdom Atomic energy Authority,28/03/2014,SUBSISTENCE,FUSION,EMPLOYEES EXPENSES,100719854,4.08,
United Kingdom Atomic energy Authority,United Kingdom Atomic energy Authority,28/02/2014,MILEAGE ALLOWANCE,FUSION,EMPLOYEES EXPENSES,100716113,66.60,
United Kingdom Atomic energy Authority,United Kingdom Atomic energy Authority,28/02/2014,MILEAGE ALLOWANCE,FUSION,EMPLOYEES EXPENSES,100716114,66.60,
United Kingdom Atomic energy Authority,United Kingdom Atomic energy Authority,28/02/2014,MILEAGE ALLOWANCE,FUSION,EMPLOYEES EXPENSES,100716115,66.60,
United Kingdom Atomic energy Authority,United Kingdom Atomic energy Authority,07/03/2014,MILEAGE ALLOWANCE,FUSION,EMPLOYEES EXPENSES,100716214,69.75,
United Kingdom Atomic energy Authority,United Kingdom Atomic energy Authority,07/03/2014,MILEAGE ALLOWANCE,FUSION,EMPLOYEES EXPENSES,100716215,69.75,
United Kingdom Atomic energy Authority,United Kingdom Atomic energy Authority,13/03/2014,MILEAGE ALLOWANCE,FUSION,EMPLOYEES EXPENSES,100716288,66.60,
United Kingdom Atomic energy Authority,United Kingdom Atomic energy Authority,15/03/2014,MILEAGE ALLOWANCE,FUSION,EMPLOYEES EXPENSES,100716323,66.60,
United Kingdom Atomic energy Authority,United Kingdom Atomic energy Authority,15/03/2014,MILEAGE ALLOWANCE,FUSION,EMPLOYEES EXPENSES,100716325,69.75,
United Kingdom Atomic energy Authority,United Kingdom Atomic energy Authority,22/03/2014,MILEAGE ALLOWANCE,FUSION,EMPLOYEES EXPENSES,100719288,66.60,
United Kingdom Atomic energy Authority,United Kingdom Atomic energy Authority,22/03/2014,MILEAGE ALLOWANCE,FUSION,EMPLOYEES EXPENSES,100719292,69.75,
United Kingdom Atomic energy Authority,United Kingdom Atomic energy Authority,28/03/2014,MILEAGE ALLOWANCE,FUSION,EMPLOYEES EXPENSES,100719843,126.00,
United Kingdom Atomic energy Authority,United Kingdom Atomic energy Authority,28/03/2014,MILEAGE ALLOWANCE,FUSION,EMPLOYEES EXPENSES,100719854,69.75,
United Kingdom Atomic energy Authority,United Kingdom Atomic energy Authority,07/03/2014,ROAD TRAVEL,FUSION,EMPLOYEES EXPENSES,100716214,2.50,
United Kingdom Atomic energy Authority,United Kingdom Atomic energy Authority,07/03/2014,ROAD TRAVEL,FUSION,EMPLOYEES EXPENSES,100716215,2.50,
United Kingdom Atomic energy Authority,United Kingdom Atomic energy Authority,22/03/2014,ROAD TRAVEL,FUSION,EMPLOYEES EXPENSES,100719292,2.50,
United Kingdom Atomic energy Authority,United Kingdom Atomic energy Authority,28/03/2014,ROAD TRAVEL,FUSION,EMPLOYEES EXPENSES,100719854,2.50,
United Kingdom Atomic energy Authority,United Kingdom Atomic energy Authority,13/03/2014,TAXIS,FUSION,EMPLOYEES EXPENSES,100716281,41.31,
United Kingdom Atomic energy Authority,United Kingdom Atomic energy Authority,13/03/2014,SUBSISTENCE,FUSION,EMPLOYEES EXPENSES,100716281,473.54,
United Kingdom Atomic energy Authority,United Kingdom Atomic energy Authority,22/03/2014,SUBSISTENCE,FUSION,EMPLOYEES EXPENSES,100719266,488.40,
United Kingdom Atomic energy Authority,United Kingdom Atomic energy Authority,22/03/2014,SUBSISTENCE,FUSION,EMPLOYEES EXPENSES,100719266,30.53,
United Kingdom Atomic energy Authority,United Kingdom Atomic energy Authority,28/02/2014,SUBSISTENCE,FUSION,EMPLOYEES EXPENSES,100716103,125.00,
United Kingdom Atomic energy Authority,United Kingdom Atomic energy Authority,07/03/2014,SUBSISTENCE,FUSION,EMPLOYEES EXPENSES,100716207,10.00,
United Kingdom Atomic energy Authority,United Kingdom Atomic energy Authority,07/03/2014,SUBSISTENCE,FUSION,EMPLOYEES EXPENSES,100716208,10.00,
United Kingdom Atomic energy Authority,United Kingdom Atomic energy Authority,07/03/2014,SUBSISTENCE,FUSION,EMPLOYEES EXPENSES,100716209,10.00,
United Kingdom Atomic energy Authority,United Kingdom Atomic energy Authority,07/03/2014,SUBSISTENCE,FUSION,EMPLOYEES EXPENSES,100716210,10.00,
United Kingdom Atomic energy Authority,United Kingdom Atomic energy Authority,27/03/2014,SUBSISTENCE,FUSION,EMPLOYEES EXPENSES,100719821,10.00,
United Kingdom Atomic energy Authority,United Kingdom Atomic energy Authority,27/03/2014,SUBSISTENCE,FUSION,EMPLOYEES EXPENSES,100719822,10.00,
United Kingdom Atomic energy Authority,United Kingdom Atomic energy Authority,27/03/2014,SUBSISTENCE,FUSION,EMPLOYEES EXPENSES,100719823,10.00,
United Kingdom Atomic energy Authority,United Kingdom Atomic energy Authority,27/03/2014,SUBSISTENCE,FUSION,EMPLOYEES EXPENSES,100719824,10.00,
United Kingdom Atomic energy Authority,United Kingdom Atomic energy Authority,28/03/2014,SUBSISTENCE,FUSION,EMPLOYEES EXPENSES,100719844,382.38,
United Kingdom Atomic energy Authority,United Kingdom Atomic energy Authority,28/03/2014,SUBSISTENCE,FUSION,EMPLOYEES EXPENSES,100719844,6.26,
United Kingdom Atomic energy Authority,United Kingdom Atomic energy Authority,07/03/2014,MILEAGE ALLOWANCE,FUSION,EMPLOYEES EXPENSES,100716207,69.30,
United Kingdom Atomic energy Authority,United Kingdom Atomic energy Authority,07/03/2014,MILEAGE ALLOWANCE,FUSION,EMPLOYEES EXPENSES,100716208,69.30,
United Kingdom Atomic energy Authority,United Kingdom Atomic energy Authority,07/03/2014,MILEAGE ALLOWANCE,FUSION,EMPLOYEES EXPENSES,100716209,69.30,
United Kingdom Atomic energy Authority,United Kingdom Atomic energy Authority,07/03/2014,MILEAGE ALLOWANCE,FUSION,EMPLOYEES EXPENSES,100716210,69.30,
United Kingdom Atomic energy Authority,United Kingdom Atomic energy Authority,27/03/2014,MILEAGE ALLOWANCE,FUSION,EMPLOYEES EXPENSES,100719821,69.30,
United Kingdom Atomic energy Authority,United Kingdom Atomic energy Authority,27/03/2014,MILEAGE ALLOWANCE,FUSION,EMPLOYEES EXPENSES,100719822,69.30,
United Kingdom Atomic energy Authority,United Kingdom Atomic energy Authority,27/03/2014,MILEAGE ALLOWANCE,FUSION,EMPLOYEES EXPENSES,100719823,69.30,
United Kingdom Atomic energy Authority,United Kingdom Atomic energy Authority,27/03/2014,MILEAGE ALLOWANCE,FUSION,EMPLOYEES EXPENSES,100719824,69.30,
United Kingdom Atomic energy Authority,United Kingdom Atomic energy Authority,28/03/2014,RAIL TRAVEL,FUSION,EMPLOYEES EXPENSES,100719844,43.19,
United Kingdom Atomic energy Authority,United Kingdom Atomic energy Authority,28/03/2014,OTHER EMPLOYEE EXPENSES,FUSION,EMPLOYEES EXPENSES,100719844,15.36,
United Kingdom Atomic energy Authority,United Kingdom Atomic energy Authority,07/03/2014,TAXIS,FUSION,EMPLOYEES EXPENSES,100716216,10.22,
United Kingdom Atomic energy Authority,United Kingdom Atomic energy Authority,07/03/2014,SUBSISTENCE,FUSION,EMPLOYEES EXPENSES,100716216,201.06,
United Kingdom Atomic energy Authority,United Kingdom Atomic energy Authority,07/03/2014,SUBSISTENCE,FUSION,EMPLOYEES EXPENSES,100716216,1.37,
United Kingdom Atomic energy Authority,United Kingdom Atomic energy Authority,07/03/2014,OTHER EMPLOYEE EXPENSES,FUSION,EMPLOYEES EXPENSES,100716216,15.02,
United Kingdom Atomic energy Authority,United Kingdom Atomic energy Authority,13/03/2014,SUBSISTENCE,FUSION,EMPLOYEES EXPENSES,100716298,26.99,
United Kingdom Atomic energy Authority,United Kingdom Atomic energy Authority,13/03/2014,SUBSISTENCE,FUSION,EMPLOYEES EXPENSES,100716298,121.71,
United Kingdom Atomic energy Authority,United Kingdom Atomic energy Authority,07/03/2014,MILEAGE ALLOWANCE,FUSION,EMPLOYEES EXPENSES,100716198,22.50,
United Kingdom Atomic energy Authority,United Kingdom Atomic energy Authority,13/03/2014,RAIL TRAVEL,FUSION,EMPLOYEES EXPENSES,100716298,11.80,
United Kingdom Atomic energy Authority,United Kingdom Atomic energy Authority,13/03/2014,ROAD TRAVEL,FUSION,EMPLOYEES EXPENSES,100716298,16.20,
United Kingdom Atomic energy Authority,United Kingdom Atomic energy Authority,13/03/2014,CAR HIRE,FUSION,EMPLOYEES EXPENSES,100716299,103.76,
United Kingdom Atomic energy Authority,United Kingdom Atomic energy Authority,13/03/2014,ROAD TRAVEL,FUSION,EMPLOYEES EXPENSES,100716299,97.92,
United Kingdom Atomic energy Authority,United Kingdom Atomic energy Authority,27/03/2014,RELOCATION COSTS,FUSION,EMPLOYEES EXPENSES,100719836,211.96,
United Kingdom Atomic energy Authority,United Kingdom Atomic energy Authority,28/02/2014,PROFESSIONAL SUBSCRIPTION,FUSION,EMPLOYEES EXPENSES,100716130,73.00,
United Kingdom Atomic energy Authority,United Kingdom Atomic energy Authority,07/03/2014,SUBSISTENCE,FUSION,EMPLOYEES EXPENSES,100716218,4.87,
United Kingdom Atomic energy Authority,United Kingdom Atomic energy Authority,22/03/2014,SUBSISTENCE,FUSION,EMPLOYEES EXPENSES,100719281,5.00,
United Kingdom Atomic energy Authority,United Kingdom Atomic energy Authority,22/03/2014,SUBSISTENCE,FUSION,EMPLOYEES EXPENSES,100719281,80.83,
United Kingdom Atomic energy Authority,United Kingdom Atomic energy Authority,22/03/2014,SUBSISTENCE,FUSION,EMPLOYEES EXPENSES,100719294,83.33,
United Kingdom Atomic energy Authority,United Kingdom Atomic energy Authority,07/03/2014,ROAD TRAVEL,FUSION,EMPLOYEES EXPENSES,100716218,28.74,
United Kingdom Atomic energy Authority,United Kingdom Atomic energy Authority,22/03/2014,ROAD TRAVEL,FUSION,EMPLOYEES EXPENSES,100719294,48.10,
United Kingdom Atomic energy Authority,United Kingdom Atomic energy Authority,27/03/2014,TAXIS,FUSION,EMPLOYEES EXPENSES,100719813,11.40,
United Kingdom Atomic energy Authority,United Kingdom Atomic energy Authority,27/03/2014,SUBSISTENCE,FUSION,EMPLOYEES EXPENSES,100719813,5.00,
United Kingdom Atomic energy Authority,United Kingdom Atomic energy Authority,27/03/2014,SUBSISTENCE,FUSION,EMPLOYEES EXPENSES,100719813,5.90,
United Kingdom Atomic energy Authority,United Kingdom Atomic energy Authority,07/03/2014,SUBSISTENCE,FUSION,EMPLOYEES EXPENSES,100716196,5.00,
United Kingdom Atomic energy Authority,United Kingdom Atomic energy Authority,07/03/2014,SUBSISTENCE,FUSION,EMPLOYEES EXPENSES,100716196,86.67,
United Kingdom Atomic energy Authority,United Kingdom Atomic energy Authority,07/03/2014,MILEAGE ALLOWANCE,FUSION,EMPLOYEES EXPENSES,100716196,182.40,
United Kingdom Atomic energy Authority,United Kingdom Atomic energy Authority,13/03/2014,RAIL TRAVEL,FUSION,EMPLOYEES EXPENSES,100716280,49.00,
United Kingdom Atomic energy Authority,United Kingdom Atomic energy Authority,07/03/2014,ROAD TRAVEL,FUSION,EMPLOYEES EXPENSES,100716196,4.58,
United Kingdom Atomic energy Authority,United Kingdom Atomic energy Authority,13/03/2014,ROAD TRAVEL,FUSION,EMPLOYEES EXPENSES,100716280,14.83,
United Kingdom Atomic energy Authority,United Kingdom Atomic energy Authority,22/03/2014,SUBSISTENCE,FUSION,EMPLOYEES EXPENSES,100719296,192.75,
United Kingdom Atomic energy Authority,United Kingdom Atomic energy Authority,22/03/2014,SUBSISTENCE,FUSION,EMPLOYEES EXPENSES,100719296,22.37,
United Kingdom Atomic energy Authority,United Kingdom Atomic energy Authority,07/03/2014,RAIL TRAVEL,FUSION,EMPLOYEES EXPENSES,100716203,280.40,
United Kingdom Atomic energy Authority,United Kingdom Atomic energy Authority,27/03/2014,RAIL TRAVEL,FUSION,EMPLOYEES EXPENSES,100719819,363.30,
United Kingdom Atomic energy Authority,United Kingdom Atomic energy Authority,28/03/2014,RAIL TRAVEL,FUSION,EMPLOYEES EXPENSES,100719857,23.20,
United Kingdom Atomic energy Authority,United Kingdom Atomic energy Authority,07/03/2014,ROAD TRAVEL,FUSION,EMPLOYEES EXPENSES,100716203,44.50,
United Kingdom Atomic energy Authority,United Kingdom Atomic energy Authority,22/03/2014,ROAD TRAVEL,FUSION,EMPLOYEES EXPENSES,100719296,45.22,
United Kingdom Atomic energy Authority,United Kingdom Atomic energy Authority,27/03/2014,ROAD TRAVEL,FUSION,EMPLOYEES EXPENSES,100719819,47.00,
United Kingdom Atomic energy Authority,United Kingdom Atomic energy Authority,13/03/2014,SUBSISTENCE,FUSION,EMPLOYEES EXPENSES,100716274,131.53,
United Kingdom Atomic energy Authority,United Kingdom Atomic energy Authority,13/03/2014,SUBSISTENCE,FUSION,EMPLOYEES EXPENSES,100716274,6.79,
United Kingdom Atomic energy Authority,United Kingdom Atomic energy Authority,13/03/2014,OTHER EMPLOYEE EXPENSES,FUSION,EMPLOYEES EXPENSES,100716274,3.34,
United Kingdom Atomic energy Authority,United Kingdom Atomic energy Authority,27/03/2014,SUBSISTENCE,FUSION,EMPLOYEES EXPENSES,100719830,210.42,
United Kingdom Atomic energy Authority,United Kingdom Atomic energy Authority,27/03/2014,SUBSISTENCE,FUSION,EMPLOYEES EXPENSES,100719830,5.96,
United Kingdom Atomic energy Authority,United Kingdom Atomic energy Authority,27/03/2014,RAIL TRAVEL,FUSION,EMPLOYEES EXPENSES,100719830,7.45,
United Kingdom Atomic energy Authority,United Kingdom Atomic energy Authority,07/03/2014,SUBSISTENCE,FUSION,EMPLOYEES EXPENSES,100716201,3.37,
United Kingdom Atomic energy Authority,United Kingdom Atomic energy Authority,27/03/2014,SUBSISTENCE,FUSION,EMPLOYEES EXPENSES,100719829,3.60,
United Kingdom Atomic energy Authority,United Kingdom Atomic energy Authority,27/03/2014,SUBSISTENCE,FUSION,EMPLOYEES EXPENSES,100719829,3.21,
United Kingdom Atomic energy Authority,United Kingdom Atomic energy Authority,07/03/2014,ROAD TRAVEL,FUSION,EMPLOYEES EXPENSES,100716201,17.00,
United Kingdom Atomic energy Authority,United Kingdom Atomic energy Authority,27/03/2014,ROAD TRAVEL,FUSION,EMPLOYEES EXPENSES,100719829,12.82,
United Kingdom Atomic energy Authority,United Kingdom Atomic energy Authority,13/03/2014,SUBSISTENCE,FUSION,EMPLOYEES EXPENSES,100716277,5.00,
United Kingdom Atomic energy Authority,United Kingdom Atomic energy Authority,13/03/2014,SUBSISTENCE,FUSION,EMPLOYEES EXPENSES,100716277,101.17,
United Kingdom Atomic energy Authority,United Kingdom Atomic energy Authority,13/03/2014,SUBSISTENCE,FUSION,EMPLOYEES EXPENSES,100716287,6.45,
United Kingdom Atomic energy Authority,United Kingdom Atomic energy Authority,13/03/2014,SUBSISTENCE,FUSION,EMPLOYEES EXPENSES,100716287,86.00,
United Kingdom Atomic energy Authority,United Kingdom Atomic energy Authority,15/03/2014,SUBSISTENCE,FUSION,EMPLOYEES EXPENSES,100716321,87.00,
United Kingdom Atomic energy Authority,United Kingdom Atomic energy Authority,15/03/2014,SUBSISTENCE,FUSION,EMPLOYEES EXPENSES,100716321,4.98,
United Kingdom Atomic energy Authority,United Kingdom Atomic energy Authority,28/03/2014,SUBSISTENCE,FUSION,EMPLOYEES EXPENSES,100719853,98.67,
United Kingdom Atomic energy Authority,United Kingdom Atomic energy Authority,28/02/2014,ROAD TRAVEL,FUSION,EMPLOYEES EXPENSES,100716128,40.42,
United Kingdom Atomic energy Authority,United Kingdom Atomic energy Authority,13/03/2014,ROAD TRAVEL,FUSION,EMPLOYEES EXPENSES,100716287,64.20,
United Kingdom Atomic energy Authority,United Kingdom Atomic energy Authority,22/03/2014,CAR HIRE,FUSION,EMPLOYEES EXPENSES,100719297,73.35,
United Kingdom Atomic energy Authority,United Kingdom Atomic energy Authority,28/02/2014,SUBSISTENCE,FUSION,EMPLOYEES EXPENSES,100716122,3.54,
United Kingdom Atomic energy Authority,United Kingdom Atomic energy Authority,07/03/2014,SUBSISTENCE,FUSION,EMPLOYEES EXPENSES,100716213,7.25,
United Kingdom Atomic energy Authority,United Kingdom Atomic energy Authority,15/03/2014,SUBSISTENCE,FUSION,EMPLOYEES EXPENSES,100716320,4.60,
United Kingdom Atomic energy Authority,United Kingdom Atomic energy Authority,15/03/2014,SUBSISTENCE,FUSION,EMPLOYEES EXPENSES,100716320,0.52,
United Kingdom Atomic energy Authority,United Kingdom Atomic energy Authority,22/03/2014,SUBSISTENCE,FUSION,EMPLOYEES EXPENSES,100719297,295.04,
United Kingdom Atomic energy Authority,United Kingdom Atomic energy Authority,27/03/2014,SUBSISTENCE,FUSION,EMPLOYEES EXPENSES,100719815,3.00,
United Kingdom Atomic energy Authority,United Kingdom Atomic energy Authority,27/03/2014,SUBSISTENCE,FUSION,EMPLOYEES EXPENSES,100719815,3.94,
United Kingdom Atomic energy Authority,United Kingdom Atomic energy Authority,28/02/2014,MILEAGE ALLOWANCE,FUSION,EMPLOYEES EXPENSES,100716122,97.20,
United Kingdom Atomic energy Authority,United Kingdom Atomic energy Authority,15/03/2014,MILEAGE ALLOWANCE,FUSION,EMPLOYEES EXPENSES,100716319,4.50,
United Kingdom Atomic energy Authority,United Kingdom Atomic energy Authority,22/03/2014,AIR TRAVEL,FUSION,EMPLOYEES EXPENSES,100719297,296.38,
United Kingdom Atomic energy Authority,United Kingdom Atomic energy Authority,22/03/2014,ROAD TRAVEL,FUSION,EMPLOYEES EXPENSES,100719297,19.87,
United Kingdom Atomic energy Authority,United Kingdom Atomic energy Authority,22/03/2014,OTHER EMPLOYEE EXPENSES,FUSION,EMPLOYEES EXPENSES,100719297,21.03,
United Kingdom Atomic energy Authority,United Kingdom Atomic energy Authority,13/03/2014,TAXIS,FUSION,EMPLOYEES EXPENSES,100716283,29.21,
United Kingdom Atomic energy Authority,United Kingdom Atomic energy Authority,07/03/2014,SUBSISTENCE,FUSION,EMPLOYEES EXPENSES,100716206,9.55,
United Kingdom Atomic energy Authority,United Kingdom Atomic energy Authority,13/03/2014,SUBSISTENCE,FUSION,EMPLOYEES EXPENSES,100716283,844.17,
United Kingdom Atomic energy Authority,United Kingdom Atomic energy Authority,13/03/2014,SUBSISTENCE,FUSION,EMPLOYEES EXPENSES,100716283,7.92,
United Kingdom Atomic energy Authority,United Kingdom Atomic energy Authority,13/03/2014,AIR TRAVEL,FUSION,EMPLOYEES EXPENSES,100716283,15.35,
United Kingdom Atomic energy Authority,United Kingdom Atomic energy Authority,07/03/2014,RAIL TRAVEL,FUSION,EMPLOYEES EXPENSES,100716206,157.50,
United Kingdom Atomic energy Authority,United Kingdom Atomic energy Authority,13/03/2014,RAIL TRAVEL,FUSION,EMPLOYEES EXPENSES,100716283,1.53,
United Kingdom Atomic energy Authority,United Kingdom Atomic energy Authority,07/03/2014,ROAD TRAVEL,FUSION,EMPLOYEES EXPENSES,100716206,4.50,
United Kingdom Atomic energy Authority,United Kingdom Atomic energy Authority,13/03/2014,ROAD TRAVEL,FUSION,EMPLOYEES EXPENSES,100716283,23.00,
United Kingdom Atomic energy Authority,United Kingdom Atomic energy Authority,15/03/2014,ROAD TRAVEL,FUSION,EMPLOYEES EXPENSES,100716334,29.06,
United Kingdom Atomic energy Authority,United Kingdom Atomic energy Authority,15/03/2014,ROAD TRAVEL,FUSION,EMPLOYEES EXPENSES,100716335,13.51,
United Kingdom Atomic energy Authority,United Kingdom Atomic energy Authority,28/02/2014,SUBSISTENCE,FUSION,EMPLOYEES EXPENSES,100716110,28.76,
United Kingdom Atomic energy Authority,United Kingdom Atomic energy Authority,28/02/2014,SUBSISTENCE,FUSION,EMPLOYEES EXPENSES,100716127,134.32,
United Kingdom Atomic energy Authority,United Kingdom Atomic energy Authority,28/02/2014,RAIL TRAVEL,FUSION,EMPLOYEES EXPENSES,100716110,2.25,
United Kingdom Atomic energy Authority,United Kingdom Atomic energy Authority,28/02/2014,RAIL TRAVEL,FUSION,EMPLOYEES EXPENSES,100716127,8.61,
United Kingdom Atomic energy Authority,United Kingdom Atomic energy Authority,28/02/2014,ROAD TRAVEL,FUSION,EMPLOYEES EXPENSES,100716110,2.98,
United Kingdom Atomic energy Authority,United Kingdom Atomic energy Authority,22/03/2014,TAXIS,FUSION,EMPLOYEES EXPENSES,100719279,27.19,
United Kingdom Atomic energy Authority,United Kingdom Atomic energy Authority,15/03/2014,SUBSISTENCE,FUSION,EMPLOYEES EXPENSES,100716330,406.63,
United Kingdom Atomic energy Authority,United Kingdom Atomic energy Authority,15/03/2014,SUBSISTENCE,FUSION,EMPLOYEES EXPENSES,100716330,1.79,
United Kingdom Atomic energy Authority,United Kingdom Atomic energy Authority,22/03/2014,SUBSISTENCE,FUSION,EMPLOYEES EXPENSES,100719279,838.70,
United Kingdom Atomic energy Authority,United Kingdom Atomic energy Authority,22/03/2014,SUBSISTENCE,FUSION,EMPLOYEES EXPENSES,100719279,8.42,
United Kingdom Atomic energy Authority,United Kingdom Atomic energy Authority,28/03/2014,MILEAGE ALLOWANCE,FUSION,EMPLOYEES EXPENSES,100719860,150.30,
United Kingdom Atomic energy Authority,United Kingdom Atomic energy Authority,15/03/2014,RAIL TRAVEL,FUSION,EMPLOYEES EXPENSES,100716330,45.80,
United Kingdom Atomic energy Authority,United Kingdom Atomic energy Authority,15/03/2014,RAIL TRAVEL,FUSION,EMPLOYEES EXPENSES,100716330,11.98,
United Kingdom Atomic energy Authority,United Kingdom Atomic energy Authority,22/03/2014,ROAD TRAVEL,FUSION,EMPLOYEES EXPENSES,100719279,29.00,
United Kingdom Atomic energy Authority,United Kingdom Atomic energy Authority,22/03/2014,ROAD TRAVEL,FUSION,EMPLOYEES EXPENSES,100719279,8.54,
United Kingdom Atomic energy Authority,United Kingdom Atomic energy Authority,28/03/2014,ROAD TRAVEL,FUSION,EMPLOYEES EXPENSES,100719860,60.00,
United Kingdom Atomic energy Authority,United Kingdom Atomic energy Authority,13/03/2014,SUBSISTENCE,FUSION,EMPLOYEES EXPENSES,100716295,330.93,
United Kingdom Atomic energy Authority,United Kingdom Atomic energy Authority,22/03/2014,SUBSISTENCE,FUSION,EMPLOYEES EXPENSES,100719265,134.89,
United Kingdom Atomic energy Authority,United Kingdom Atomic energy Authority,22/03/2014,MILEAGE ALLOWANCE,FUSION,EMPLOYEES EXPENSES,100719265,54.00,
United Kingdom Atomic energy Authority,United Kingdom Atomic energy Authority,28/03/2014,MILEAGE ALLOWANCE,FUSION,EMPLOYEES EXPENSES,100719861,108.00,
United Kingdom Atomic energy Authority,United Kingdom Atomic energy Authority,22/03/2014,ROAD TRAVEL,FUSION,EMPLOYEES EXPENSES,100719265,44.92,
United Kingdom Atomic energy Authority,United Kingdom Atomic energy Authority,22/03/2014,OTHER EMPLOYEE EXPENSES,FUSION,EMPLOYEES EXPENSES,100719265,119.32,
United Kingdom Atomic energy Authority,United Kingdom Atomic energy Authority,22/03/2014,OTHER EMPLOYEE EXPENSES,FUSION,EMPLOYEES EXPENSES,100719265,45.79,
United Kingdom Atomic energy Authority,United Kingdom Atomic energy Authority,22/03/2014,PROFESSIONAL SUBSCRIPTION,FUSION,EMPLOYEES EXPENSES,100719265,107.67,
United Kingdom Atomic energy Authority,United Kingdom Atomic energy Authority,07/03/2014,SUBSISTENCE,FUSION,EMPLOYEES EXPENSES,100716205,493.95,
United Kingdom Atomic energy Authority,United Kingdom Atomic energy Authority,07/03/2014,SUBSISTENCE,FUSION,EMPLOYEES EXPENSES,100716205,9.75,
United Kingdom Atomic energy Authority,United Kingdom Atomic energy Authority,07/03/2014,MILEAGE ALLOWANCE,FUSION,EMPLOYEES EXPENSES,100716205,12.60,
United Kingdom Atomic energy Authority,United Kingdom Atomic energy Authority,07/03/2014,RAIL TRAVEL,FUSION,EMPLOYEES EXPENSES,100716205,1.61,
United Kingdom Atomic energy Authority,United Kingdom Atomic energy Authority,07/03/2014,ROAD TRAVEL,FUSION,EMPLOYEES EXPENSES,100716205,19.11,
United Kingdom Atomic energy Authority,United Kingdom Atomic energy Authority,07/03/2014,OTHER EMPLOYEE EXPENSES,FUSION,EMPLOYEES EXPENSES,100716205,3.95,
United Kingdom Atomic energy Authority,United Kingdom Atomic energy Authority,07/03/2014,SUBSISTENCE,FUSION,EMPLOYEES EXPENSES,100716199,8.89,
United Kingdom Atomic energy Authority,United Kingdom Atomic energy Authority,13/03/2014,SUBSISTENCE,FUSION,EMPLOYEES EXPENSES,100716290,9.49,
United Kingdom Atomic energy Authority,United Kingdom Atomic energy Authority,15/03/2014,SUBSISTENCE,FUSION,EMPLOYEES EXPENSES,100716327,7.95,
United Kingdom Atomic energy Authority,United Kingdom Atomic energy Authority,15/03/2014,SUBSISTENCE,FUSION,EMPLOYEES EXPENSES,100716329,9.70,
United Kingdom Atomic energy Authority,United Kingdom Atomic energy Authority,22/03/2014,SUBSISTENCE,FUSION,EMPLOYEES EXPENSES,100719273,8.92,
United Kingdom Atomic energy Authority,United Kingdom Atomic energy Authority,22/03/2014,SUBSISTENCE,FUSION,EMPLOYEES EXPENSES,100719301,4.89,
United Kingdom Atomic energy Authority,United Kingdom Atomic energy Authority,22/03/2014,SUBSISTENCE,FUSION,EMPLOYEES EXPENSES,100719303,5.99,
United Kingdom Atomic energy Authority,United Kingdom Atomic energy Authority,28/03/2014,SUBSISTENCE,FUSION,EMPLOYEES EXPENSES,100719849,2.45,
United Kingdom Atomic energy Authority,United Kingdom Atomic energy Authority,28/03/2014,SUBSISTENCE,FUSION,EMPLOYEES EXPENSES,100719849,3.46,
United Kingdom Atomic energy Authority,United Kingdom Atomic energy Authority,07/03/2014,MILEAGE ALLOWANCE,FUSION,EMPLOYEES EXPENSES,100716199,7.20,
United Kingdom Atomic energy Authority,United Kingdom Atomic energy Authority,07/03/2014,MILEAGE ALLOWANCE,FUSION,EMPLOYEES EXPENSES,100716200,10.80,
United Kingdom Atomic energy Authority,United Kingdom Atomic energy Authority,22/03/2014,MILEAGE ALLOWANCE,FUSION,EMPLOYEES EXPENSES,100719272,4.50,
United Kingdom Atomic energy Authority,United Kingdom Atomic energy Authority,22/03/2014,MILEAGE ALLOWANCE,FUSION,EMPLOYEES EXPENSES,100719273,12.60,
United Kingdom Atomic energy Authority,United Kingdom Atomic energy Authority,22/03/2014,MILEAGE ALLOWANCE,FUSION,EMPLOYEES EXPENSES,100719274,7.20,
United Kingdom Atomic energy Authority,United Kingdom Atomic energy Authority,22/03/2014,MILEAGE ALLOWANCE,FUSION,EMPLOYEES EXPENSES,100719301,23.40,
United Kingdom Atomic energy Authority,United Kingdom Atomic energy Authority,22/03/2014,MILEAGE ALLOWANCE,FUSION,EMPLOYEES EXPENSES,100719303,13.50,
United Kingdom Atomic energy Authority,United Kingdom Atomic energy Authority,27/03/2014,MILEAGE ALLOWANCE,FUSION,EMPLOYEES EXPENSES,100719808,4.50,
United Kingdom Atomic energy Authority,United Kingdom Atomic energy Authority,28/03/2014,MILEAGE ALLOWANCE,FUSION,EMPLOYEES EXPENSES,100719845,10.80,
United Kingdom Atomic energy Authority,United Kingdom Atomic energy Authority,28/03/2014,MILEAGE ALLOWANCE,FUSION,EMPLOYEES EXPENSES,100719849,11.25,
United Kingdom Atomic energy Authority,United Kingdom Atomic energy Authority,27/03/2014,RAIL TRAVEL,FUSION,EMPLOYEES EXPENSES,100719808,5.90,
United Kingdom Atomic energy Authority,United Kingdom Atomic energy Authority,07/03/2014,ROAD TRAVEL,FUSION,EMPLOYEES EXPENSES,100716200,4.30,
United Kingdom Atomic energy Authority,United Kingdom Atomic energy Authority,13/03/2014,ROAD TRAVEL,FUSION,EMPLOYEES EXPENSES,100716291,23.58,
United Kingdom Atomic energy Authority,United Kingdom Atomic energy Authority,22/03/2014,ROAD TRAVEL,FUSION,EMPLOYEES EXPENSES,100719273,10.00,
United Kingdom Atomic energy Authority,United Kingdom Atomic energy Authority,22/03/2014,ROAD TRAVEL,FUSION,EMPLOYEES EXPENSES,100719274,1.50,
United Kingdom Atomic energy Authority,United Kingdom Atomic energy Authority,22/03/2014,ROAD TRAVEL,FUSION,EMPLOYEES EXPENSES,100719301,11.30,
United Kingdom Atomic energy Authority,United Kingdom Atomic energy Authority,22/03/2014,ROAD TRAVEL,FUSION,EMPLOYEES EXPENSES,100719303,6.50,
United Kingdom Atomic energy Authority,United Kingdom Atomic energy Authority,27/03/2014,ROAD TRAVEL,FUSION,EMPLOYEES EXPENSES,100719809,29.17,
United Kingdom Atomic energy Authority,United Kingdom Atomic energy Authority,28/03/2014,ROAD TRAVEL,FUSION,EMPLOYEES EXPENSES,100719849,3.40,
United Kingdom Atomic energy Authority,United Kingdom Atomic energy Authority,28/03/2014,OTHER EMPLOYEE EXPENSES,FUSION,EMPLOYEES EXPENSES,100719849,3.96,
United Kingdom Atomic energy Authority,United Kingdom Atomic energy Authority,27/03/2014,TAXIS,FUSION,EMPLOYEES EXPENSES,100719835,17.00,
United Kingdom Atomic energy Authority,United Kingdom Atomic energy Authority,27/03/2014,SUBSISTENCE,FUSION,EMPLOYEES EXPENSES,100719811,100.45,
United Kingdom Atomic energy Authority,United Kingdom Atomic energy Authority,27/03/2014,SUBSISTENCE,FUSION,EMPLOYEES EXPENSES,100719811,78.29,
United Kingdom Atomic energy Authority,United Kingdom Atomic energy Authority,07/03/2014,MILEAGE ALLOWANCE,FUSION,EMPLOYEES EXPENSES,100716179,8.10,
United Kingdom Atomic energy Authority,United Kingdom Atomic energy Authority,22/03/2014,MILEAGE ALLOWANCE,FUSION,EMPLOYEES EXPENSES,100719286,86.40,
United Kingdom Atomic energy Authority,United Kingdom Atomic energy Authority,22/03/2014,MILEAGE ALLOWANCE,FUSION,EMPLOYEES EXPENSES,100719287,86.40,
United Kingdom Atomic energy Authority,United Kingdom Atomic energy Authority,28/02/2014,RAIL TRAVEL,FUSION,EMPLOYEES EXPENSES,100716112,2.20,
United Kingdom Atomic energy Authority,United Kingdom Atomic energy Authority,22/03/2014,RAIL TRAVEL,FUSION,EMPLOYEES EXPENSES,100719289,64.50,
United Kingdom Atomic energy Authority,United Kingdom Atomic energy Authority,22/03/2014,RAIL TRAVEL,FUSION,EMPLOYEES EXPENSES,100719290,24.20,
United Kingdom Atomic energy Authority,United Kingdom Atomic energy Authority,22/03/2014,RAIL TRAVEL,FUSION,EMPLOYEES EXPENSES,100719291,58.00,
United Kingdom Atomic energy Authority,United Kingdom Atomic energy Authority,27/03/2014,RAIL TRAVEL,FUSION,EMPLOYEES EXPENSES,100719835,15.30,
United Kingdom Atomic energy Authority,United Kingdom Atomic energy Authority,28/02/2014,ROAD TRAVEL,FUSION,EMPLOYEES EXPENSES,100716093,5.42,
United Kingdom Atomic energy Authority,United Kingdom Atomic energy Authority,28/02/2014,ROAD TRAVEL,FUSION,EMPLOYEES EXPENSES,100716112,20.00,
United Kingdom Atomic energy Authority,United Kingdom Atomic energy Authority,07/03/2014,ROAD TRAVEL,FUSION,EMPLOYEES EXPENSES,100716179,5.17,
United Kingdom Atomic energy Authority,United Kingdom Atomic energy Authority,28/03/2014,ROAD TRAVEL,FUSION,EMPLOYEES EXPENSES,100719841,5.42,
United Kingdom Atomic energy Authority,United Kingdom Atomic energy Authority,22/03/2014,RELOCATION COSTS,FUSION,EMPLOYEES EXPENSES,100719306,127.30,
United Kingdom Atomic energy Authority,United Kingdom Atomic energy Authority,22/03/2014,RELOCATION COSTS,FUSION,EMPLOYEES EXPENSES,100719306,385.87,
United Kingdom Atomic energy Authority,United Kingdom Atomic energy Authority,15/03/2014,PROFESSIONAL SUBSCRIPTION,FUSION,EMPLOYEES EXPENSES,100716324,202.50,
United Kingdom Atomic energy Authority,United Kingdom Atomic energy Authority,27/03/2014,TAXIS,FUSION,EMPLOYEES EXPENSES,100719812,28.87,
United Kingdom Atomic energy Authority,United Kingdom Atomic energy Authority,28/02/2014,SUBSISTENCE,FUSION,EMPLOYEES EXPENSES,100716099,13.25,
United Kingdom Atomic energy Authority,United Kingdom Atomic energy Authority,28/02/2014,SUBSISTENCE,FUSION,EMPLOYEES EXPENSES,100716100,12.28,
United Kingdom Atomic energy Authority,United Kingdom Atomic energy Authority,27/03/2014,SUBSISTENCE,FUSION,EMPLOYEES EXPENSES,100719812,211.60,
United Kingdom Atomic energy Authority,United Kingdom Atomic energy Authority,27/03/2014,SUBSISTENCE,FUSION,EMPLOYEES EXPENSES,100719812,8.54,
United Kingdom Atomic energy Authority,United Kingdom Atomic energy Authority,28/02/2014,MILEAGE ALLOWANCE,FUSION,EMPLOYEES EXPENSES,100716099,117.90,
United Kingdom Atomic energy Authority,United Kingdom Atomic energy Authority,28/02/2014,MILEAGE ALLOWANCE,FUSION,EMPLOYEES EXPENSES,100716100,75.15,
United Kingdom Atomic energy Authority,United Kingdom Atomic energy Authority,13/03/2014,MILEAGE ALLOWANCE,FUSION,EMPLOYEES EXPENSES,100716278,7.20,
United Kingdom Atomic energy Authority,United Kingdom Atomic energy Authority,27/03/2014,ROAD TRAVEL,FUSION,EMPLOYEES EXPENSES,100719812,2.27,
United Kingdom Atomic energy Authority,United Kingdom Atomic energy Authority,28/03/2014,TAXIS,FUSION,EMPLOYEES EXPENSES,100719855,33.47,
United Kingdom Atomic energy Authority,United Kingdom Atomic energy Authority,28/03/2014,SUBSISTENCE,FUSION,EMPLOYEES EXPENSES,100719855,110.09,
United Kingdom Atomic energy Authority,United Kingdom Atomic energy Authority,07/03/2014,TAXIS,FUSION,EMPLOYEES EXPENSES,100716191,24.19,
United Kingdom Atomic energy Authority,United Kingdom Atomic energy Authority,07/03/2014,SUBSISTENCE,FUSION,EMPLOYEES EXPENSES,100716191,276.27,
United Kingdom Atomic energy Authority,United Kingdom Atomic energy Authority,07/03/2014,SUBSISTENCE,FUSION,EMPLOYEES EXPENSES,100716191,13.33,
United Kingdom Atomic energy Authority,United Kingdom Atomic energy Authority,13/03/2014,SUBSISTENCE,FUSION,EMPLOYEES EXPENSES,100716292,16.33,
United Kingdom Atomic energy Authority,United Kingdom Atomic energy Authority,13/03/2014,SUBSISTENCE,FUSION,EMPLOYEES EXPENSES,100716292,159.34,
United Kingdom Atomic energy Authority,United Kingdom Atomic energy Authority,27/03/2014,SUBSISTENCE,FUSION,EMPLOYEES EXPENSES,100719827,334.85,
United Kingdom Atomic energy Authority,United Kingdom Atomic energy Authority,27/03/2014,SUBSISTENCE,FUSION,EMPLOYEES EXPENSES,100719827,3.83,
United Kingdom Atomic energy Authority,United Kingdom Atomic energy Authority,28/03/2014,SUBSISTENCE,FUSION,EMPLOYEES EXPENSES,100719851,4.45,
United Kingdom Atomic energy Authority,United Kingdom Atomic energy Authority,22/03/2014,MILEAGE ALLOWANCE,FUSION,EMPLOYEES EXPENSES,100719276,22.50,
United Kingdom Atomic energy Authority,United Kingdom Atomic energy Authority,07/03/2014,AIR TRAVEL,FUSION,EMPLOYEES EXPENSES,100716191,361.32,
United Kingdom Atomic energy Authority,United Kingdom Atomic energy Authority,27/03/2014,RAIL TRAVEL,FUSION,EMPLOYEES EXPENSES,100719827,178.87,
United Kingdom Atomic energy Authority,United Kingdom Atomic energy Authority,28/03/2014,RAIL TRAVEL,FUSION,EMPLOYEES EXPENSES,100719851,6.80,
United Kingdom Atomic energy Authority,United Kingdom Atomic energy Authority,28/02/2014,ROAD TRAVEL,FUSION,EMPLOYEES EXPENSES,100716105,37.00,
United Kingdom Atomic energy Authority,United Kingdom Atomic energy Authority,07/03/2014,ROAD TRAVEL,FUSION,EMPLOYEES EXPENSES,100716191,37.00,
United Kingdom Atomic energy Authority,United Kingdom Atomic energy Authority,07/03/2014,ROAD TRAVEL,FUSION,EMPLOYEES EXPENSES,100716191,5.46,
United Kingdom Atomic energy Authority,United Kingdom Atomic energy Authority,13/03/2014,ROAD TRAVEL,FUSION,EMPLOYEES EXPENSES,100716292,8.00,
United Kingdom Atomic energy Authority,United Kingdom Atomic energy Authority,07/03/2014,OTHER EMPLOYEE EXPENSES,FUSION,EMPLOYEES EXPENSES,100716191,5.68,
United Kingdom Atomic energy Authority,United Kingdom Atomic energy Authority,28/02/2014,PROFESSIONAL SUBSCRIPTION,FUSION,EMPLOYEES EXPENSES,100716101,98.00,
United Kingdom Atomic energy Authority,United Kingdom Atomic energy Authority,13/03/2014,TAXIS,FUSION,EMPLOYEES EXPENSES,100716279,40.81,
United Kingdom Atomic energy Authority,United Kingdom Atomic energy Authority,07/03/2014,SUBSISTENCE,FUSION,EMPLOYEES EXPENSES,100716181,105.46,
United Kingdom Atomic energy Authority,United Kingdom Atomic energy Authority,07/03/2014,SUBSISTENCE,FUSION,EMPLOYEES EXPENSES,100716181,5.79,
United Kingdom Atomic energy Authority,United Kingdom Atomic energy Authority,13/03/2014,SUBSISTENCE,FUSION,EMPLOYEES EXPENSES,100716279,226.29,
United Kingdom Atomic energy Authority,United Kingdom Atomic energy Authority,13/03/2014,SUBSISTENCE,FUSION,EMPLOYEES EXPENSES,100716279,6.33,
United Kingdom Atomic energy Authority,United Kingdom Atomic energy Authority,07/03/2014,RAIL TRAVEL,FUSION,EMPLOYEES EXPENSES,100716181,33.85,
United Kingdom Atomic energy Authority,United Kingdom Atomic energy Authority,13/03/2014,RAIL TRAVEL,FUSION,EMPLOYEES EXPENSES,100716279,14.66,
United Kingdom Atomic energy Authority,United Kingdom Atomic energy Authority,28/02/2014,ROAD TRAVEL,FUSION,EMPLOYEES EXPENSES,100716106,28.28,
United Kingdom Atomic energy Authority,United Kingdom Atomic energy Authority,07/03/2014,ROAD TRAVEL,FUSION,EMPLOYEES EXPENSES,100716181,24.00,
United Kingdom Atomic energy Authority,United Kingdom Atomic energy Authority,13/03/2014,ROAD TRAVEL,FUSION,EMPLOYEES EXPENSES,100716279,23.00,
United Kingdom Atomic energy Authority,United Kingdom Atomic energy Authority,27/03/2014,ROAD TRAVEL,FUSION,EMPLOYEES EXPENSES,100719826,8.59,
United Kingdom Atomic energy Authority,United Kingdom Atomic energy Authority,13/03/2014,OTHER EMPLOYEE EXPENSES,FUSION,EMPLOYEES EXPENSES,100716279,3.00,
United Kingdom Atomic energy Authority,United Kingdom Atomic energy Authority,28/02/2014,SUBSISTENCE,FUSION,EMPLOYEES EXPENSES,100716098,229.66,
United Kingdom Atomic energy Authority,United Kingdom Atomic energy Authority,28/02/2014,OTHER EMPLOYEE EXPENSES,FUSION,EMPLOYEES EXPENSES,100716098,22.84,
United Kingdom Atomic energy Authority,United Kingdom Atomic energy Authority,28/02/2014,TAXIS,FUSION,EMPLOYEES EXPENSES,100716117,24.40,
United Kingdom Atomic energy Authority,United Kingdom Atomic energy Authority,28/02/2014,TAXIS,FUSION,EMPLOYEES EXPENSES,100716118,13.00,
United Kingdom Atomic energy Authority,United Kingdom Atomic energy Authority,28/02/2014,SUBSISTENCE,FUSION,EMPLOYEES EXPENSES,100716103,125.00,
United Kingdom Atomic energy Authority,United Kingdom Atomic energy Authority,28/02/2014,SUBSISTENCE,FUSION,EMPLOYEES EXPENSES,100716116,117.02,
United Kingdom Atomic energy Authority,United Kingdom Atomic energy Authority,28/02/2014,SUBSISTENCE,FUSION,EMPLOYEES EXPENSES,100716121,983.77,
United Kingdom Atomic energy Authority,United Kingdom Atomic energy Authority,27/03/2014,SUBSISTENCE,FUSION,EMPLOYEES EXPENSES,100719828,10.00,
United Kingdom Atomic energy Authority,United Kingdom Atomic energy Authority,13/03/2014,MILEAGE ALLOWANCE,FUSION,EMPLOYEES EXPENSES,100716284,60.30,
United Kingdom Atomic energy Authority,United Kingdom Atomic energy Authority,13/03/2014,MILEAGE ALLOWANCE,FUSION,EMPLOYEES EXPENSES,100716285,60.30,
United Kingdom Atomic energy Authority,United Kingdom Atomic energy Authority,13/03/2014,MILEAGE ALLOWANCE,FUSION,EMPLOYEES EXPENSES,100716286,60.30,
United Kingdom Atomic energy Authority,United Kingdom Atomic energy Authority,15/03/2014,MILEAGE ALLOWANCE,FUSION,EMPLOYEES EXPENSES,100716322,60.30,
United Kingdom Atomic energy Authority,United Kingdom Atomic energy Authority,22/03/2014,MILEAGE ALLOWANCE,FUSION,EMPLOYEES EXPENSES,100719285,60.30,
United Kingdom Atomic energy Authority,United Kingdom Atomic energy Authority,28/02/2014,RAIL TRAVEL,FUSION,EMPLOYEES EXPENSES,100716117,4.40,
United Kingdom Atomic energy Authority,United Kingdom Atomic energy Authority,28/02/2014,RAIL TRAVEL,FUSION,EMPLOYEES EXPENSES,100716118,2.20,
United Kingdom Atomic energy Authority,United Kingdom Atomic energy Authority,28/02/2014,ROAD TRAVEL,FUSION,EMPLOYEES EXPENSES,100716116,5.33,
United Kingdom Atomic energy Authority,United Kingdom Atomic energy Authority,22/03/2014,ROAD TRAVEL,FUSION,EMPLOYEES EXPENSES,100719293,24.63,
United Kingdom Atomic energy Authority,United Kingdom Atomic energy Authority,28/02/2014,PROFESSIONAL SUBSCRIPTION,FUSION,EMPLOYEES EXPENSES,100716131,236.00,
United Kingdom Atomic energy Authority,United Kingdom Atomic energy Authority,13/03/2014,PROFESSIONAL SUBSCRIPTION,FUSION,EMPLOYEES EXPENSES,100716271,103.00,
United Kingdom Atomic energy Authority,United Kingdom Atomic energy Authority,13/03/2014,PROFESSIONAL SUBSCRIPTION,FUSION,EMPLOYEES EXPENSES,100716294,236.00,
United Kingdom Atomic energy Authority,United Kingdom Atomic energy Authority,15/03/2014,PROFESSIONAL SUBSCRIPTION,FUSION,EMPLOYEES EXPENSES,100716331,243.00,
United Kingdom Atomic energy Authority,United Kingdom Atomic energy Authority,22/03/2014,PROFESSIONAL SUBSCRIPTION,FUSION,EMPLOYEES EXPENSES,100719268,137.00,
United Kingdom Atomic energy Authority,United Kingdom Atomic energy Authority,22/03/2014,PROFESSIONAL SUBSCRIPTION,FUSION,EMPLOYEES EXPENSES,100719275,197.50,
United Kingdom Atomic energy Authority,United Kingdom Atomic energy Authority,15/03/2014,CAR HIRE,FUSION,EMPLOYEES EXPENSES,100716333,210.59,
United Kingdom Atomic energy Authority,United Kingdom Atomic energy Authority,15/03/2014,SUBSISTENCE,FUSION,EMPLOYEES EXPENSES,100716333,219.35,
United Kingdom Atomic energy Authority,United Kingdom Atomic energy Authority,22/03/2014,SUBSISTENCE,FUSION,EMPLOYEES EXPENSES,100719304,212.16,
United Kingdom Atomic energy Authority,United Kingdom Atomic energy Authority,15/03/2014,ROAD TRAVEL,FUSION,EMPLOYEES EXPENSES,100716333,15.17,
United Kingdom Atomic energy Authority,United Kingdom Atomic energy Authority,22/03/2014,ROAD TRAVEL,FUSION,EMPLOYEES EXPENSES,100719304,16.74,
United Kingdom Atomic energy Authority,United Kingdom Atomic energy Authority,07/03/2014,SUBSISTENCE,FUSION,EMPLOYEES EXPENSES,100716193,110.44,
United Kingdom Atomic energy Authority,United Kingdom Atomic energy Authority,13/03/2014,SUBSISTENCE,FUSION,EMPLOYEES EXPENSES,100716293,116.23,
United Kingdom Atomic energy Authority,United Kingdom Atomic energy Authority,27/03/2014,TAXIS,FUSION,EMPLOYEES EXPENSES,100719834,19.00,
United Kingdom Atomic energy Authority,United Kingdom Atomic energy Authority,27/03/2014,SUBSISTENCE,FUSION,EMPLOYEES EXPENSES,100719832,3.75,
United Kingdom Atomic energy Authority,United Kingdom Atomic energy Authority,27/03/2014,SUBSISTENCE,FUSION,EMPLOYEES EXPENSES,100719833,2.65,
United Kingdom Atomic energy Authority,United Kingdom Atomic energy Authority,27/03/2014,SUBSISTENCE,FUSION,EMPLOYEES EXPENSES,100719834,4.46,
United Kingdom Atomic energy Authority,United Kingdom Atomic energy Authority,27/03/2014,RAIL TRAVEL,FUSION,EMPLOYEES EXPENSES,100719832,8.90,
United Kingdom Atomic energy Authority,United Kingdom Atomic energy Authority,28/02/2014,ROAD TRAVEL,FUSION,EMPLOYEES EXPENSES,100716129,51.26,
United Kingdom Atomic energy Authority,United Kingdom Atomic energy Authority,27/03/2014,ROAD TRAVEL,FUSION,EMPLOYEES EXPENSES,100719832,17.00,
United Kingdom Atomic energy Authority,United Kingdom Atomic energy Authority,27/03/2014,ROAD TRAVEL,FUSION,EMPLOYEES EXPENSES,100719833,4.58,
United Kingdom Atomic energy Authority,United Kingdom Atomic energy Authority,27/03/2014,ROAD TRAVEL,FUSION,EMPLOYEES EXPENSES,100719834,29.00,
United Kingdom Atomic energy Authority,United Kingdom Atomic energy Authority,28/02/2014,SUBSISTENCE,FUSION,EMPLOYEES EXPENSES,100716098,6.99,
United Kingdom Atomic energy Authority,United Kingdom Atomic energy Authority,28/02/2014,CAR HIRE,FUSION,EMPLOYEES EXPENSES,100716119,316.83,
United Kingdom Atomic energy Authority,United Kingdom Atomic energy Authority,28/02/2014,SUBSISTENCE,FUSION,EMPLOYEES EXPENSES,100716095,250.73,
United Kingdom Atomic energy Authority,United Kingdom Atomic energy Authority,28/02/2014,SUBSISTENCE,FUSION,EMPLOYEES EXPENSES,100716095,4.21,
United Kingdom Atomic energy Authority,United Kingdom Atomic energy Authority,28/02/2014,SUBSISTENCE,FUSION,EMPLOYEES EXPENSES,100716109,238.70,
United Kingdom Atomic energy Authority,United Kingdom Atomic energy Authority,28/02/2014,SUBSISTENCE,FUSION,EMPLOYEES EXPENSES,100716109,5.29,
United Kingdom Atomic energy Authority,United Kingdom Atomic energy Authority,28/02/2014,SUBSISTENCE,FUSION,EMPLOYEES EXPENSES,100716119,323.84,
United Kingdom Atomic energy Authority,United Kingdom Atomic energy Authority,28/02/2014,SUBSISTENCE,FUSION,EMPLOYEES EXPENSES,100716119,5.28,
United Kingdom Atomic energy Authority,United Kingdom Atomic energy Authority,28/02/2014,SUBSISTENCE,FUSION,EMPLOYEES EXPENSES,100716126,229.58,
United Kingdom Atomic energy Authority,United Kingdom Atomic energy Authority,28/02/2014,SUBSISTENCE,FUSION,EMPLOYEES EXPENSES,100716126,6.95,
United Kingdom Atomic energy Authority,United Kingdom Atomic energy Authority,28/02/2014,MILEAGE ALLOWANCE,FUSION,EMPLOYEES EXPENSES,100716092,7.20,
United Kingdom Atomic energy Authority,United Kingdom Atomic energy Authority,07/03/2014,MILEAGE ALLOWANCE,FUSION,EMPLOYEES EXPENSES,100716177,7.20,
United Kingdom Atomic energy Authority,United Kingdom Atomic energy Authority,07/03/2014,MILEAGE ALLOWANCE,FUSION,EMPLOYEES EXPENSES,100716197,6.30,
United Kingdom Atomic energy Authority,United Kingdom Atomic energy Authority,13/03/2014,MILEAGE ALLOWANCE,FUSION,EMPLOYEES EXPENSES,100716270,7.20,
United Kingdom Atomic energy Authority,United Kingdom Atomic energy Authority,22/03/2014,MILEAGE ALLOWANCE,FUSION,EMPLOYEES EXPENSES,100719262,7.20,
United Kingdom Atomic energy Authority,United Kingdom Atomic energy Authority,27/03/2014,MILEAGE ALLOWANCE,FUSION,EMPLOYEES EXPENSES,100719806,7.20,
United Kingdom Atomic energy Authority,United Kingdom Atomic energy Authority,28/02/2014,ROAD TRAVEL,FUSION,EMPLOYEES EXPENSES,100716095,10.48,
United Kingdom Atomic energy Authority,United Kingdom Atomic energy Authority,28/02/2014,ROAD TRAVEL,FUSION,EMPLOYEES EXPENSES,100716119,22.14,
United Kingdom Atomic energy Authority,United Kingdom Atomic energy Authority,15/03/2014,TAXIS,FUSION,EMPLOYEES EXPENSES,100716332,21.00,
United Kingdom Atomic energy Authority,United Kingdom Atomic energy Authority,15/03/2014,SUBSISTENCE,FUSION,EMPLOYEES EXPENSES,100716332,12.91,
United Kingdom Atomic energy Authority,United Kingdom Atomic energy Authority,22/03/2014,SUBSISTENCE,FUSION,EMPLOYEES EXPENSES,100719269,10.00,
United Kingdom Atomic energy Authority,United Kingdom Atomic energy Authority,22/03/2014,MILEAGE ALLOWANCE,FUSION,EMPLOYEES EXPENSES,100719269,169.20,
United Kingdom Atomic energy Authority,United Kingdom Atomic energy Authority,15/03/2014,RAIL TRAVEL,FUSION,EMPLOYEES EXPENSES,100716332,150.50,
United Kingdom Atomic energy Authority,United Kingdom Atomic energy Authority,22/03/2014,RAIL TRAVEL,FUSION,EMPLOYEES EXPENSES,100719269,60.40,
United Kingdom Atomic energy Authority,United Kingdom Atomic energy Authority,22/03/2014,ROAD TRAVEL,FUSION,EMPLOYEES EXPENSES,100719269,3.60,
United Kingdom Atomic energy Authority,United Kingdom Atomic energy Authority,28/02/2014,TAXIS,,EMPLOYEES EXPENSES,100716111,13.27,
United Kingdom Atomic energy Authority,United Kingdom Atomic energy Authority,07/03/2014,TAXIS,,EMPLOYEES EXPENSES,100716204,50.31,
United Kingdom Atomic energy Authority,United Kingdom Atomic energy Authority,22/03/2014,TAXIS,,EMPLOYEES EXPENSES,100719278,24.90,
United Kingdom Atomic energy Authority,United Kingdom Atomic energy Authority,27/03/2014,TAXIS,,EMPLOYEES EXPENSES,100719807,12.27,
United Kingdom Atomic energy Authority,United Kingdom Atomic energy Authority,28/02/2014,SUBSISTENCE,,EMPLOYEES EXPENSES,100716096,11.90,
United Kingdom Atomic energy Authority,United Kingdom Atomic energy Authority,28/02/2014,SUBSISTENCE,,EMPLOYEES EXPENSES,100716096,113.97,
United Kingdom Atomic energy Authority,United Kingdom Atomic energy Authority,28/02/2014,SUBSISTENCE,,EMPLOYEES EXPENSES,100716104,292.63,
United Kingdom Atomic energy Authority,United Kingdom Atomic energy Authority,28/02/2014,SUBSISTENCE,,EMPLOYEES EXPENSES,100716104,10.83,
United Kingdom Atomic energy Authority,United Kingdom Atomic energy Authority,28/02/2014,SUBSISTENCE,,EMPLOYEES EXPENSES,100716105,364.20,
United Kingdom Atomic energy Authority,United Kingdom Atomic energy Authority,28/02/2014,SUBSISTENCE,,EMPLOYEES EXPENSES,100716108,"1,373.07",
United Kingdom Atomic energy Authority,United Kingdom Atomic energy Authority,28/02/2014,SUBSISTENCE,,EMPLOYEES EXPENSES,100716108,3.16,
United Kingdom Atomic energy Authority,United Kingdom Atomic energy Authority,28/02/2014,SUBSISTENCE,,EMPLOYEES EXPENSES,100716110,193.31,
United Kingdom Atomic energy Authority,United Kingdom Atomic energy Authority,28/02/2014,SUBSISTENCE,,EMPLOYEES EXPENSES,100716111,913.16,
United Kingdom Atomic energy Authority,United Kingdom Atomic energy Authority,28/02/2014,SUBSISTENCE,,EMPLOYEES EXPENSES,100716111,4.74,
United Kingdom Atomic energy Authority,United Kingdom Atomic energy Authority,07/03/2014,SUBSISTENCE,,EMPLOYEES EXPENSES,100716182,10.00,
United Kingdom Atomic energy Authority,United Kingdom Atomic energy Authority,07/03/2014,SUBSISTENCE,,EMPLOYEES EXPENSES,100716182,120.39,
United Kingdom Atomic energy Authority,United Kingdom Atomic energy Authority,07/03/2014,SUBSISTENCE,,EMPLOYEES EXPENSES,100716204,215.21,
United Kingdom Atomic energy Authority,United Kingdom Atomic energy Authority,13/03/2014,SUBSISTENCE,,EMPLOYEES EXPENSES,100716272,14.00,
United Kingdom Atomic energy Authority,United Kingdom Atomic energy Authority,13/03/2014,SUBSISTENCE,,EMPLOYEES EXPENSES,100716272,100.79,
United Kingdom Atomic energy Authority,United Kingdom Atomic energy Authority,13/03/2014,SUBSISTENCE,,EMPLOYEES EXPENSES,100716301,285.01,
United Kingdom Atomic energy Authority,United Kingdom Atomic energy Authority,13/03/2014,SUBSISTENCE,,EMPLOYEES EXPENSES,100716301,9.58,
United Kingdom Atomic energy Authority,United Kingdom Atomic energy Authority,22/03/2014,SUBSISTENCE,,EMPLOYEES EXPENSES,100719264,13.95,
United Kingdom Atomic energy Authority,United Kingdom Atomic energy Authority,22/03/2014,SUBSISTENCE,,EMPLOYEES EXPENSES,100719264,122.85,
United Kingdom Atomic energy Authority,United Kingdom Atomic energy Authority,22/03/2014,SUBSISTENCE,,EMPLOYEES EXPENSES,100719278,291.85,
United Kingdom Atomic energy Authority,United Kingdom Atomic energy Authority,22/03/2014,SUBSISTENCE,,EMPLOYEES EXPENSES,100719278,11.17,
United Kingdom Atomic energy Authority,United Kingdom Atomic energy Authority,22/03/2014,SUBSISTENCE,,EMPLOYEES EXPENSES,100719295,5.00,
United Kingdom Atomic energy Authority,United Kingdom Atomic energy Authority,22/03/2014,SUBSISTENCE,,EMPLOYEES EXPENSES,100719295,65.83,
United Kingdom Atomic energy Authority,United Kingdom Atomic energy Authority,27/03/2014,SUBSISTENCE,,EMPLOYEES EXPENSES,100719807,301.21,
United Kingdom Atomic energy Authority,United Kingdom Atomic energy Authority,27/03/2014,SUBSISTENCE,,EMPLOYEES EXPENSES,100719807,3.67,
United Kingdom Atomic energy Authority,United Kingdom Atomic energy Authority,27/03/2014,SUBSISTENCE,,EMPLOYEES EXPENSES,100719810,9.00,
United Kingdom Atomic energy Authority,United Kingdom Atomic energy Authority,27/03/2014,SUBSISTENCE,,EMPLOYEES EXPENSES,100719810,68.38,
United Kingdom Atomic energy Authority,United Kingdom Atomic energy Authority,27/03/2014,SUBSISTENCE,,EMPLOYEES EXPENSES,100719814,"1,987.90",
United Kingdom Atomic energy Authority,United Kingdom Atomic energy Authority,28/03/2014,SUBSISTENCE,,EMPLOYEES EXPENSES,100719850,150.56,
United Kingdom Atomic energy Authority,United Kingdom Atomic energy Authority,28/03/2014,SUBSISTENCE,,EMPLOYEES EXPENSES,100719852,147.52,
United Kingdom Atomic energy Authority,United Kingdom Atomic energy Authority,28/03/2014,SUBSISTENCE,,EMPLOYEES EXPENSES,100719852,4.42,
United Kingdom Atomic energy Authority,United Kingdom Atomic energy Authority,28/02/2014,MILEAGE ALLOWANCE,,EMPLOYEES EXPENSES,100716096,54.00,
United Kingdom Atomic energy Authority,United Kingdom Atomic energy Authority,07/03/2014,MILEAGE ALLOWANCE,,EMPLOYEES EXPENSES,100716182,54.00,
United Kingdom Atomic energy Authority,United Kingdom Atomic energy Authority,13/03/2014,MILEAGE ALLOWANCE,,EMPLOYEES EXPENSES,100716272,54.00,
United Kingdom Atomic energy Authority,United Kingdom Atomic energy Authority,22/03/2014,MILEAGE ALLOWANCE,,EMPLOYEES EXPENSES,100719264,54.00,
United Kingdom Atomic energy Authority,United Kingdom Atomic energy Authority,27/03/2014,MILEAGE ALLOWANCE,,EMPLOYEES EXPENSES,100719810,54.00,
United Kingdom Atomic energy Authority,United Kingdom Atomic energy Authority,13/03/2014,AIR TRAVEL,,EMPLOYEES EXPENSES,100716301,40.00,
United Kingdom Atomic energy Authority,United Kingdom Atomic energy Authority,28/02/2014,RAIL TRAVEL,,EMPLOYEES EXPENSES,100716104,6.47,
United Kingdom Atomic energy Authority,United Kingdom Atomic energy Authority,28/02/2014,RAIL TRAVEL,,EMPLOYEES EXPENSES,100716105,55.61,
United Kingdom Atomic energy Authority,United Kingdom Atomic energy Authority,28/02/2014,RAIL TRAVEL,,EMPLOYEES EXPENSES,100716108,71.75,
United Kingdom Atomic energy Authority,United Kingdom Atomic energy Authority,28/02/2014,RAIL TRAVEL,,EMPLOYEES EXPENSES,100716110,15.05,
United Kingdom Atomic energy Authority,United Kingdom Atomic energy Authority,28/02/2014,RAIL TRAVEL,,EMPLOYEES EXPENSES,100716111,171.52,
United Kingdom Atomic energy Authority,United Kingdom Atomic energy Authority,07/03/2014,RAIL TRAVEL,,EMPLOYEES EXPENSES,100716204,11.41,
United Kingdom Atomic energy Authority,United Kingdom Atomic energy Authority,27/03/2014,RAIL TRAVEL,,EMPLOYEES EXPENSES,100719807,158.39,
United Kingdom Atomic energy Authority,United Kingdom Atomic energy Authority,28/03/2014,RAIL TRAVEL,,EMPLOYEES EXPENSES,100719850,6.00,
United Kingdom Atomic energy Authority,United Kingdom Atomic energy Authority,28/03/2014,RAIL TRAVEL,,EMPLOYEES EXPENSES,100719850,35.28,
United Kingdom Atomic energy Authority,United Kingdom Atomic energy Authority,28/03/2014,RAIL TRAVEL,,EMPLOYEES EXPENSES,100719852,14.80,
United Kingdom Atomic energy Authority,United Kingdom Atomic energy Authority,28/03/2014,RAIL TRAVEL,,EMPLOYEES EXPENSES,100719852,40.40,
United Kingdom Atomic energy Authority,United Kingdom Atomic energy Authority,28/02/2014,ROAD TRAVEL,,EMPLOYEES EXPENSES,100716105,7.47,
United Kingdom Atomic energy Authority,United Kingdom Atomic energy Authority,28/02/2014,ROAD TRAVEL,,EMPLOYEES EXPENSES,100716108,23.00,
United Kingdom Atomic energy Authority,United Kingdom Atomic energy Authority,28/02/2014,ROAD TRAVEL,,EMPLOYEES EXPENSES,100716110,20.02,
United Kingdom Atomic energy Authority,United Kingdom Atomic energy Authority,28/02/2014,ROAD TRAVEL,,EMPLOYEES EXPENSES,100716111,19.33,
United Kingdom Atomic energy Authority,United Kingdom Atomic energy Authority,07/03/2014,ROAD TRAVEL,,EMPLOYEES EXPENSES,100716204,26.00,
United Kingdom Atomic energy Authority,United Kingdom Atomic energy Authority,13/03/2014,ROAD TRAVEL,,EMPLOYEES EXPENSES,100716301,26.00,
United Kingdom Atomic energy Authority,United Kingdom Atomic energy Authority,13/03/2014,ROAD TRAVEL,,EMPLOYEES EXPENSES,100716301,34.53,
United Kingdom Atomic energy Authority,United Kingdom Atomic energy Authority,22/03/2014,ROAD TRAVEL,,EMPLOYEES EXPENSES,100719278,8.63,
United Kingdom Atomic energy Authority,United Kingdom Atomic energy Authority,22/03/2014,ROAD TRAVEL,,EMPLOYEES EXPENSES,100719295,125.00,
United Kingdom Atomic energy Authority,United Kingdom Atomic energy Authority,27/03/2014,ROAD TRAVEL,,EMPLOYEES EXPENSES,100719814,1.10,
United Kingdom Atomic energy Authority,United Kingdom Atomic energy Authority,28/03/2014,ROAD TRAVEL,,EMPLOYEES EXPENSES,100719850,26.00,
United Kingdom Atomic energy Authority,United Kingdom Atomic energy Authority,28/03/2014,ROAD TRAVEL,,EMPLOYEES EXPENSES,100719852,23.00,
United Kingdom Atomic energy Authority,United Kingdom Atomic energy Authority,27/03/2014,SEA TRAVEL,,EMPLOYEES EXPENSES,100719814,53.00,
United Kingdom Atomic energy Authority,United Kingdom Atomic energy Authority,07/03/2014,OTHER EMPLOYEE EXPENSES,,EMPLOYEES EXPENSES,100716204,3.00,
United Kingdom Atomic energy Authority,United Kingdom Atomic energy Authority,27/03/2014,OTHER EMPLOYEE EXPENSES,,EMPLOYEES EXPENSES,100719807,5.95,
United Kingdom Atomic energy Authority,United Kingdom Atomic energy Authority,27/03/2014,OTHER EMPLOYEE EXPENSES,,EMPLOYEES EXPENSES,100719814,544.21,
United Kingdom Atomic energy Authority,United Kingdom Atomic energy Authority,28/03/2014,OTHER EMPLOYEE EXPENSES,,EMPLOYEES EXPENSES,100719850,5.83,
United Kingdom Atomic energy Authority,United Kingdom Atomic energy Authority,28/03/2014,OTHER EMPLOYEE EXPENSES,,EMPLOYEES EXPENSES,100719852,5.05,
United Kingdom Atomic energy Authority,United Kingdom Atomic energy Authority,28/02/2014,EFDA TRAVEL EXPENSES,,EMPLOYEES EXPENSES,100716107,270.61,
United Kingdom Atomic energy Authority,United Kingdom Atomic energy Authority,13/03/2014,EFDA TRAVEL EXPENSES,,EMPLOYEES EXPENSES,100716282,106.35,
United Kingdom Atomic energy Authority,United Kingdom Atomic energy Authority,22/03/2014,EFDA TRAVEL EXPENSES,,EMPLOYEES EXPENSES,100719282,12.04,
United Kingdom Atomic energy Authority,United Kingdom Atomic energy Authority,22/03/2014,EFDA TRAVEL EXPENSES,,EMPLOYEES EXPENSES,100719283,72.17,
United Kingdom Atomic energy Authority,United Kingdom Atomic energy Authority,22/03/2014,EFDA TRAVEL EXPENSES,,EMPLOYEES EXPENSES,100719284,154.59,
United Kingdom Atomic energy Authority,United Kingdom Atomic energy Authority,27/03/2014,EFDA TRAVEL EXPENSES,,EMPLOYEES EXPENSES,100719817,256.80,
United Kingdom Atomic energy Authority,United Kingdom Atomic energy Authority,27/03/2014,EFDA TRAVEL EXPENSES,,EMPLOYEES EXPENSES,100719818,571.90,
United Kingdom Atomic energy Authority,United Kingdom Atomic energy Authority,27/03/2014,EFDA TRAVEL EXPENSES,,EMPLOYEES EXPENSES,100719820,176.56,
United Kingdom Atomic energy Authority,United Kingdom Atomic energy Authority,28/02/2014,SUBSISTENCE,,EMPLOYEES EXPENSES,100716094,383.15,
United Kingdom Atomic energy Authority,United Kingdom Atomic energy Authority,28/02/2014,SUBSISTENCE,,EMPLOYEES EXPENSES,100716102,102.33,
United Kingdom Atomic energy Authority,United Kingdom Atomic energy Authority,28/02/2014,RAIL TRAVEL,,EMPLOYEES EXPENSES,100716102,35.26,
United Kingdom Atomic energy Authority,United Kingdom Atomic energy Authority,28/02/2014,ROAD TRAVEL,,EMPLOYEES EXPENSES,100716102,24.00,
United Kingdom Atomic energy Authority,United Kingdom Atomic energy Authority,28/02/2014,ROAD TRAVEL,,EMPLOYEES EXPENSES,100716102,8.00,
United Kingdom Atomic energy Authority,United Kingdom Atomic energy Authority,07/03/2014,TAXIS,PROPERTY,EMPLOYEES EXPENSES,100716202,26.60,
United Kingdom Atomic energy Authority,United Kingdom Atomic energy Authority,28/02/2014,SUBSISTENCE,PROPERTY,EMPLOYEES EXPENSES,100716097,15.72,
United Kingdom Atomic energy Authority,United Kingdom Atomic energy Authority,07/03/2014,SUBSISTENCE,PROPERTY,EMPLOYEES EXPENSES,100716202,74.87,
United Kingdom Atomic energy Authority,United Kingdom Atomic energy Authority,28/02/2014,MILEAGE ALLOWANCE,PROPERTY,EMPLOYEES EXPENSES,100716097,89.76,
United Kingdom Atomic energy Authority,United Kingdom Atomic energy Authority,07/03/2014,RAIL TRAVEL,PROPERTY,EMPLOYEES EXPENSES,100716202,74.60,
United Kingdom Atomic energy Authority,United Kingdom Atomic energy Authority,22/03/2014,TAXIS,FUSION,EMPLOYEES EXPENSES,100719270,6.20,
United Kingdom Atomic energy Authority,United Kingdom Atomic energy Authority,28/02/2014,SUBSISTENCE,FUSION,EMPLOYEES EXPENSES,100716120,16.23,
United Kingdom Atomic energy Authority,United Kingdom Atomic energy Authority,07/03/2014,SUBSISTENCE,FUSION,EMPLOYEES EXPENSES,100716192,5.00,
United Kingdom Atomic energy Authority,United Kingdom Atomic energy Authority,07/03/2014,SUBSISTENCE,FUSION,EMPLOYEES EXPENSES,100716192,78.33,
United Kingdom Atomic energy Authority,United Kingdom Atomic energy Authority,07/03/2014,SUBSISTENCE,FUSION,EMPLOYEES EXPENSES,100716217,14.08,
United Kingdom Atomic energy Authority,United Kingdom Atomic energy Authority,22/03/2014,SUBSISTENCE,FUSION,EMPLOYEES EXPENSES,100719270,143.54,
United Kingdom Atomic energy Authority,United Kingdom Atomic energy Authority,28/03/2014,SUBSISTENCE,FUSION,EMPLOYEES EXPENSES,100719856,14.36,
United Kingdom Atomic energy Authority,United Kingdom Atomic energy Authority,28/02/2014,ROAD TRAVEL,FUSION,EMPLOYEES EXPENSES,100716120,9.17,
United Kingdom Atomic energy Authority,United Kingdom Atomic energy Authority,07/03/2014,ROAD TRAVEL,FUSION,EMPLOYEES EXPENSES,100716192,9.17,
United Kingdom Atomic energy Authority,United Kingdom Atomic energy Authority,07/03/2014,ROAD TRAVEL,FUSION,EMPLOYEES EXPENSES,100716217,9.17,
United Kingdom Atomic energy Authority,United Kingdom Atomic energy Authority,28/03/2014,ROAD TRAVEL,FUSION,EMPLOYEES EXPENSES,100719856,9.17,
United Kingdom Atomic energy Authority,United Kingdom Atomic energy Authority,15/03/2014,OTHER EMPLOYEE EXPENSES,FUSION,EMPLOYEES EXPENSES,100716326,8.41,
United Kingdom Atomic energy Authority,United Kingdom Atomic energy Authority,07/03/2014,SUBSISTENCE,FUSION,EMPLOYEES EXPENSES,100716195,271.26,
United Kingdom Atomic energy Authority,United Kingdom Atomic energy Authority,07/03/2014,SUBSISTENCE,FUSION,EMPLOYEES EXPENSES,100716195,6.58,
United Kingdom Atomic energy Authority,United Kingdom Atomic energy Authority,07/03/2014,ROAD TRAVEL,FUSION,EMPLOYEES EXPENSES,100716195,21.74,
United Kingdom Atomic energy Authority,United Kingdom Atomic energy Authority,07/03/2014,SUBSISTENCE,FUSION,EMPLOYEES EXPENSES,100716220,15.49,
United Kingdom Atomic energy Authority,United Kingdom Atomic energy Authority,07/03/2014,SUBSISTENCE,FUSION,EMPLOYEES EXPENSES,100716220,89.99,
United Kingdom Atomic energy Authority,United Kingdom Atomic energy Authority,13/03/2014,SUBSISTENCE,FUSION,EMPLOYEES EXPENSES,100716300,6.58,
United Kingdom Atomic energy Authority,United Kingdom Atomic energy Authority,22/03/2014,SUBSISTENCE,FUSION,EMPLOYEES EXPENSES,100719298,2.66,
United Kingdom Atomic energy Authority,United Kingdom Atomic energy Authority,22/03/2014,SUBSISTENCE,FUSION,EMPLOYEES EXPENSES,100719299,8.79,
United Kingdom Atomic energy Authority,United Kingdom Atomic energy Authority,22/03/2014,SUBSISTENCE,FUSION,EMPLOYEES EXPENSES,100719299,2.00,
United Kingdom Atomic energy Authority,United Kingdom Atomic energy Authority,22/03/2014,SUBSISTENCE,FUSION,EMPLOYEES EXPENSES,100719300,8.23,
United Kingdom Atomic energy Authority,United Kingdom Atomic energy Authority,22/03/2014,SUBSISTENCE,FUSION,EMPLOYEES EXPENSES,100719305,7.15,
United Kingdom Atomic energy Authority,United Kingdom Atomic energy Authority,22/03/2014,SUBSISTENCE,FUSION,EMPLOYEES EXPENSES,100719305,1.83,
United Kingdom Atomic energy Authority,United Kingdom Atomic energy Authority,28/03/2014,SUBSISTENCE,FUSION,EMPLOYEES EXPENSES,100719859,11.50,
United Kingdom Atomic energy Authority,United Kingdom Atomic energy Authority,22/03/2014,MILEAGE ALLOWANCE,FUSION,EMPLOYEES EXPENSES,100719299,135.00,
United Kingdom Atomic energy Authority,United Kingdom Atomic energy Authority,22/03/2014,MILEAGE ALLOWANCE,FUSION,EMPLOYEES EXPENSES,100719300,59.40,
United Kingdom Atomic energy Authority,United Kingdom Atomic energy Authority,22/03/2014,RAIL TRAVEL,FUSION,EMPLOYEES EXPENSES,100719298,21.50,
United Kingdom Atomic energy Authority,United Kingdom Atomic energy Authority,28/03/2014,RAIL TRAVEL,FUSION,EMPLOYEES EXPENSES,100719859,64.50,
United Kingdom Atomic energy Authority,United Kingdom Atomic energy Authority,07/03/2014,ROAD TRAVEL,FUSION,EMPLOYEES EXPENSES,100716220,76.04,
United Kingdom Atomic energy Authority,United Kingdom Atomic energy Authority,28/03/2014,ROAD TRAVEL,FUSION,EMPLOYEES EXPENSES,100719859,5.17,
United Kingdom Atomic energy Authority,United Kingdom Atomic energy Authority,07/03/2014,OTHER EMPLOYEE EXPENSES,FUSION,EMPLOYEES EXPENSES,100716220,2.50,
United Kingdom Atomic energy Authority,United Kingdom Atomic energy Authority,07/03/2014,SUBSISTENCE,SUPPORT SERVICES,EMPLOYEES EXPENSES,100716211,7.04,
United Kingdom Atomic energy Authority,United Kingdom Atomic energy Authority,07/03/2014,SUBSISTENCE,SUPPORT SERVICES,EMPLOYEES EXPENSES,100716212,3.75,
United Kingdom Atomic energy Authority,United Kingdom Atomic energy Authority,07/03/2014,RAIL TRAVEL,SUPPORT SERVICES,EMPLOYEES EXPENSES,100716211,48.45,
United Kingdom Atomic energy Authority,United Kingdom Atomic energy Authority,07/03/2014,RAIL TRAVEL,SUPPORT SERVICES,EMPLOYEES EXPENSES,100716212,70.40,
United Kingdom Atomic energy Authority,United Kingdom Atomic energy Authority,28/02/2014,TAXIS,SUPPORT SERVICES,EMPLOYEES EXPENSES,100716123,9.00,
United Kingdom Atomic energy Authority,United Kingdom Atomic energy Authority,28/02/2014,TAXIS,SUPPORT SERVICES,EMPLOYEES EXPENSES,100716124,51.00,
United Kingdom Atomic energy Authority,United Kingdom Atomic energy Authority,13/03/2014,TAXIS,SUPPORT SERVICES,EMPLOYEES EXPENSES,100716296,18.00,
United Kingdom Atomic energy Authority,United Kingdom Atomic energy Authority,13/03/2014,TAXIS,SUPPORT SERVICES,EMPLOYEES EXPENSES,100716297,19.00,
United Kingdom Atomic energy Authority,United Kingdom Atomic energy Authority,28/02/2014,SUBSISTENCE,SUPPORT SERVICES,EMPLOYEES EXPENSES,100716123,3.99,
United Kingdom Atomic energy Authority,United Kingdom Atomic energy Authority,07/03/2014,SUBSISTENCE,SUPPORT SERVICES,EMPLOYEES EXPENSES,100716187,1.80,
United Kingdom Atomic energy Authority,United Kingdom Atomic energy Authority,07/03/2014,SUBSISTENCE,SUPPORT SERVICES,EMPLOYEES EXPENSES,100716188,1.80,
United Kingdom Atomic energy Authority,United Kingdom Atomic energy Authority,07/03/2014,SUBSISTENCE,SUPPORT SERVICES,EMPLOYEES EXPENSES,100716189,3.29,
United Kingdom Atomic energy Authority,United Kingdom Atomic energy Authority,13/03/2014,SUBSISTENCE,SUPPORT SERVICES,EMPLOYEES EXPENSES,100716296,6.24,
United Kingdom Atomic energy Authority,United Kingdom Atomic energy Authority,13/03/2014,SUBSISTENCE,SUPPORT SERVICES,EMPLOYEES EXPENSES,100716297,4.08,
United Kingdom Atomic energy Authority,United Kingdom Atomic energy Authority,28/03/2014,SUBSISTENCE,SUPPORT SERVICES,EMPLOYEES EXPENSES,100719846,5.00,
United Kingdom Atomic energy Authority,United Kingdom Atomic energy Authority,07/03/2014,MILEAGE ALLOWANCE,SUPPORT SERVICES,EMPLOYEES EXPENSES,100716187,12.87,
United Kingdom Atomic energy Authority,United Kingdom Atomic energy Authority,07/03/2014,MILEAGE ALLOWANCE,SUPPORT SERVICES,EMPLOYEES EXPENSES,100716188,12.60,
United Kingdom Atomic energy Authority,United Kingdom Atomic energy Authority,07/03/2014,MILEAGE ALLOWANCE,SUPPORT SERVICES,EMPLOYEES EXPENSES,100716189,12.87,
United Kingdom Atomic energy Authority,United Kingdom Atomic energy Authority,28/02/2014,RAIL TRAVEL,SUPPORT SERVICES,EMPLOYEES EXPENSES,100716123,18.95,
United Kingdom Atomic energy Authority,United Kingdom Atomic energy Authority,28/02/2014,RAIL TRAVEL,SUPPORT SERVICES,EMPLOYEES EXPENSES,100716124,37.90,
United Kingdom Atomic energy Authority,United Kingdom Atomic energy Authority,13/03/2014,RAIL TRAVEL,SUPPORT SERVICES,EMPLOYEES EXPENSES,100716296,18.95,
United Kingdom Atomic energy Authority,United Kingdom Atomic energy Authority,28/03/2014,RAIL TRAVEL,SUPPORT SERVICES,EMPLOYEES EXPENSES,100719846,29.50,
United Kingdom Atomic energy Authority,United Kingdom Atomic energy Authority,07/03/2014,ROAD TRAVEL,SUPPORT SERVICES,EMPLOYEES EXPENSES,100716187,4.75,
United Kingdom Atomic energy Authority,United Kingdom Atomic energy Authority,07/03/2014,ROAD TRAVEL,SUPPORT SERVICES,EMPLOYEES EXPENSES,100716188,4.75,
United Kingdom Atomic energy Authority,United Kingdom Atomic energy Authority,07/03/2014,ROAD TRAVEL,SUPPORT SERVICES,EMPLOYEES EXPENSES,100716189,4.75,
United Kingdom Atomic energy Authority,United Kingdom Atomic energy Authority,28/03/2014,ROAD TRAVEL,SUPPORT SERVICES,EMPLOYEES EXPENSES,100719846,12.80,
United Kingdom Atomic energy Authority,United Kingdom Atomic energy Authority,07/03/2014,OTHER EMPLOYEE EXPENSES,SUPPORT SERVICES,EMPLOYEES EXPENSES,100716219,20.97,
United Kingdom Atomic energy Authority,United Kingdom Atomic energy Authority,28/03/2014,PROFESSIONAL SUBSCRIPTION,SUPPORT SERVICES,EMPLOYEES EXPENSES,100719847,755.00,
United Kingdom Atomic energy Authority,United Kingdom Atomic energy Authority,15/03/2014,RAIL TRAVEL,SUPPORT SERVICES,EMPLOYEES EXPENSES,100716336,64.50,
United Kingdom Atomic energy Authority,United Kingdom Atomic energy Authority,15/03/2014,ROAD TRAVEL,SUPPORT SERVICES,EMPLOYEES EXPENSES,100716336,5.17,
United Kingdom Atomic energy Authority,United Kingdom Atomic energy Authority,06/03/2014,MATERIALS & SPARES,FUSION,Enclustra GmbH,5100300907,-5611.34,
United Kingdom Atomic energy Authority,United Kingdom Atomic energy Authority,06/03/2014,MATERIALS & SPARES,FUSION,Enclustra GmbH,5100300908,5611.34,
United Kingdom Atomic energy Authority,United Kingdom Atomic energy Authority,11/03/2014,PLANT & EQUIPMENT,FUSION,Enviro-Vac Sales and Service Ltd,1900059530, 292.80,
United Kingdom Atomic energy Authority,United Kingdom Atomic energy Authority,20/03/2014,PLANT & EQUIPMENT,FUSION,Enviro-Vac Sales and Service Ltd,1900059572, 381.60,
United Kingdom Atomic energy Authority,United Kingdom Atomic energy Authority,20/03/2014,CONFERENCES/MEETINGS,FUSION,EPS 2014,1900059570," 1,503.06",
United Kingdom Atomic energy Authority,United Kingdom Atomic energy Authority,26/02/2014,MATERIALS & SPARES,FUSION,ERIKS UK,5100300113,230.2,
United Kingdom Atomic energy Authority,United Kingdom Atomic energy Authority,26/02/2014,MATERIALS & SPARES,FUSION,ERIKS UK,5100299935,162.08,
United Kingdom Atomic energy Authority,United Kingdom Atomic energy Authority,17/03/2014,PROFESSIONAL SERVICES,FUSION,EUROPEAN INSTRUMENTS,5100301454,1196.75,
United Kingdom Atomic energy Authority,United Kingdom Atomic energy Authority,12/03/2014,SITE SUPPORT SERVICES,FUSION,EVERSON TESLA INC,5100300630,33603.36,
United Kingdom Atomic energy Authority,United Kingdom Atomic energy Authority,19/03/2014,SITE SUPPORT SERVICES,FUSION,EVERSON TESLA INC,5100301382,22607.86,
United Kingdom Atomic energy Authority,United Kingdom Atomic energy Authority,10/03/2014,REPAIRS & MAINTENANCE,FUSION,FACTAIR LTD,5100300904,11791.5,
United Kingdom Atomic energy Authority,United Kingdom Atomic energy Authority,24/03/2014,REPAIRS & MAINTENANCE,FUSION,FACTAIR LTD,5100301206,30641,
United Kingdom Atomic energy Authority,United Kingdom Atomic energy Authority,10/03/2014,REPAIRS & MAINTENANCE,FUSION,FACTAIR LTD,5100300909,25,
United Kingdom Atomic energy Authority,United Kingdom Atomic energy Authority,10/03/2014,PROFESSIONAL SERVICES,FUSION,FAITHFUL & GOULD,5100300834,11018,
United Kingdom Atomic energy Authority,United Kingdom Atomic energy Authority,03/03/2014,MATERIALS & SPARES,SUPPORT SERVICES,FARNELL ELECTRONIC,5100300511,150,
United Kingdom Atomic energy Authority,United Kingdom Atomic energy Authority,03/03/2014,MATERIALS & SPARES,FUSION,FARNELL ELECTRONIC,5100300666,99.89,
United Kingdom Atomic energy Authority,United Kingdom Atomic energy Authority,17/03/2014,MATERIALS & SPARES,FUSION,FARNELL ELECTRONIC,5100301412,110.44,
United Kingdom Atomic energy Authority,United Kingdom Atomic energy Authority,17/03/2014,MATERIALS & SPARES,FUSION,FARNELL ELECTRONIC,5100301421,16.39,
United Kingdom Atomic energy Authority,United Kingdom Atomic energy Authority,26/03/2014,MATERIALS & SPARES,FUSION,FARNELL ELECTRONIC,5100301837,197.3,
United Kingdom Atomic energy Authority,United Kingdom Atomic energy Authority,26/02/2014,MATERIALS & SPARES,FUSION,FARNELL ELECTRONIC,5100300448,0.4,
United Kingdom Atomic energy Authority,United Kingdom Atomic energy Authority,12/03/2014,MATERIALS & SPARES,FUSION,FARNELL ELECTRONIC,5100301057,30,
United Kingdom Atomic energy Authority,United Kingdom Atomic energy Authority,17/03/2014,MATERIALS & SPARES,FUSION,FARNELL ELECTRONIC,5100301182,185.62,
United Kingdom Atomic energy Authority,United Kingdom Atomic energy Authority,17/03/2014,MATERIALS & SPARES,FUSION,FARNELL ELECTRONIC,5100301419,77.7,
United Kingdom Atomic energy Authority,United Kingdom Atomic energy Authority,26/03/2014,MATERIALS & SPARES,FUSION,FARNELL ELECTRONIC,5100301855,82.03,
United Kingdom Atomic energy Authority,United Kingdom Atomic energy Authority,12/03/2014,MATERIALS & SPARES,FUSION,FARNELL ELECTRONIC,5100300938,109.05,
United Kingdom Atomic energy Authority,United Kingdom Atomic energy Authority,12/03/2014,MATERIALS & SPARES,FUSION,FARNELL ELECTRONIC,5100301049,132.66,
United Kingdom Atomic energy Authority,United Kingdom Atomic energy Authority,17/03/2014,MATERIALS & SPARES,FUSION,FARNELL ELECTRONIC,5100301425,532.61,
United Kingdom Atomic energy Authority,United Kingdom Atomic energy Authority,26/02/2014,MATERIALS & SPARES,FUSION,FARNELL ELECTRONIC,5100300246,53.8,
United Kingdom Atomic energy Authority,United Kingdom Atomic energy Authority,26/02/2014,MATERIALS & SPARES,FUSION,FARNELL ELECTRONIC,5100299924,153.54,
United Kingdom Atomic energy Authority,United Kingdom Atomic energy Authority,26/02/2014,MATERIALS & SPARES,FUSION,FARNELL ELECTRONIC,5100300013,1182.32,
United Kingdom Atomic energy Authority,United Kingdom Atomic energy Authority,26/02/2014,MATERIALS & SPARES,FUSION,FARNELL ELECTRONIC,5100300015,454.5,
United Kingdom Atomic energy Authority,United Kingdom Atomic energy Authority,26/02/2014,MATERIALS & SPARES,FUSION,FARNELL ELECTRONIC,5100300018,259.12,
United Kingdom Atomic energy Authority,United Kingdom Atomic energy Authority,26/02/2014,MATERIALS & SPARES,FUSION,FARNELL ELECTRONIC,5100300253,55.2,
United Kingdom Atomic energy Authority,United Kingdom Atomic energy Authority,26/02/2014,MATERIALS & SPARES,FUSION,FARNELL ELECTRONIC,5100300288,26.24,
United Kingdom Atomic energy Authority,United Kingdom Atomic energy Authority,26/02/2014,MATERIALS & SPARES,FUSION,FARNELL ELECTRONIC,5100300441,27.08,
United Kingdom Atomic energy Authority,United Kingdom Atomic energy Authority,26/02/2014,MATERIALS & SPARES,FUSION,FARNELL ELECTRONIC,5100300445,204.49,
United Kingdom Atomic energy Authority,United Kingdom Atomic energy Authority,10/03/2014,MATERIALS & SPARES,FUSION,FARNELL ELECTRONIC,5100300675,456.45,
United Kingdom Atomic energy Authority,United Kingdom Atomic energy Authority,10/03/2014,MATERIALS & SPARES,FUSION,FARNELL ELECTRONIC,5100300936,64.2,
United Kingdom Atomic energy Authority,United Kingdom Atomic energy Authority,12/03/2014,MATERIALS & SPARES,FUSION,FARNELL ELECTRONIC,5100300969,242.67,
United Kingdom Atomic energy Authority,United Kingdom Atomic energy Authority,10/03/2014,MATERIALS & SPARES,FUSION,FARNELL ELECTRONIC,5100300970,208.28,
United Kingdom Atomic energy Authority,United Kingdom Atomic energy Authority,12/03/2014,MATERIALS & SPARES,FUSION,FARNELL ELECTRONIC,5100301045,48.42,
United Kingdom Atomic energy Authority,United Kingdom Atomic energy Authority,17/03/2014,MATERIALS & SPARES,FUSION,FARNELL ELECTRONIC,5100301176,7.08,
United Kingdom Atomic energy Authority,United Kingdom Atomic energy Authority,17/03/2014,MATERIALS & SPARES,FUSION,FARNELL ELECTRONIC,5100301249,25.88,
United Kingdom Atomic energy Authority,United Kingdom Atomic energy Authority,19/03/2014,MATERIALS & SPARES,FUSION,FARNELL ELECTRONIC,5100301519,-84.26,
United Kingdom Atomic energy Authority,United Kingdom Atomic energy Authority,26/03/2014,MATERIALS & SPARES,FUSION,FARNELL ELECTRONIC,5100301898,456.45,
United Kingdom Atomic energy Authority,United Kingdom Atomic energy Authority,26/03/2014,MATERIALS & SPARES,FUSION,FARNELL ELECTRONIC,5100301910,-456.45,
United Kingdom Atomic energy Authority,United Kingdom Atomic energy Authority,26/02/2014,MATERIALS & SPARES,FUSION,FARNELL ELECTRONIC,5100300007,137.57,
United Kingdom Atomic energy Authority,United Kingdom Atomic energy Authority,26/02/2014,MATERIALS & SPARES,FUSION,FARNELL ELECTRONIC,5100300096,12.27,
United Kingdom Atomic energy Authority,United Kingdom Atomic energy Authority,26/02/2014,MATERIALS & SPARES,FUSION,FARNELL ELECTRONIC,5100300097,188.18,
United Kingdom Atomic energy Authority,United Kingdom Atomic energy Authority,26/02/2014,MATERIALS & SPARES,FUSION,FARNELL ELECTRONIC,5100300098,31.5,
United Kingdom Atomic energy Authority,United Kingdom Atomic energy Authority,26/02/2014,MATERIALS & SPARES,FUSION,FARNELL ELECTRONIC,5100300099,116.92,
United Kingdom Atomic energy Authority,United Kingdom Atomic energy Authority,26/02/2014,MATERIALS & SPARES,FUSION,FARNELL ELECTRONIC,5100300118,31.5,
United Kingdom Atomic energy Authority,United Kingdom Atomic energy Authority,26/02/2014,MATERIALS & SPARES,FUSION,FARNELL ELECTRONIC,5100300386,105.14,
United Kingdom Atomic energy Authority,United Kingdom Atomic energy Authority,26/02/2014,MATERIALS & SPARES,FUSION,FARNELL ELECTRONIC,5100300442,3.3,
United Kingdom Atomic energy Authority,United Kingdom Atomic energy Authority,26/02/2014,MATERIALS & SPARES,FUSION,FARNELL ELECTRONIC,5100300444,8.54,
United Kingdom Atomic energy Authority,United Kingdom Atomic energy Authority,26/02/2014,MATERIALS & SPARES,FUSION,FARNELL ELECTRONIC,5100300446,0.27,
United Kingdom Atomic energy Authority,United Kingdom Atomic energy Authority,03/03/2014,MATERIALS & SPARES,FUSION,FARNELL ELECTRONIC,5100300457,7.4,
United Kingdom Atomic energy Authority,United Kingdom Atomic energy Authority,03/03/2014,MATERIALS & SPARES,FUSION,FARNELL ELECTRONIC,5100300458,77.22,
United Kingdom Atomic energy Authority,United Kingdom Atomic energy Authority,05/03/2014,MATERIALS & SPARES,FUSION,FARNELL ELECTRONIC,5100300509,62.9,
United Kingdom Atomic energy Authority,United Kingdom Atomic energy Authority,05/03/2014,MATERIALS & SPARES,FUSION,FARNELL ELECTRONIC,5100300512,100.73,
United Kingdom Atomic energy Authority,United Kingdom Atomic energy Authority,03/03/2014,MATERIALS & SPARES,FUSION,FARNELL ELECTRONIC,5100300672,117.93,
United Kingdom Atomic energy Authority,United Kingdom Atomic energy Authority,12/03/2014,MATERIALS & SPARES,FUSION,FARNELL ELECTRONIC,5100300847,61.01,
United Kingdom Atomic energy Authority,United Kingdom Atomic energy Authority,10/03/2014,MATERIALS & SPARES,FUSION,FARNELL ELECTRONIC,5100300933,7.24,
United Kingdom Atomic energy Authority,United Kingdom Atomic energy Authority,10/03/2014,MATERIALS & SPARES,FUSION,FARNELL ELECTRONIC,5100300935,74.35,
United Kingdom Atomic energy Authority,United Kingdom Atomic energy Authority,12/03/2014,MATERIALS & SPARES,FUSION,FARNELL ELECTRONIC,5100300939,2.42,
United Kingdom Atomic energy Authority,United Kingdom Atomic energy Authority,19/03/2014,MATERIALS & SPARES,FUSION,FARNELL ELECTRONIC,5100301042,253.16,
United Kingdom Atomic energy Authority,United Kingdom Atomic energy Authority,10/03/2014,MATERIALS & SPARES,FUSION,FARNELL ELECTRONIC,5100301046,16.9,
United Kingdom Atomic energy Authority,United Kingdom Atomic energy Authority,17/03/2014,MATERIALS & SPARES,FUSION,FARNELL ELECTRONIC,5100301172,104.33,
United Kingdom Atomic energy Authority,United Kingdom Atomic energy Authority,17/03/2014,MATERIALS & SPARES,FUSION,FARNELL ELECTRONIC,5100301178,21.92,
United Kingdom Atomic energy Authority,United Kingdom Atomic energy Authority,17/03/2014,MATERIALS & SPARES,FUSION,FARNELL ELECTRONIC,5100301213,4.42,
United Kingdom Atomic energy Authority,United Kingdom Atomic energy Authority,17/03/2014,MATERIALS & SPARES,FUSION,FARNELL ELECTRONIC,5100301252,115.68,
United Kingdom Atomic energy Authority,United Kingdom Atomic energy Authority,17/03/2014,MATERIALS & SPARES,FUSION,FARNELL ELECTRONIC,5100301414,389.28,
United Kingdom Atomic energy Authority,United Kingdom Atomic energy Authority,17/03/2014,MATERIALS & SPARES,FUSION,FARNELL ELECTRONIC,5100301415,9.32,
United Kingdom Atomic energy Authority,United Kingdom Atomic energy Authority,19/03/2014,MATERIALS & SPARES,FUSION,FARNELL ELECTRONIC,5100301420,141.31,
United Kingdom Atomic energy Authority,United Kingdom Atomic energy Authority,17/03/2014,MATERIALS & SPARES,FUSION,FARNELL ELECTRONIC,5100301424,62.67,
United Kingdom Atomic energy Authority,United Kingdom Atomic energy Authority,17/03/2014,MATERIALS & SPARES,FUSION,FARNELL ELECTRONIC,5100301426,0.2,
United Kingdom Atomic energy Authority,United Kingdom Atomic energy Authority,17/03/2014,MATERIALS & SPARES,FUSION,FARNELL ELECTRONIC,5100301428,48.68,
United Kingdom Atomic energy Authority,United Kingdom Atomic energy Authority,17/03/2014,MATERIALS & SPARES,FUSION,FARNELL ELECTRONIC,5100301430,65.12,
United Kingdom Atomic energy Authority,United Kingdom Atomic energy Authority,19/03/2014,MATERIALS & SPARES,FUSION,FARNELL ELECTRONIC,5100301517,-6.47,
United Kingdom Atomic energy Authority,United Kingdom Atomic energy Authority,24/03/2014,MATERIALS & SPARES,FUSION,FARNELL ELECTRONIC,5100301523,1,
United Kingdom Atomic energy Authority,United Kingdom Atomic energy Authority,24/03/2014,MATERIALS & SPARES,FUSION,FARNELL ELECTRONIC,5100301623,4.48,
United Kingdom Atomic energy Authority,United Kingdom Atomic energy Authority,26/03/2014,MATERIALS & SPARES,FUSION,FARNELL ELECTRONIC,5100301824,100.23,
United Kingdom Atomic energy Authority,United Kingdom Atomic energy Authority,26/03/2014,MATERIALS & SPARES,FUSION,FARNELL ELECTRONIC,5100301840,298.36,
United Kingdom Atomic energy Authority,United Kingdom Atomic energy Authority,26/03/2014,MATERIALS & SPARES,FUSION,FARNELL ELECTRONIC,5100301889,36,
United Kingdom Atomic energy Authority,United Kingdom Atomic energy Authority,26/02/2014,MATERIALS & SPARES,FUSION,FARNELL ELECTRONIC,5100300385,249.89,
United Kingdom Atomic energy Authority,United Kingdom Atomic energy Authority,26/02/2014,MATERIALS & SPARES,FUSION,FARNELL ELECTRONIC,5100300443,88.56,
United Kingdom Atomic energy Authority,United Kingdom Atomic energy Authority,03/03/2014,MATERIALS & SPARES,FUSION,FARNELL ELECTRONIC,5100300674,220.32,
United Kingdom Atomic energy Authority,United Kingdom Atomic energy Authority,10/03/2014,MATERIALS & SPARES,FUSION,FARNELL ELECTRONIC,5100300850,26.65,
United Kingdom Atomic energy Authority,United Kingdom Atomic energy Authority,10/03/2014,MATERIALS & SPARES,FUSION,FARNELL ELECTRONIC,5100300931,287.91,
United Kingdom Atomic energy Authority,United Kingdom Atomic energy Authority,10/03/2014,MATERIALS & SPARES,FUSION,FARNELL ELECTRONIC,5100300934,35.42,
United Kingdom Atomic energy Authority,United Kingdom Atomic energy Authority,12/03/2014,MATERIALS & SPARES,FUSION,FARNELL ELECTRONIC,5100301050,55.44,
United Kingdom Atomic energy Authority,United Kingdom Atomic energy Authority,17/03/2014,MATERIALS & SPARES,FUSION,FARNELL ELECTRONIC,5100301422,69.96,
United Kingdom Atomic energy Authority,United Kingdom Atomic energy Authority,17/03/2014,MATERIALS & SPARES,FUSION,FARNELL ELECTRONIC,5100301427,45.12,
United Kingdom Atomic energy Authority,United Kingdom Atomic energy Authority,24/03/2014,MATERIALS & SPARES,FUSION,FARNELL ELECTRONIC,5100301479,12.88,
United Kingdom Atomic energy Authority,United Kingdom Atomic energy Authority,26/03/2014,MATERIALS & SPARES,FUSION,FARNELL ELECTRONIC,5100301831,17.28,
United Kingdom Atomic energy Authority,United Kingdom Atomic energy Authority,26/03/2014,MATERIALS & SPARES,FUSION,FARNELL ELECTRONIC,5100301852,69.88,
United Kingdom Atomic energy Authority,United Kingdom Atomic energy Authority,26/02/2014,MATERIALS & SPARES,FUSION,FARNELL ELECTRONIC,5100300245,590.2,
United Kingdom Atomic energy Authority,United Kingdom Atomic energy Authority,26/02/2014,MATERIALS & SPARES,FUSION,FARNELL ELECTRONIC,5100300287,113.17,
United Kingdom Atomic energy Authority,United Kingdom Atomic energy Authority,03/03/2014,MATERIALS & SPARES,FUSION,FARNELL ELECTRONIC,5100300676,376.2,
United Kingdom Atomic energy Authority,United Kingdom Atomic energy Authority,17/03/2014,MATERIALS & SPARES,FUSION,FARNELL ELECTRONIC,5100301185,76.4,
United Kingdom Atomic energy Authority,United Kingdom Atomic energy Authority,17/03/2014,MATERIALS & SPARES,FUSION,FARNELL ELECTRONIC,5100301409,19.11,
United Kingdom Atomic energy Authority,United Kingdom Atomic energy Authority,17/03/2014,MATERIALS & SPARES,FUSION,FARNELL ELECTRONIC,5100301413,117.43,
United Kingdom Atomic energy Authority,United Kingdom Atomic energy Authority,17/03/2014,MATERIALS & SPARES,FUSION,FARNELL ELECTRONIC,5100301418,1302.47,
United Kingdom Atomic energy Authority,United Kingdom Atomic energy Authority,24/03/2014,MATERIALS & SPARES,FUSION,FARNELL ELECTRONIC,5100301480,10.04,
United Kingdom Atomic energy Authority,United Kingdom Atomic energy Authority,24/03/2014,MATERIALS & SPARES,FUSION,FARNELL ELECTRONIC,5100301626,18.5,
United Kingdom Atomic energy Authority,United Kingdom Atomic energy Authority,26/03/2014,MATERIALS & SPARES,FUSION,FARNELL ELECTRONIC,5100301878,358.27,
United Kingdom Atomic energy Authority,United Kingdom Atomic energy Authority,03/03/2014,MATERIALS & SPARES,FUSION,FARNELL ELECTRONIC,5100300668,7.05,
United Kingdom Atomic energy Authority,United Kingdom Atomic energy Authority,03/03/2014,MATERIALS & SPARES,FUSION,FARNELL ELECTRONIC,5100300669,66.45,
United Kingdom Atomic energy Authority,United Kingdom Atomic energy Authority,10/03/2014,MATERIALS & SPARES,FUSION,FARNELL ELECTRONIC,5100300932,35.48,
United Kingdom Atomic energy Authority,United Kingdom Atomic energy Authority,26/03/2014,MATERIALS & SPARES,FUSION,FARNELL ELECTRONIC,5100301828,71.64,
United Kingdom Atomic energy Authority,United Kingdom Atomic energy Authority,26/02/2014,MATERIALS & SPARES,FUSION,FARNELL ELECTRONIC,5100300020,0.5,
United Kingdom Atomic energy Authority,United Kingdom Atomic energy Authority,26/02/2014,MATERIALS & SPARES,FUSION,FARNELL ELECTRONIC,5100300100,988.2,
United Kingdom Atomic energy Authority,United Kingdom Atomic energy Authority,26/02/2014,MATERIALS & SPARES,FUSION,FARNELL ELECTRONIC,5100300101,50.5,
United Kingdom Atomic energy Authority,United Kingdom Atomic energy Authority,26/02/2014,MATERIALS & SPARES,FUSION,FARNELL ELECTRONIC,5100300285,12.07,
United Kingdom Atomic energy Authority,United Kingdom Atomic energy Authority,26/02/2014,MATERIALS & SPARES,FUSION,FARNELL ELECTRONIC,5100300447,285.79,
United Kingdom Atomic energy Authority,United Kingdom Atomic energy Authority,10/03/2014,MATERIALS & SPARES,FUSION,FARNELL ELECTRONIC,5100300848,12.04,
United Kingdom Atomic energy Authority,United Kingdom Atomic energy Authority,10/03/2014,MATERIALS & SPARES,FUSION,FARNELL ELECTRONIC,5100300849,323.24,
United Kingdom Atomic energy Authority,United Kingdom Atomic energy Authority,10/03/2014,MATERIALS & SPARES,FUSION,FARNELL ELECTRONIC,5100300930,132.7,
United Kingdom Atomic energy Authority,United Kingdom Atomic energy Authority,10/03/2014,MATERIALS & SPARES,FUSION,FARNELL ELECTRONIC,5100301058,23.92,
United Kingdom Atomic energy Authority,United Kingdom Atomic energy Authority,10/03/2014,MATERIALS & SPARES,FUSION,FARNELL ELECTRONIC,5100301059,267.54,
United Kingdom Atomic energy Authority,United Kingdom Atomic energy Authority,10/03/2014,MATERIALS & SPARES,FUSION,FARNELL ELECTRONIC,5100301060,420.43,
United Kingdom Atomic energy Authority,United Kingdom Atomic energy Authority,19/03/2014,MATERIALS & SPARES,FUSION,FARNELL ELECTRONIC,5100301247,96.54,
United Kingdom Atomic energy Authority,United Kingdom Atomic energy Authority,17/03/2014,MATERIALS & SPARES,FUSION,FARNELL ELECTRONIC,5100301429,337.62,
United Kingdom Atomic energy Authority,United Kingdom Atomic energy Authority,24/03/2014,MATERIALS & SPARES,FUSION,FARNELL ELECTRONIC,5100301524,13.86,
United Kingdom Atomic energy Authority,United Kingdom Atomic energy Authority,26/03/2014,MATERIALS & SPARES,FUSION,FARNELL ELECTRONIC,5100301879,13.55,
United Kingdom Atomic energy Authority,United Kingdom Atomic energy Authority,26/03/2014,MATERIALS & SPARES,FUSION,FARNELL ELECTRONIC,5100301902,109.02,
United Kingdom Atomic energy Authority,United Kingdom Atomic energy Authority,26/02/2014,MATERIALS & SPARES,FUSION,FARNELL ELECTRONIC,5100300010,358.45,
United Kingdom Atomic energy Authority,United Kingdom Atomic energy Authority,17/03/2014,MATERIALS & SPARES,FUSION,FARNELL ELECTRONIC,5100301173,210.03,
United Kingdom Atomic energy Authority,United Kingdom Atomic energy Authority,24/03/2014,MATERIALS & SPARES,FUSION,FARNELL ELECTRONIC,5100301411,37.16,
United Kingdom Atomic energy Authority,United Kingdom Atomic energy Authority,24/03/2014,MATERIALS & SPARES,FUSION,FARNELL ELECTRONIC,5100301417,8.8,
United Kingdom Atomic energy Authority,United Kingdom Atomic energy Authority,26/03/2014,MATERIALS & SPARES,FUSION,FARNELL ELECTRONIC,5100301845,168.3,
United Kingdom Atomic energy Authority,United Kingdom Atomic energy Authority,26/02/2014,MATERIALS & SPARES,FUSION,FARNELL ELECTRONIC,5100300247,388.56,
United Kingdom Atomic energy Authority,United Kingdom Atomic energy Authority,26/02/2014,MATERIALS & SPARES,FUSION,FARNELL ELECTRONIC,5100300384,18.69,
United Kingdom Atomic energy Authority,United Kingdom Atomic energy Authority,03/03/2014,MATERIALS & SPARES,FUSION,FARNELL ELECTRONIC,5100300510,66.51,
United Kingdom Atomic energy Authority,United Kingdom Atomic energy Authority,03/03/2014,MATERIALS & SPARES,FUSION,FARNELL ELECTRONIC,5100300670,46.24,
United Kingdom Atomic energy Authority,United Kingdom Atomic energy Authority,10/03/2014,MATERIALS & SPARES,FUSION,FARNELL ELECTRONIC,5100300832,13.54,
United Kingdom Atomic energy Authority,United Kingdom Atomic energy Authority,10/03/2014,MATERIALS & SPARES,FUSION,FARNELL ELECTRONIC,5100300937,256.1,
United Kingdom Atomic energy Authority,United Kingdom Atomic energy Authority,17/03/2014,MATERIALS & SPARES,FUSION,FARNELL ELECTRONIC,5100301175,11.48,
United Kingdom Atomic energy Authority,United Kingdom Atomic energy Authority,26/03/2014,MATERIALS & SPARES,FUSION,FARNELL ELECTRONIC,5100301177,22.95,
United Kingdom Atomic energy Authority,United Kingdom Atomic energy Authority,26/03/2014,MATERIALS & SPARES,FUSION,FARNELL ELECTRONIC,5100301184,45.9,
United Kingdom Atomic energy Authority,United Kingdom Atomic energy Authority,19/03/2014,MATERIALS & SPARES,FUSION,FARNELL ELECTRONIC,5100301410,42.42,
United Kingdom Atomic energy Authority,United Kingdom Atomic energy Authority,19/03/2014,MATERIALS & SPARES,FUSION,FARNELL ELECTRONIC,5100301416,11.44,
United Kingdom Atomic energy Authority,United Kingdom Atomic energy Authority,26/03/2014,MATERIALS & SPARES,FUSION,FARNELL ELECTRONIC,5100301478,885.15,
United Kingdom Atomic energy Authority,United Kingdom Atomic energy Authority,24/03/2014,MATERIALS & SPARES,FUSION,FARNELL ELECTRONIC,5100301484,63.2,
United Kingdom Atomic energy Authority,United Kingdom Atomic energy Authority,24/03/2014,MATERIALS & SPARES,FUSION,FARNELL ELECTRONIC,5100301521,54.17,
United Kingdom Atomic energy Authority,United Kingdom Atomic energy Authority,24/03/2014,MATERIALS & SPARES,FUSION,FARNELL ELECTRONIC,5100301522,172.13,
United Kingdom Atomic energy Authority,United Kingdom Atomic energy Authority,26/03/2014,MATERIALS & SPARES,FUSION,FARNELL ELECTRONIC,5100301818,0.72,
United Kingdom Atomic energy Authority,United Kingdom Atomic energy Authority,17/03/2014,MATERIALS & SPARES,FUSION,FARNELL ELECTRONIC,5100301256,56.09,
United Kingdom Atomic energy Authority,United Kingdom Atomic energy Authority,03/03/2014,MATERIALS & SPARES,FUSION,FARNELL ELECTRONIC,5100300286,49.4,
United Kingdom Atomic energy Authority,United Kingdom Atomic energy Authority,26/02/2014,MATERIALS & SPARES,FUSION,FARNELL ELECTRONIC,5100300289,17.55,
United Kingdom Atomic energy Authority,United Kingdom Atomic energy Authority,26/02/2014,MATERIALS & SPARES,FUSION,FARNELL ELECTRONIC,5100300102,193.62,
United Kingdom Atomic energy Authority,United Kingdom Atomic energy Authority,03/03/2014,MATERIALS & SPARES,FUSION,FARNELL ELECTRONIC,5100300456,3.4,
United Kingdom Atomic energy Authority,United Kingdom Atomic energy Authority,03/03/2014,MATERIALS & SPARES,FUSION,FARNELL ELECTRONIC,5100300667,155.35,
United Kingdom Atomic energy Authority,United Kingdom Atomic energy Authority,03/03/2014,MATERIALS & SPARES,FUSION,FARNELL ELECTRONIC,5100300673,155.35,
United Kingdom Atomic energy Authority,United Kingdom Atomic energy Authority,10/03/2014,MATERIALS & SPARES,FUSION,FARNELL ELECTRONIC,5100301047,17.74,
United Kingdom Atomic energy Authority,United Kingdom Atomic energy Authority,17/03/2014,MATERIALS & SPARES,FUSION,FARNELL ELECTRONIC,5100301174,461.9,
United Kingdom Atomic energy Authority,United Kingdom Atomic energy Authority,17/03/2014,MATERIALS & SPARES,FUSION,FARNELL ELECTRONIC,5100301250,268,
United Kingdom Atomic energy Authority,United Kingdom Atomic energy Authority,26/03/2014,MATERIALS & SPARES,FUSION,FARNELL ELECTRONIC,5100301817,342.45,
United Kingdom Atomic energy Authority,United Kingdom Atomic energy Authority,26/03/2014,MATERIALS & SPARES,FUSION,FARNELL ELECTRONIC,5100301867,136.19,
United Kingdom Atomic energy Authority,United Kingdom Atomic energy Authority,17/03/2014,MATERIALS & SPARES,FUSION,FARNELL ELECTRONIC,5100301423,177.44,
United Kingdom Atomic energy Authority,United Kingdom Atomic energy Authority,24/03/2014,MATERIALS & SPARES,FUSION,FARNELL ELECTRONIC,5100301624,123.1,
United Kingdom Atomic energy Authority,United Kingdom Atomic energy Authority,26/03/2014,MATERIALS & SPARES,FUSION,FARNELL ELECTRONIC,5100301816,7.49,
United Kingdom Atomic energy Authority,United Kingdom Atomic energy Authority,26/03/2014,MATERIALS & SPARES,FUSION,FARNELL ELECTRONIC,5100301839,555.41,
United Kingdom Atomic energy Authority,United Kingdom Atomic energy Authority,26/02/2014,MATERIALS & SPARES,FUSION,FARNELL ELECTRONIC,5100300243,145.18,
United Kingdom Atomic energy Authority,United Kingdom Atomic energy Authority,24/03/2014,STATIONERY,FUSION,FINE PRINT SERVICES,5100300698,1750,
United Kingdom Atomic energy Authority,United Kingdom Atomic energy Authority,17/03/2014,PLANT & EQUIPMENT,SUPPORT SERVICES,FISHER SCIENTIFIC UK LTD,5100301362,292.9,
United Kingdom Atomic energy Authority,United Kingdom Atomic energy Authority,17/03/2014,PLANT & EQUIPMENT,FUSION,FISHER SCIENTIFIC UK LTD,5100301101,222.1,
United Kingdom Atomic energy Authority,United Kingdom Atomic energy Authority,17/03/2014,PLANT & EQUIPMENT,FUSION,FISHER SCIENTIFIC UK LTD,5100301361,61.11,
United Kingdom Atomic energy Authority,United Kingdom Atomic energy Authority,26/02/2014,PLANT & EQUIPMENT,FUSION,FISHER SCIENTIFIC UK LTD,5100300424,70.37,
United Kingdom Atomic energy Authority,United Kingdom Atomic energy Authority,03/03/2014,PLANT & EQUIPMENT,FUSION,FISHER SCIENTIFIC UK LTD,5100300616,513,
United Kingdom Atomic energy Authority,United Kingdom Atomic energy Authority,24/03/2014,PLANT & EQUIPMENT,FUSION,FISHER SCIENTIFIC UK LTD,5100301755,76,
United Kingdom Atomic energy Authority,United Kingdom Atomic energy Authority,26/02/2014,PLANT & EQUIPMENT,FUSION,FISHER SCIENTIFIC UK LTD,5100300202,161.64,
United Kingdom Atomic energy Authority,United Kingdom Atomic energy Authority,26/02/2014,PLANT & EQUIPMENT,FUSION,FISHER SCIENTIFIC UK LTD,5100300203,749.24,
United Kingdom Atomic energy Authority,United Kingdom Atomic energy Authority,26/02/2014,PLANT & EQUIPMENT,FUSION,FISHER SCIENTIFIC UK LTD,5100300423,109.32,
United Kingdom Atomic energy Authority,United Kingdom Atomic energy Authority,03/03/2014,PLANT & EQUIPMENT,FUSION,FISHER SCIENTIFIC UK LTD,5100300454,27.24,
United Kingdom Atomic energy Authority,United Kingdom Atomic energy Authority,10/03/2014,PLANT & EQUIPMENT,FUSION,FISHER SCIENTIFIC UK LTD,5100300779,66.93,
United Kingdom Atomic energy Authority,United Kingdom Atomic energy Authority,10/03/2014,PLANT & EQUIPMENT,FUSION,FISHER SCIENTIFIC UK LTD,5100300780,213.25,
United Kingdom Atomic energy Authority,United Kingdom Atomic energy Authority,17/03/2014,PLANT & EQUIPMENT,FUSION,FISHER SCIENTIFIC UK LTD,5100301104,1185.4,
United Kingdom Atomic energy Authority,United Kingdom Atomic energy Authority,24/03/2014,PLANT & EQUIPMENT,FUSION,FISHER SCIENTIFIC UK LTD,5100301753,1788.79,
United Kingdom Atomic energy Authority,United Kingdom Atomic energy Authority,24/03/2014,PLANT & EQUIPMENT,FUSION,FISHER SCIENTIFIC UK LTD,5100301754,723.02,
United Kingdom Atomic energy Authority,United Kingdom Atomic energy Authority,10/03/2014,PLANT & EQUIPMENT,FUSION,FISHER SCIENTIFIC UK LTD,5100299790,148.3,
United Kingdom Atomic energy Authority,United Kingdom Atomic energy Authority,26/02/2014,PLANT & EQUIPMENT,FUSION,FISHER SCIENTIFIC UK LTD,5100300422,37.59,
United Kingdom Atomic energy Authority,United Kingdom Atomic energy Authority,03/03/2014,PLANT & EQUIPMENT,FUSION,FISHER SCIENTIFIC UK LTD,5100300615,91.45,
United Kingdom Atomic energy Authority,United Kingdom Atomic energy Authority,24/03/2014,PLANT & EQUIPMENT,FUSION,FISHER SCIENTIFIC UK LTD,5100301752,54.7,
United Kingdom Atomic energy Authority,United Kingdom Atomic energy Authority,10/03/2014,STATIONERY,FUSION,FLAPS ENVELOPES LTD,5100300949,163.04,
United Kingdom Atomic energy Authority,United Kingdom Atomic energy Authority,10/03/2014,STATIONERY,FUSION,FLAPS ENVELOPES LTD,5100300950,212.5,
United Kingdom Atomic energy Authority,United Kingdom Atomic energy Authority,24/03/2014,MATERIALS & SPARES,FUSION,FLEXIBLE REINFORCEMENT LIMITED,5100301404,1825,
United Kingdom Atomic energy Authority,United Kingdom Atomic energy Authority,24/03/2014,MATERIALS & SPARES,FUSION,FLEXIBLE REINFORCEMENT LIMITED,5100301405,825,
United Kingdom Atomic energy Authority,United Kingdom Atomic energy Authority,03/03/2014,MATERIALS & SPARES,FUSION,FLEXIBLE REINFORCEMENT LIMITED,5100300553,737.5,
United Kingdom Atomic energy Authority,United Kingdom Atomic energy Authority,03/03/2014,MATERIALS & SPARES,FUSION,FLEXIBLE REINFORCEMENT LIMITED,5100300554,737.5,
United Kingdom Atomic energy Authority,United Kingdom Atomic energy Authority,03/03/2014,PLANT SPARES,FUSION,FLUID CONTROL LTD,5100300525,35.36,
United Kingdom Atomic energy Authority,United Kingdom Atomic energy Authority,26/02/2014,MATERIALS & SPARES,FUSION,FORGEWELD LTD,5100300395,398.7,
United Kingdom Atomic energy Authority,United Kingdom Atomic energy Authority,03/03/2014,MATERIALS & SPARES,FUSION,FORGEWELD LTD,5100300619,61.98,
United Kingdom Atomic energy Authority,United Kingdom Atomic energy Authority,10/03/2014,MATERIALS & SPARES,FUSION,FORGEWELD LTD,5100300697,47.6,
United Kingdom Atomic energy Authority,United Kingdom Atomic energy Authority,19/03/2014,MATERIALS & SPARES,FUSION,FORGEWELD LTD,5100301051,107.22,
United Kingdom Atomic energy Authority,United Kingdom Atomic energy Authority,17/03/2014,MATERIALS & SPARES,FUSION,FORGEWELD LTD,5100301052,739.25,
United Kingdom Atomic energy Authority,United Kingdom Atomic energy Authority,03/03/2014,MATERIALS & SPARES,FUSION,FORGEWELD LTD,5100300397,799.36,
United Kingdom Atomic energy Authority,United Kingdom Atomic energy Authority,24/03/2014,PROFESSIONAL SERVICES,FUSION,FORTRESS INTERLOCKS LTD,5100301638,547.86,
United Kingdom Atomic energy Authority,United Kingdom Atomic energy Authority,12/03/2014,PROFESSIONAL SERVICES,FUSION,FORTRESS INTERLOCKS LTD,5100300861,3638.23,
United Kingdom Atomic energy Authority,United Kingdom Atomic energy Authority,10/03/2014,PROFESSIONAL SERVICES,FUSION,FORTRESS INTERLOCKS LTD,5100300906,191.94,
United Kingdom Atomic energy Authority,United Kingdom Atomic energy Authority,17/03/2014,PROFESSIONAL SERVICES,FUSION,FORTRESS INTERLOCKS LTD,5100300859,4303.07,
United Kingdom Atomic energy Authority,United Kingdom Atomic energy Authority,19/03/2014,PROFESSIONAL SERVICES,FUSION,FORTRESS INTERLOCKS LTD,5100301403,789.68,
United Kingdom Atomic energy Authority,United Kingdom Atomic energy Authority,26/02/2014,MATERIALS & SPARES,FUSION,FORWARD 2000 LTD,5100300067,127.5,
United Kingdom Atomic energy Authority,United Kingdom Atomic energy Authority,03/03/2014,MATERIALS & SPARES,FUSION,FORWARD 2000 LTD,5100300449,345.16,
United Kingdom Atomic energy Authority,United Kingdom Atomic energy Authority,24/03/2014,MATERIALS & SPARES,FUSION,FORWARD 2000 LTD,5100301496,1700.88,
United Kingdom Atomic energy Authority,United Kingdom Atomic energy Authority,10/03/2014,RESEARCH & DEVELOPMENT,FUSION,FRAZER NASH CONSULTANCY,5100300621,24727.38,
United Kingdom Atomic energy Authority,United Kingdom Atomic energy Authority,26/03/2014,MATERIALS & SPARES,FUSION,FTI LTD,5100301800,51.5,
United Kingdom Atomic energy Authority,United Kingdom Atomic energy Authority,26/03/2014,MATERIALS & SPARES,FUSION,FTI LTD,5100301801,83.03,
United Kingdom Atomic energy Authority,United Kingdom Atomic energy Authority,19/03/2014,MATERIALS & SPARES,FUSION,FuG ELECTRONIK ,5100301156,2093.07,
United Kingdom Atomic energy Authority,United Kingdom Atomic energy Authority,10/03/2014,STATIONERY,FUSION,FULTON PAPER,5100300027,3080,
United Kingdom Atomic energy Authority,United Kingdom Atomic energy Authority,10/03/2014,MATERIALS & SPARES,FUSION,GARNER OSBORNE CIRCUITS LTD,5100300662,257.8,
United Kingdom Atomic energy Authority,United Kingdom Atomic energy Authority,12/03/2014,MATERIALS & SPARES,FUSION,GARNER OSBORNE CIRCUITS LTD,5100300829,379.28,
United Kingdom Atomic energy Authority,United Kingdom Atomic energy Authority,03/03/2014,MATERIALS & SPARES,FUSION,GEKU (UK) LTD,5100300410,11040,
United Kingdom Atomic energy Authority,United Kingdom Atomic energy Authority,03/03/2014,HIRED STAFF,FUSION,GENTLE ASSOCIATES LTD,5100300522,2884.8,
United Kingdom Atomic energy Authority,United Kingdom Atomic energy Authority,17/03/2014,MATERIALS & SPARES,FUSION,GILBERTS BLACKPOOL LTD,5100301407,583.41,
United Kingdom Atomic energy Authority,United Kingdom Atomic energy Authority,26/03/2014,CONSUMABLES,FUSION,GM BAILEY AIR CONDITIONING,5100301859,432.4,
United Kingdom Atomic energy Authority,United Kingdom Atomic energy Authority,27/02/2014,MATERIALS & SPARES,FUSION,GODIAC LTD,5100300270,110.99,
United Kingdom Atomic energy Authority,United Kingdom Atomic energy Authority,19/03/2014,PLANT & EQUIPMENT,FUSION,GOODFELLOW CAMBRIDGE LTD,5100301359,246,
United Kingdom Atomic energy Authority,United Kingdom Atomic energy Authority,19/03/2014,PLANT & EQUIPMENT,FUSION,GOODFELLOW CAMBRIDGE LTD,5100301360,573,
United Kingdom Atomic energy Authority,United Kingdom Atomic energy Authority,10/03/2014,PROFESSIONAL SERVICES,SUPPORT SERVICES,Government Actuary's Department,5100300704,46858.14,
United Kingdom Atomic energy Authority,United Kingdom Atomic energy Authority,10/03/2014,PROFESSIONAL SERVICES,FUSION,GRAFX,5100300957,1000,
United Kingdom Atomic energy Authority,United Kingdom Atomic energy Authority,10/03/2014,PROFESSIONAL SERVICES,PROPERTY,GRUNDON WASTE MANAGEMENT LTD,5100301010,789.9,
United Kingdom Atomic energy Authority,United Kingdom Atomic energy Authority,10/03/2014,PROFESSIONAL SERVICES,PROPERTY,GRUNDON WASTE MANAGEMENT LTD,5100301023,112.65,
United Kingdom Atomic energy Authority,United Kingdom Atomic energy Authority,10/03/2014,PROFESSIONAL SERVICES,PROPERTY,GRUNDON WASTE MANAGEMENT LTD,5100301025,249.3,
United Kingdom Atomic energy Authority,United Kingdom Atomic energy Authority,10/03/2014,PROFESSIONAL SERVICES,PROPERTY,GRUNDON WASTE MANAGEMENT LTD,5100301026,249.3,
United Kingdom Atomic energy Authority,United Kingdom Atomic energy Authority,10/03/2014,PROFESSIONAL SERVICES,PROPERTY,GRUNDON WASTE MANAGEMENT LTD,5100301028,100,
United Kingdom Atomic energy Authority,United Kingdom Atomic energy Authority,10/03/2014,PROFESSIONAL SERVICES,PROPERTY,GRUNDON WASTE MANAGEMENT LTD,5100301029,100,
United Kingdom Atomic energy Authority,United Kingdom Atomic energy Authority,10/03/2014,PROFESSIONAL SERVICES,PROPERTY,GRUNDON WASTE MANAGEMENT LTD,5100301030,225.3,
